{"text_format":"1","workbook":"xlsx","n_sheets":6,"sheets":["Instructions","Data","Profile_Portrait","District Profile","Esko","Site Profile"],"not_rendered":{"charts":0,"images":15,"macros":1,"external_links":2,"defined_names":48,"comments":1,"pivot_tables":0},"unopened":[],"bounds":{"document_bytes":16777216,"sheet_cells":100000,"rows_first":2000,"rows_last":500,"rows_between":2000,"halvings":0,"cell_chars":16384,"cell_head_chars":4096},"cells_cut":0,"cells_raw":0,"read":"whole","date_system":"1900"}

{"sheet":"Instructions","index":0,"n_rows":0,"n_cols":0,"rows_kept":0,"cut":false,"hidden":true,"merged":[]}

{"sheet":"Data","index":1,"n_rows":129,"n_cols":144,"rows_kept":129,"cut":false,"hidden":true,"merged":[[4,122,5,124],[4,125,5,128],[4,129,5,130],[5,11,5,12],[5,15,5,18],[5,19,5,29],[5,53,5,54],[5,55,5,56],[5,57,5,58],[5,59,5,60],[4,93,5,97],[4,98,5,101],[4,102,5,109],[4,110,5,115],[4,116,5,121],[4,65,5,72],[4,73,5,76],[4,77,5,82],[4,83,5,87],[4,88,5,92],[4,3,4,29],[4,30,5,36],[4,37,5,42],[5,49,5,50],[5,51,5,52],[4,43,5,48],[4,49,4,64],[5,61,5,62],[5,63,5,64]]}
[{"$f":"A7","v":"Code"},{"$f":"B7","v":"Site Name (EN)"},{"$f":"C7","v":"Assessment Date:"},{"$f":"D7","v":"Governorate:"},"District:","Sub-District:","Site Name(AR)","(1)","(2)",{"$f":"J7","v":"(3)"},{"$f":"K7","v":"Coordinates:"},"Latitude","Longitude","Occupation Date:","Population (HH):",{"$f":"P7","v":"Taiz"},"Hajjah","Alhudydah","Sa'daa","Bakil Al-Mir","(1)",{"$f":"V7","v":"(2)"},"(3)","(4)","Mustaba",{"$f":"Z7","v":"Kushar"},"Aflah Ash Sham",{"$f":"AB7","v":"Aflah Alyaman"},"Az Zhuhrah","Sa'adah"," Site SMC agency:",{"$f":"AF7","v":"Site Management Committee:"},{"$f":"AG7","v":"SMC agency FP name"},"SMC agency FP cell","Committee FP name","Committee FP cell","Host Community:",{"$f":"AL7","v":" Landowner:"}," Agreement between IDP & host communities"," Risk of eviction:"," Friction with host community:"," Common intentions in next three months:"," Reason for friction:","Unaccompanied children:","Child headed HH:","Female headed HH:","Marginalized people:","Other"," Other","Agency "," Date","Agency","  Date","Agency","  Date","Agency","  Date","Agency","  Date","Agency","  Date","Agency","  Date","Agency","  Date","authorities"," (UN / NGO)","Personal cash / savings","Home grown","Bartered for other goods","Donation from hosts","Private sector charity","No food","Food market","Health services","Primary school","Petroleum"," Access to water","Main water supply","Other ","Access to latrines","Access to health care","Access to education","Cholera","Malaria","Stomach sicknesses","Other ","Other ","Malnourished newborn","Malnourished children","Malnourished adults","Other ","Other","Solid waste / garbage","Open defecation","Contaminated water","Other","Other","Risk of mines, UxO, ERW etc.","Mine action agency present","Known casualties in area",{"$f":"CX7","v":"No risk of casualties"},"(1)","Other","(2)","Other ","(3)","Other","Forth","Other ","First key informant name","Gender ","Mobile number (1)","Second key informant name","Gender "," Mobile number "," First Community leader name"," Gender "," Mobile number"," Second Community leaders name","Gender"," Mobile number (2)"," Land Owner name"," Gender","Mobile number","Name","Organization","Position","Cell No","Community Comments","Assessor notes\n","Site Typology:","Status:","sites",null,"sympole","RED","Green","Blue",null,null,"Red","Green","Blue"]
[{"$f":"VLOOKUP('Site Profile'!$D$1,Data!$A$8:$EC$451,A3,)","v":95},{"$f":"VLOOKUP('Site Profile'!$D$1,Data!$A$8:$EC$451,B3,)","v":"As Sabeel"},{"$f":"VLOOKUP('Site Profile'!$D$1,Data!$A$8:$EC$451,C3,)","v":"2019-04-08"},{"$f":"VLOOKUP('Site Profile'!$D$1,Data!$A$8:$EC$451,D3,)","v":"Hajjah"},{"$f":"VLOOKUP('Site Profile'!$D$1,Data!$A$8:$EC$451,E3,)","v":"Abs"},{"$f":"VLOOKUP('Site Profile'!$D$1,Data!$A$8:$EC$451,F3,)","v":"Matwalah"},{"$f":"VLOOKUP('Site Profile'!$D$1,Data!$A$8:$EC$451,G3,)","v":"السبيل"},{"$f":"VLOOKUP('Site Profile'!$D$1,Data!$A$8:$EC$451,H3,)","v":" Kedf Alarf"},{"$f":"VLOOKUP('Site Profile'!$D$1,Data!$A$8:$EC$451,I3,)","v":0},{"$f":"VLOOKUP('Site Profile'!$D$1,Data!$A$8:$EC$451,J3,)","v":0},{"$f":"VLOOKUP('Site Profile'!$D$1,Data!$A$8:$EC$451,K3,)","v":"16.079689 43.100361"},{"$f":"VLOOKUP('Site Profile'!$D$1,Data!$A$8:$EC$451,L3,)","v":16.079688999999998},{"$f":"VLOOKUP('Site Profile'!$D$1,Data!$A$8:$EC$451,M3,)","v":43.100360999999999},{"$f":"VLOOKUP('Site Profile'!$D$1,Data!$A$8:$EC$451,N3,)","v":"2015-06-07"},{"$f":"VLOOKUP('Site Profile'!$D$1,Data!$A$8:$EC$451,O3,)","v":500},{"$f":"VLOOKUP('Site Profile'!$D$1,Data!$A$8:$EC$451,P3,)","v":0},{"$f":"VLOOKUP('Site Profile'!$D$1,Data!$A$8:$EC$451,Q3,)","v":1},{"$f":"VLOOKUP('Site Profile'!$D$1,Data!$A$8:$EC$451,R3,)","v":0},{"$f":"VLOOKUP('Site Profile'!$D$1,Data!$A$8:$EC$451,S3,)","v":0},{"$f":"VLOOKUP('Site Profile'!$D$1,Data!$A$8:$EC$451,T3,)","v":0},{"$f":"VLOOKUP('Site Profile'!$D$1,Data!$A$8:$EC$451,U3,)","v":"Haradh"},{"$f":"VLOOKUP('Site Profile'!$D$1,Data!$A$8:$EC$451,V3,)","v":"Midi"},{"$f":"VLOOKUP('Site Profile'!$D$1,Data!$A$8:$EC$451,W3,)","v":"Abs"},{"$f":"VLOOKUP('Site Profile'!$D$1,Data!$A$8:$EC$451,X3,)","v":"Hayran"},{"$f":"VLOOKUP('Site Profile'!$D$1,Data!$A$8:$EC$451,Y3,)","v":0},{"$f":"VLOOKUP('Site Profile'!$D$1,Data!$A$8:$EC$451,Z3,)","v":0},{"$f":"VLOOKUP('Site Profile'!$D$1,Data!$A$8:$EC$451,AA3,)","v":0},{"$f":"VLOOKUP('Site Profile'!$D$1,Data!$A$8:$EC$451,AB3,)","v":0},{"$f":"VLOOKUP('Site Profile'!$D$1,Data!$A$8:$EC$451,AC3,)","v":0},{"$f":"VLOOKUP('Site Profile'!$D$1,Data!$A$8:$EC$451,AD3,)","v":0},{"$f":"VLOOKUP('Site Profile'!$D$1,Data!$A$8:$EC$451,AE3,)","v":"ADO"},{"$f":"VLOOKUP('Site Profile'!$D$1,Data!$A$8:$EC$451,AF3,)","v":"Yes"},{"$f":"VLOOKUP('Site Profile'!$D$1,Data!$A$8:$EC$451,AG3,)","v":"فواد جعمل"},{"$f":"VLOOKUP('Site Profile'!$D$1,Data!$A$8:$EC$451,AH3,)","v":"774847958"},{"$f":"VLOOKUP('Site Profile'!$D$1,Data!$A$8:$EC$451,AI3,)","v":"منصور ابراهيم جعداري"},{"$f":"VLOOKUP('Site Profile'!$D$1,Data!$A$8:$EC$451,AJ3,)","v":"773953634"},{"$f":"VLOOKUP('Site Profile'!$D$1,Data!$A$8:$EC$451,AK3,)","v":"Togeather"},{"$f":"VLOOKUP('Site Profile'!$D$1,Data!$A$8:$EC$451,AL3,)","v":"Private"},{"$f":"VLOOKUP('Site Profile'!$D$1,Data!$A$8:$EC$451,AM3,)","v":"Yes"},{"$f":"VLOOKUP('Site Profile'!$D$1,Data!$A$8:$EC$451,AN3,)","v":"No"},{"$f":"VLOOKUP('Site Profile'!$D$1,Data!$A$8:$EC$451,AO3,)","v":"No"},{"$f":"VLOOKUP('Site Profile'!$D$1,Data!$A$8:$EC$451,AP3,)","v":"Stay"},{"$f":"VLOOKUP('Site Profile'!$D$1,Data!$A$8:$EC$451,AQ3,)","v":"None"},{"$f":"VLOOKUP('Site Profile'!$D$1,Data!$A$8:$EC$451,AR3,)","v":"Yes"},{"$f":"VLOOKUP('Site Profile'!$D$1,Data!$A$8:$EC$451,AS3,)","v":"Yes"},{"$f":"VLOOKUP('Site Profile'!$D$1,Data!$A$8:$EC$451,AT3,)","v":"Yes"},{"$f":"VLOOKUP('Site Profile'!$D$1,Data!$A$8:$EC$451,AU3,)","v":"Yes"},{"$f":"VLOOKUP('Site Profile'!$D$1,Data!$A$8:$EC$451,AV3,)","v":0},{"$f":"VLOOKUP('Site Profile'!$D$1,Data!$A$8:$EC$451,AW3,)","v":0},{"$f":"VLOOKUP('Site Profile'!$D$1,Data!$A$8:$EC$451,AX3,)","v":"NRC"},{"$f":"VLOOKUP('Site Profile'!$D$1,Data!$A$8:$EC$451,AY3,)","v":43709},{"$f":"VLOOKUP('Site Profile'!$D$1,Data!$A$8:$EC$451,AZ3,)","v":"OXFAM"},{"$f":"VLOOKUP('Site Profile'!$D$1,Data!$A$8:$EC$451,BA3,)","v":43709},{"$f":"VLOOKUP('Site Profile'!$D$1,Data!$A$8:$EC$451,BB3,)","v":"None"},{"$f":"VLOOKUP('Site Profile'!$D$1,Data!$A$8:$EC$451,BC3,)","v":"None"},{"$f":"VLOOKUP('Site Profile'!$D$1,Data!$A$8:$EC$451,BD3,)","v":"WFP"},{"$f":"VLOOKUP('Site Profile'!$D$1,Data!$A$8:$EC$451,BE3,)","v":43709},{"$f":"VLOOKUP('Site Profile'!$D$1,Data!$A$8:$EC$451,BF3,)","v":"ADO / UNHCR"},{"$f":"VLOOKUP('Site Profile'!$D$1,Data!$A$8:$EC$451,BG3,)","v":43709},{"$f":"VLOOKUP('Site Profile'!$D$1,Data!$A$8:$EC$451,BH3,)","v":"None"},{"$f":"VLOOKUP('Site Profile'!$D$1,Data!$A$8:$EC$451,BI3,)","v":"None"},{"$f":"VLOOKUP('Site Profile'!$D$1,Data!$A$8:$EC$451,BJ3,)","v":"None"},{"$f":"VLOOKUP('Site Profile'!$D$1,Data!$A$8:$EC$451,BK3,)","v":"None"},{"$f":"VLOOKUP('Site Profile'!$D$1,Data!$A$8:$EC$451,BL3,)","v":"None"},{"$f":"VLOOKUP('Site Profile'!$D$1,Data!$A$8:$EC$451,BM3,)","v":"None"},{"$f":"VLOOKUP('Site Profile'!$D$1,Data!$A$8:$EC$451,BN3,)","v":0},{"$f":"VLOOKUP('Site Profile'!$D$1,Data!$A$8:$EC$451,BO3,)","v":1},{"$f":"VLOOKUP('Site Profile'!$D$1,Data!$A$8:$EC$451,BP3,)","v":0},{"$f":"VLOOKUP('Site Profile'!$D$1,Data!$A$8:$EC$451,BQ3,)","v":0},{"$f":"VLOOKUP('Site Profile'!$D$1,Data!$A$8:$EC$451,BR3,)","v":0},{"$f":"VLOOKUP('Site Profile'!$D$1,Data!$A$8:$EC$451,BS3,)","v":0},{"$f":"VLOOKUP('Site Profile'!$D$1,Data!$A$8:$EC$451,BT3,)","v":0},{"$f":"VLOOKUP('Site Profile'!$D$1,Data!$A$8:$EC$451,BU3,)","v":0},{"$f":"VLOOKUP('Site Profile'!$D$1,Data!$A$8:$EC$451,BV3,)","v":0},{"$f":"VLOOKUP('Site Profile'!$D$1,Data!$A$8:$EC$451,BW3,)","v":0},{"$f":"VLOOKUP('Site Profile'!$D$1,Data!$A$8:$EC$451,BX3,)","v":1},{"$f":"VLOOKUP('Site Profile'!$D$1,Data!$A$8:$EC$451,BY3,)","v":0},{"$f":"VLOOKUP('Site Profile'!$D$1,Data!$A$8:$EC$451,BZ3,)","v":"Free access for all"},{"$f":"VLOOKUP('Site Profile'!$D$1,Data!$A$8:$EC$451,CA3,)","v":"Water harvesting"},{"$f":"VLOOKUP('Site Profile'!$D$1,Data!$A$8:$EC$451,CB3,)","v":"None"},{"$f":"VLOOKUP('Site Profile'!$D$1,Data!$A$8:$EC$451,CC3,)","v":"No access (0%)"},{"$f":"VLOOKUP('Site Profile'!$D$1,Data!$A$8:$EC$451,CD3,)","v":"Public health facility"},{"$f":"VLOOKUP('Site Profile'!$D$1,Data!$A$8:$EC$451,CE3,)","v":"All children at site"},{"$f":"VLOOKUP('Site Profile'!$D$1,Data!$A$8:$EC$451,CF3,)","v":1},{"$f":"VLOOKUP('Site Profile'!$D$1,Data!$A$8:$EC$451,CG3,)","v":1},{"$f":"VLOOKUP('Site Profile'!$D$1,Data!$A$8:$EC$451,CH3,)","v":1},{"$f":"VLOOKUP('Site Profile'!$D$1,Data!$A$8:$EC$451,CI3,)","v":1},{"$f":"VLOOKUP('Site Profile'!$D$1,Data!$A$8:$EC$451,CJ3,)","v":"اسهالات"},{"$f":"VLOOKUP('Site Profile'!$D$1,Data!$A$8:$EC$451,CK3,)","v":1},{"$f":"VLOOKUP('Site Profile'!$D$1,Data!$A$8:$EC$451,CL3,)","v":1},{"$f":"VLOOKUP('Site Profile'!$D$1,Data!$A$8:$EC$451,CM3,)","v":1},{"$f":"VLOOKUP('Site Profile'!$D$1,Data!$A$8:$EC$451,CN3,)","v":0},{"$f":"VLOOKUP('Site Profile'!$D$1,Data!$A$8:$EC$451,CO3,)","v":0},{"$f":"VLOOKUP('Site Profile'!$D$1,Data!$A$8:$EC$451,CP3,)","v":1},{"$f":"VLOOKUP('Site Profile'!$D$1,Data!$A$8:$EC$451,CQ3,)","v":1},{"$f":"VLOOKUP('Site Profile'!$D$1,Data!$A$8:$EC$451,CR3,)","v":0},{"$f":"VLOOKUP('Site Profile'!$D$1,Data!$A$8:$EC$451,CS3,)","v":0},{"$f":"VLOOKUP('Site Profile'!$D$1,Data!$A$8:$EC$451,CT3,)","v":0},{"$f":"VLOOKUP('Site Profile'!$D$1,Data!$A$8:$EC$451,CU3,)","v":0},{"$f":"VLOOKUP('Site Profile'!$D$1,Data!$A$8:$EC$451,CV3,)","v":0},{"$f":"VLOOKUP('Site Profile'!$D$1,Data!$A$8:$EC$451,CW3,)","v":0},{"$f":"VLOOKUP('Site Profile'!$D$1,Data!$A$8:$EC$451,CX3,)","v":1},{"$f":"VLOOKUP('Site Profile'!$D$1,Data!$A$8:$EC$451,CY3,)","v":"Shelter"},{"$f":"VLOOKUP('Site Profile'!$D$1,Data!$A$8:$EC$451,CZ3,)","v":0},{"$f":"VLOOKUP('Site Profile'!$D$1,Data!$A$8:$EC$451,DA3,)","v":"WASH"},{"$f":"VLOOKUP('Site Profile'!$D$1,Data!$A$8:$EC$451,DB3,)","v":0},{"$f":"VLOOKUP('Site Profile'!$D$1,Data!$A$8:$EC$451,DC3,)","v":"Shelter"},{"$f":"VLOOKUP('Site Profile'!$D$1,Data!$A$8:$EC$451,DD3,)","v":0},{"$f":"VLOOKUP('Site Profile'!$D$1,Data!$A$8:$EC$451,DE3,)","v":"Health / nutrition"},{"$f":"VLOOKUP('Site Profile'!$D$1,Data!$A$8:$EC$451,DF3,)","v":0},{"$f":"VLOOKUP('Site Profile'!$D$1,Data!$A$8:$EC$451,DG3,)","v":"منصور عبدالله ابراهيم جعداري"},{"$f":"VLOOKUP('Site Profile'!$D$1,Data!$A$8:$EC$451,DH3,)","v":"Male"},{"$f":"VLOOKUP('Site Profile'!$D$1,Data!$A$8:$EC$451,DI3,)","v":"773953634"},{"$f":"VLOOKUP('Site Profile'!$D$1,Data!$A$8:$EC$451,DJ3,)","v":"لا يوجد"},{"$f":"VLOOKUP('Site Profile'!$D$1,Data!$A$8:$EC$451,DK3,)","v":"Male"},{"$f":"VLOOKUP('Site Profile'!$D$1,Data!$A$8:$EC$451,DL3,)","v":"0"},{"$f":"VLOOKUP('Site Profile'!$D$1,Data!$A$8:$EC$451,DM3,)","v":"احمد عثمان"},{"$f":"VLOOKUP('Site Profile'!$D$1,Data!$A$8:$EC$451,DN3,)","v":"Male"},{"$f":"VLOOKUP('Site Profile'!$D$1,Data!$A$8:$EC$451,DO3,)","v":"774963650"},{"$f":"VLOOKUP('Site Profile'!$D$1,Data!$A$8:$EC$451,DP3,)","v":"لا يوجد"},{"$f":"VLOOKUP('Site Profile'!$D$1,Data!$A$8:$EC$451,DQ3,)","v":"Male"},{"$f":"VLOOKUP('Site Profile'!$D$1,Data!$A$8:$EC$451,DR3,)","v":"0"},{"$f":"VLOOKUP('Site Profile'!$D$1,Data!$A$8:$EC$451,DS3,)","v":"لا يوجد"},{"$f":"VLOOKUP('Site Profile'!$D$1,Data!$A$8:$EC$451,DT3,)","v":"Male"},{"$f":"VLOOKUP('Site Profile'!$D$1,Data!$A$8:$EC$451,DU3,)","v":"0"},{"$f":"VLOOKUP('Site Profile'!$D$1,Data!$A$8:$EC$451,DV3,)","v":"ماجد غيلان "},{"$f":"VLOOKUP('Site Profile'!$D$1,Data!$A$8:$EC$451,DW3,)","v":"ADO "},{"$f":"VLOOKUP('Site Profile'!$D$1,Data!$A$8:$EC$451,DX3,)","v":" Officer"},{"$f":"VLOOKUP('Site Profile'!$D$1,Data!$A$8:$EC$451,DY3,)","v":"N/A"},{"$f":"VLOOKUP('Site Profile'!$D$1,Data!$A$8:$EC$451,DZ3,)","v":"كميه الغذاء غير كافي , ضرورة دعم بالمأوى."},{"$f":"VLOOKUP('Site Profile'!$D$1,Data!$A$8:$EC$451,EA3,)","v":"المأوى والغاذاء اولوية للصحة."},{"$f":"VLOOKUP('Site Profile'!$D$1,Data!$A$8:$EC$451,EB3,)","v":"Spontaneous Settlement"},{"$f":"VLOOKUP('Site Profile'!$D$1,Data!$A$8:$EC$451,EC3,)","v":"Open"},"Al Radhah",null,"HD",{"$f":"IF($EK$2=$ED2,EL$2,EL$3)","v":255},{"$f":"IF($EK$2=$ED2,EM$2,EM$3)","v":255},{"$f":"IF($EK$2=$ED2,EN$2,EN$3)","v":255},null,{"$f":"B2","v":"As Sabeel"},150,54,52]
[{"$f":"COLUMN()","v":1},{"$f":"COLUMN()","v":2},{"$f":"COLUMN()","v":3},{"$f":"COLUMN()","v":4},{"$f":"COLUMN()","v":5},{"$f":"COLUMN()","v":6},{"$f":"COLUMN()","v":7},{"$f":"COLUMN()","v":8},{"$f":"COLUMN()","v":9},{"$f":"COLUMN()","v":10},{"$f":"COLUMN()","v":11},{"$f":"COLUMN()","v":12},{"$f":"COLUMN()","v":13},{"$f":"COLUMN()","v":14},{"$f":"COLUMN()","v":15},{"$f":"COLUMN()","v":16},{"$f":"COLUMN()","v":17},{"$f":"COLUMN()","v":18},{"$f":"COLUMN()","v":19},{"$f":"COLUMN()","v":20},{"$f":"COLUMN()","v":21},{"$f":"COLUMN()","v":22},{"$f":"COLUMN()","v":23},{"$f":"COLUMN()","v":24},{"$f":"COLUMN()","v":25},{"$f":"COLUMN()","v":26},{"$f":"COLUMN()","v":27},{"$f":"COLUMN()","v":28},{"$f":"COLUMN()","v":29},{"$f":"COLUMN()","v":30},{"$f":"COLUMN()","v":31},{"$f":"COLUMN()","v":32},{"$f":"COLUMN()","v":33},{"$f":"COLUMN()","v":34},{"$f":"COLUMN()","v":35},{"$f":"COLUMN()","v":36},{"$f":"COLUMN()","v":37},{"$f":"COLUMN()","v":38},{"$f":"COLUMN()","v":39},{"$f":"COLUMN()","v":40},{"$f":"COLUMN()","v":41},{"$f":"COLUMN()","v":42},{"$f":"COLUMN()","v":43},{"$f":"COLUMN()","v":44},{"$f":"COLUMN()","v":45},{"$f":"COLUMN()","v":46},{"$f":"COLUMN()","v":47},{"$f":"COLUMN()","v":48},{"$f":"COLUMN()","v":49},{"$f":"COLUMN()","v":50},{"$f":"COLUMN()","v":51},{"$f":"COLUMN()","v":52},{"$f":"COLUMN()","v":53},{"$f":"COLUMN()","v":54},{"$f":"COLUMN()","v":55},{"$f":"COLUMN()","v":56},{"$f":"COLUMN()","v":57},{"$f":"COLUMN()","v":58},{"$f":"COLUMN()","v":59},{"$f":"COLUMN()","v":60},{"$f":"COLUMN()","v":61},{"$f":"COLUMN()","v":62},{"$f":"COLUMN()","v":63},{"$f":"COLUMN()","v":64},{"$f":"COLUMN()","v":65},{"$f":"COLUMN()","v":66},{"$f":"COLUMN()","v":67},{"$f":"COLUMN()","v":68},{"$f":"COLUMN()","v":69},{"$f":"COLUMN()","v":70},{"$f":"COLUMN()","v":71},{"$f":"COLUMN()","v":72},{"$f":"COLUMN()","v":73},{"$f":"COLUMN()","v":74},{"$f":"COLUMN()","v":75},{"$f":"COLUMN()","v":76},{"$f":"COLUMN()","v":77},{"$f":"COLUMN()","v":78},{"$f":"COLUMN()","v":79},{"$f":"COLUMN()","v":80},{"$f":"COLUMN()","v":81},{"$f":"COLUMN()","v":82},{"$f":"COLUMN()","v":83},{"$f":"COLUMN()","v":84},{"$f":"COLUMN()","v":85},{"$f":"COLUMN()","v":86},{"$f":"COLUMN()","v":87},{"$f":"COLUMN()","v":88},{"$f":"COLUMN()","v":89},{"$f":"COLUMN()","v":90},{"$f":"COLUMN()","v":91},{"$f":"COLUMN()","v":92},{"$f":"COLUMN()","v":93},{"$f":"COLUMN()","v":94},{"$f":"COLUMN()","v":95},{"$f":"COLUMN()","v":96},{"$f":"COLUMN()","v":97},{"$f":"COLUMN()","v":98},{"$f":"COLUMN()","v":99},{"$f":"COLUMN()","v":100},{"$f":"COLUMN()","v":101},{"$f":"COLUMN()","v":102},{"$f":"COLUMN()","v":103},{"$f":"COLUMN()","v":104},{"$f":"COLUMN()","v":105},{"$f":"COLUMN()","v":106},{"$f":"COLUMN()","v":107},{"$f":"COLUMN()","v":108},{"$f":"COLUMN()","v":109},{"$f":"COLUMN()","v":110},{"$f":"COLUMN()","v":111},{"$f":"COLUMN()","v":112},{"$f":"COLUMN()","v":113},{"$f":"COLUMN()","v":114},{"$f":"COLUMN()","v":115},{"$f":"COLUMN()","v":116},{"$f":"COLUMN()","v":117},{"$f":"COLUMN()","v":118},{"$f":"COLUMN()","v":119},{"$f":"COLUMN()","v":120},{"$f":"COLUMN()","v":121},{"$f":"COLUMN()","v":122},{"$f":"COLUMN()","v":123},{"$f":"COLUMN()","v":124},{"$f":"COLUMN()","v":125},{"$f":"COLUMN()","v":126},{"$f":"COLUMN()","v":127},{"$f":"COLUMN()","v":128},{"$f":"COLUMN()","v":129},{"$f":"COLUMN()","v":130},{"$f":"COLUMN()","v":131},{"$f":"COLUMN()","v":132},{"$f":"COLUMN()","v":133},"Al Kadaf",null,"AF",255,255,255,null,null,255,255,255]
[null,null,null,null,null,null,null,null,null,null,null,null,null,null,null,null,null,null,null,null,null,null,null,null,null,null,null,null,null,null,null,null,null,null,null,null,null,null,null,null,null,null,null,null,null,null,null,null,null,null,null,null,null,null,null,null,null,null,null,null,null,null,null,null,null,null,null,null,null,null,null,null,null,null,null,null,null,null,null,null,null,null,null,null,null,null,null,null,null,null,null,null,null,null,null,null,null,null,null,null,null,null,null,null,null,null,null,null,null,null,null,null,null,null,null,null,null,null,null,null,null,null,null,null,null,null,null,null,null,null,null,null,null,"Al Mehraq",null,"RA",255,255,255]
[null,null,null,"SITE INFORMATION",null,null,null,null,null,null,null,null,null,null,null,null,null,null,null,null,null,null,null,null,null,null,null,null,null,null,"SITE SMC INFORMATION",null,null,null,null,null,null,"Site Overview",null,null,null,null,null,"Presence of particularly vulnerable groups",null,null,null,null,null,"ASSISTANCE PROVIDED",null,null,null,null,null,null,null,null,null,null,null,null,null,null,null,"How is food obtained at the site?",null,null,null,null,null,null,null," Services available in 30 minutes' walking distance",null,null,null,"Access to Services",null,null,null,null,null,"Health ",null,null,null,null," Malnutrition",null,null,null,null,"Sanitation",null,null,null,null," Explosives",null,null,null,"Community priority ",null,null,null,null,null,null,null," key informant Information",null,null,null,null,null," Community leader  Information",null,null,null,null,null," Land Owner Information",null,null,"Coordination contacts\n",null,null,null,"REMARKS",null,null,null,"Almashaf",null,"FS",255,255,255]
["الرقم","اسم الموقع","تاريخ التقييم","المحافظة","المديريه","العزله/القريه","اسم الموقع","Sub-Site","Sub-Site","Sub-Site","الاحداثيات","Coordinates",null,null,null,"Governorate of Origin",null,null,null,"District of Origin",null,null,null,null,null,null,null,null,null,null,null,null,null,null,null,null,null,null,null,null,null,null,null,null,null,null,null,null,null,"RRM ",null," CASH ",null,"NFI ",null,"Food ",null,"Shelter activities ",null,"WASH activities ",null,"Health activities ",null,"Education activities ",null,null,null,null,null,null,null,null,null,null,null,null,null,null,null,null,null,null,null,null,null,null,null,null,null,null,null,null,null,null,null,null,null,null,null,null,null,null,null,null,null,null,null,null,null,null,null,null,null,null,null,null,null,null,null,null,null,null,null,null,null,null,null,null,null,null,null,null,null,"Almaqayet",null,"YT",255,255,255]
["Code","Site Name (EN)","Assessment Date:","Governorate:","District:","Sub-District:","Site Name(AR)","(1)","(2)","(3)","Coordinates:","Latitude","Longitude","Occupation Date:","Population (HH):","Taiz","Hajjah","Alhudydah","Sa'daa","Bakil Al-Mir","(1)","(2)","(3)","(4)","Mustaba","Kushar","Aflah Ash Sham","Aflah Alyaman","Az Zhuhrah","Sa'adah"," Site SMC agency:","Site Management Committee:","SMC agency FP name","SMC agency FP cell","Committee FP name","Committee FP cell","Host Community:"," Landowner:"," Agreement between IDP & host communities"," Risk of eviction:"," Friction with host community:"," Common intentions in next three months:"," Reason for friction:","Unaccompanied children:","Child headed HH:","Female headed HH:","Marginalized people:","Other"," Other","Agency "," Date","Agency","  Date","Agency","  Date","Agency","  Date","Agency","  Date","Agency","  Date","Agency","  Date","Agency","  Date","authorities"," (UN / NGO)","Personal cash / savings","Home grown","Bartered for other goods","Donation from hosts","Private sector charity","No food","Food market","Health services","Primary school","Petroleum"," Access to water","Main water supply","Other ","Access to latrines","Access to health care","Access to education","Cholera","Malaria","Stomach sicknesses","Other ","Other ","Malnourished newborn","Malnourished children","Malnourished adults","Other ","Other","Solid waste / garbage","Open defecation","Contaminated water","Other","Other","Risk of mines, UxO, ERW etc.","Mine action agency present","Known casualties in area","No risk of casualties","(1)","Other","(2)","Other ","(3)","Other","Forth","Other ","First key informant name","Gender ","Mobile number (1)","Second key informant name","Gender "," Mobile number "," First Community leader name"," Gender "," Mobile number"," Second Community leaders name","Gender"," Mobile number (2)"," Land Owner name"," Gender","Mobile number","Name","Organization","Position","Cell No","Community Comments","Assessor notes\n","Site Typology:","Status:","Bani Almush",null,"US",255,255,255]
[1,"Al Radhah","2019-04-10","Hajjah","Abs","Al Batariah","الردحه ",null,null,null,"15.894833 43.193683",15.894833,43.193683,"2015-04-09",160,0,1,0,0,0,"Haradh","Midi","Abs","Hayran",0,0,0,0,null,0,"ADO","Yes","محمد هادي","713102085","محمد سعيد","735938239","Separated","Private","No","No","No","Stay","None","No","No","No","Yes",0,null,"NRC","2019-09-03","None","None","None","None","WFP","2019-09-02","None","None","None","None","None","None","None","None",0,1,0,0,0,0,0,0,0,0,1,0,"Must be purchased","Well / borehole","None","Minority (15-50%)","No-one has access","Only part of children",0,1,0,0,null,0,1,1,0,null,1,1,0,0,null,0,0,0,1,"Shelter",null,"WASH",null,"Food",null,"WASH",null,"محمد سعد","Male","735938239","لا يوجد","Male","0","لا يوجد","Male","0","لا يوجد","Male","0","لا يوجد","Male","0","محمد هادي "," ADO ",null,713102085,"نحتاج الى مواد ايوائيه - مأوى - صرف صحي وحمامات.","تةفير احتياجات المأوى - الغذاء","Spontaneous Settlement","Open","Bani Saminah",null,"SB",255,255,255]
[2,"Al Kadaf","2019-04-10","Hajjah","Abs","Al Batariah","الكدف","Almeslam",null,null,"15.887541 43.183546",15.887541000000001,43.183546,"2015-04-09",79,0,1,0,0,0,"Haradh","Midi","Abs","Hayran",0,0,0,0,null,0,"ADO","Yes","محمد هادي ناجي","713102085","محمد احمد سعيد","735938239","Separated","Private","Yes","No","No","Stay","None","No","No","Yes","No",0,null,"NRC","2019-09-03","None","None","None","None","None","None","None","None","None","None","None","None","None","None",0,1,0,0,0,0,0,0,0,0,1,0,"Must be purchased","Well / borehole","None","Minority (15-50%)","No-one has access","No-one has access",1,1,0,0,null,0,1,0,0,null,0,1,0,0,null,0,0,0,1,"Shelter",null,"WASH",null,"Food",null,null,null,"علي شريف","Male","0","احمد شوعي عجار","Male","0","محمد احمد سعيد","Male","0","محمد جابر","Male","0","ابراهيم شريف","Male","0","محمد هادي ناجي "," ADO ",null,713102085,"تأخر المساعدات , عدم وضع مركز طوارئ , عدم وجود عياده صحيه متنقله , خطورة الاصابه بالأمراض.","تاخر المساعدات , عدم وضع مركز طوارئ خاصة بالمساعدات النازحين , عدم وجود عياده متنقله , خطوره الاصابه بالامراض , عدم وجود توعيه.","Spontaneous Settlement","Open","Deer Alsarh",null,"HS",255,255,255]
[3,"Al Mehraq","2019-04-10","Hajjah","Abs","Al Batariah","المحراق","Dair Almarkh",null,null,"15.855989 43.128289",15.855988999999999,43.128289000000002,"2015-04-09",30,0,1,0,0,0,"Haradh","Midi","Abs","Hayran",0,0,0,0,null,0,"ADO","Yes","محمد هادي ناجي","713102085","محمد جابر","714335242","Separated","Private","Yes","No","No","Stay","None","No","No","No","Yes",0,null,"NRC","2019-09-01","None","None","None","None","WFP","2019-09-03","None","None","None","None","None","None","None","None",0,1,0,0,0,0,0,0,0,0,1,0,"Must be purchased","Well / borehole","None","No access (0%)","Health facility on site","Only part of children",1,1,0,0,null,0,1,0,0,null,0,1,0,0,null,0,0,0,1,"Shelter",null,"WASH",null,"Food",null,"Food",null,"محمد جابر","Male","714335242","لا يوجد","Male","0","لا يوجد","Male","0","لا بوجد","Male","0","لا يوجد","Male","0","محمد هادي "," ADO ",null,713102085,"تاىخر المساعدات رغم الحاجه الماسة اليها , عدم التغطية الكاملة لجميع الأسر أثناء نزول المنظمة.","1. تاخر وصول المساعدات من قبل المنظمات , 2. عدم وجود مركز طوارى خاص بمساعدات النازحين , 3. عدم وجود مركز صحي أو عياده متنقله , 4. خطورة الاصابة بالأمراض والأوبئة.","Spontaneous Settlement","Open","Deer Almahnab",null,"NB",255,255,255]
[4,"Almashaf","2019-04-10","Hajjah","Abs","Al Batariah","المشاف",null,null,null,"15.877106 43.143772",15.877105999999999,43.143771999999998,"2015-04-09",121,0,1,0,0,0,"Haradh","Abs","Hayran",null,0,0,0,0,null,0,"ADO","Yes","محمد هادي ناجي","713102085","محمد جابر بتري","714335242","Separated","Private","Yes","No","No","Stay","None","No","No","No","No",1,null,"NRC","2019-09-02","None","None","None","None","WFP","2019-09-03","None","None","None","None","None","None","None","None",0,1,1,0,0,0,0,0,0,0,1,0,"Must be purchased","Well / borehole","None","Minority (15-50%)","No-one has access","Only part of children",1,1,0,0,null,0,1,0,0,null,1,1,0,0,null,0,0,0,1,"Shelter",null,"Food",null,"WASH",null,"WASH",null,"محمد جابر بتري","Male","71435242","لا يوجد","Male","0","احمد ابراهيم بتري","Male","0","لا يوجد","Male","0","احمد قبول","Male","0","محمد هادي ناجي "," ADO ",null,713102085,"تاخر المساعدات , عدم وجود تغطيه كامله لجميع الأسر , تدهور التعليم بسبب بعد المدارس.","عدم وجود وحدة صحيه , توفير الاحتياجات من حمامات ومأوى وغذاء.","Spontaneous Settlement","Open","Hayjah Albataryah",null,"BT",255,255,255]
[5,"Almaqayet","2019-04-10","Hajjah","Abs","Al Batariah","المقايط",null,null,null,"15.900211 43.202011",15.900211000000001,43.202010999999999,"2015-04-09",500,0,1,0,0,0,"Haradh","Midi","Abs","Hayran",0,0,0,0,null,0,"ADO","Yes","يحيى قبول","775841603",null,null,"Separated","Private","No","No","No","Stay","None","No","No","No","Yes",0,null,"NRC","2019-11-01","None","None","None","None","WFP","2019-09-04","None","None","None","None","None","None","None","None",0,1,0,0,0,0,0,0,0,0,1,0,"Must be purchased","Well / borehole","None","Minority (15-50%)","No-one has access","Only part of children",1,1,0,0,null,0,1,0,0,null,0,1,0,0,null,0,0,0,1,"Shelter",null,"WASH",null,"Food",null,null,null,"محمد علي موسى","Male","0","واقد هننومي","Male","0","لا يوجد","Male","0","لا يوجد","Male","0","لا يوجد","Male","0","محمد هادي ناجي "," ADO ",null,713102085,"تأخر المساعدات رغم الحاجة اليها , عدم التغطية الكاملة لجميع الأسر اثناء نزول اي منظمة","تاخر المساعدات رغم الحاجه اليها وتدني مستوى المعيشه , عدم وضع مركز طوارئ خاص بالنازحين والمساعدات , عدم وجود مركز صحي أو عيادة متنقله , عدم وجود توعية صحية , خطورة الاصابة بالأمراض والاوبئة","Spontaneous Settlement","Open"," Habeel Al Wasat",null,"HW",255,255,255]
[6,"Bani Almush","2019-04-10","Hajjah","Abs","Al Batariah","بني الموش",null,null,null,"15.867517 43.081611",15.867516999999999,43.081611000000002,"2015-04-09",28,0,1,0,0,0,"Haradh","Midi","Abs","Hayran",0,0,0,0,null,0,"ADO","Yes","محمد هادي ناجي","713102085","محمد سعد","735938239","Separated","Private","No","No","No","Stay","None","No","No","No","Yes",0,null,"NRC","2019-09-03","None","None","None","None","WFP","2019-10-03","None","None","None","None","None","None","None","None",0,1,0,0,0,0,0,0,0,0,1,0,"Must be purchased","Well / borehole","None","Minority (15-50%)","No-one has access","Only part of children",0,1,0,0,null,0,1,0,0,null,0,1,0,0,null,0,0,0,1,"Shelter",null,"Food",null,"WASH",null,null,null,"حيدر المش","Male","711538778","محمد المش","Male","0","احمد المش","Male","0","لا يوجد","Male","0","لا يوجد","Male","0","محمد هادي "," ADO",null,null,"تاخر وصول المساعدات من قبل المنظمات وعدم التغطية الكاملة لجميع الأسر أثناء نزول المنظمات.","تاخر المساعدات رغم الحاجه الماسه اليها , عدم وجود مركز طوارئ خاص بمساعدات النازحين , عدم وجود مركز صحي أو عيادة متنقله , خطورة الاصابه بالأمراض والأوبئة","Spontaneous Settlement","Open","Al Hamur",null,"HR",255,255,255]
[7,"Bani Saminah","2019-04-10","Hajjah","Abs","Al Batariah","بني سمينه",null,null,null,"15.886653 43.117125",15.886653000000001,43.117125000000001,"2015-04-04",25,0,1,0,0,0,"Haradh","Midi","Abs","Hayran",0,0,0,0,null,0,"ADO","Yes","محمد هادي ناجي","713102085","محمد احمد محمد سعيد","0","Separated","Owner not known","Yes","No","No","Stay","None","No","No","No","Yes",0,null,"NRC","2019-11-01","None","None","None","None","WFP","2019-09-03","None","None","None","None","None","None","None","None",0,1,0,0,0,0,0,0,0,0,1,0,"Must be purchased","Well / borehole","None","No access (0%)","No-one has access","Only part of children",1,1,0,0,null,1,1,0,0,null,1,1,0,0,null,0,0,0,1,"Shelter",null,"Food",null,"WASH",null,"Health / nutrition",null,"محمد محمد جريح","Male","0","حسين حميدان","Male","0","لا يوجد","Male","0","لا يوجد","Male","0","لا يوجد","Male","0","محمد هادي "," ADO "," المنسق ",713102085,"تأخر المساعدات رغم الحاجة اليها , عدم التغطية الكاملة لجميع الأسر أثناء نزول أي منظمه.","تأخر المساعدات رغم الحاجة اليها من قبل النازحين , عدم وضع مركز طوارئ خاص بالنازحين , عدم وجود مركز صحيه أو عيادات متنقلة.","Spontaneous Settlement","Open","Al Hanak",null,"HK",255,255,255]
[8,"Deer Alsarh","2019-04-10","Hajjah","Abs","Al Batariah","دير الصرح",null,null,null,"15.89305 43.170731",15.893050000000001,43.170731000000004,"2015-04-09",315,0,1,0,0,0,"Haradh","Midi","Abs",0,0,0,0,0,null,0,"ADO","Yes","محمد هادي ناجي","713102085","محمد جابر بتري","714335242","Separated","Private","Yes","No","No","Stay","None","No","No","No","No",1,null,"NRC","2019-09-03","None","None","None","None","WFP","2019-09-03","None","None","None","None","None","None","None","None",0,1,0,0,0,0,0,0,0,0,1,0,"Must be purchased","Well / borehole","None","Minority (15-50%)","No-one has access","Only part of children",1,1,0,0,null,0,1,0,0,null,0,1,0,0,null,0,0,0,1,"Shelter",null,"WASH",null,"Food",null,null,null,"محمد جابر بتري","Male","714335242","لا يوجد","Male","0","لا يوجد","Male","0","لا يوجد","Male","0","لا يوجد","Male","0","محمد هادي ناجي "," ADO ",null,713102085,"تاخر المساعدات من قبل المنظمات , خطورة الاصابه بالأمراض والاوبئة ,  عدم وجود توعيه صحية.","عدم وجود مركز صحي اوعيادة متنقلة.","Spontaneous Settlement","Open","Al Khadharish",null,"KR",255,255,255]
[9,"Deer Almahnab","2019-05-01","Hajjah","Abs","Al Batariah","دير المحنب",null,null,null,"15.907853 43.160086",15.907852999999999,43.160086,"2015-03-01",33,0,1,0,0,0,"Haradh","Midi","Abs",0,0,0,0,0,null,0,"None","None","N/A","N/A","N/A","N/A","Togeather","Private","Yes","No","No","Stay","None","No","No","Yes","Yes",0,null,"NRC","2019-01-04","oxfam","2019-01-02","UNHCR","2019-02-01","WFP","2019-01-02","OXFAM","2019-01-02","OXFAM","2019-01-02","UNICEF","2019-01-02","None","None",0,1,0,0,0,0,0,0,0,1,0,0,"Must be purchased","Water trucking","None","Over half (> 50%)","Public health facility","Only part of children",1,1,0,0,null,0,1,0,0,null,1,1,0,0,null,0,0,0,1,"WASH",null,"Shelter",null,"Food",null,"Health / nutrition",null,"جبري عيسى حاسر بتري","Male","774935854","عثمان علي شوقي","Male","0","علي شامي شريف","Male","775155954","لا يوجد","Male","0","لا يوجد","Male","0","حسن مامون "," NRC ",null,null,"ضروره تبني مشروع للمياه لوجود الابار","المخيم واسع ومؤهل للتوسعة في عددالنازحين","Spontaneous Settlement","Open","Al Kharaib",null,"KA",255,255,255]
[10,"Hayjah Albataryah","2019-04-10","Hajjah","Abs","Al Batariah","هيجه البتاريه",null,null,null,"15.904547 43.194125",15.904547000000001,43.194125,"2015-04-09",280,0,1,0,0,0,"Haradh","Abs","Hayran",null,0,0,0,0,null,0,"ADO","Yes","محمد هادي ناجي","713102085","محمد جابر بتري","714335242","Separated","Private","Yes","No","No","Stay","None","No","No","No","No",1,null,"NRC","2019-09-03","ADRA","2019-11-01","None","None","WFP","2019-09-03","None","None","None","None","None","None","None","None",0,1,0,0,1,0,0,0,0,0,1,0,"Must be purchased","Well / borehole","None","Minority (15-50%)","No-one has access","Only part of children",1,1,0,0,null,0,1,0,0,null,1,1,0,0,null,0,0,0,1,"Shelter",null,"WASH",null,"Food",null,null,null,"علي محمد يحيى","Male","0","محمد جابر","Male","714335242","محمد محمد علي","Male","0","لا يوجد","Male","0","عيسى مشرقي شريف","Male","0","محمد هادي "," ADO ",null,713102085,"تاخر وصول المساعدات من قبل المنظمات وعدم وجود تغطيه كامله لجميع الأسر المتضرره من الحرب , خطوره الاصابه بالأمراض والأوبئه","تاخر وصول المساعدات عدم وجود مركز طوارئ ووحدة صحية","Spontaneous Settlement","Open","Al Dabayah",null,"AY",255,255,255]
[11," Habeel Al Wasat","2019-04-11","Hajjah","Abs","Al Wasat"," حبيل الوسط ",null,null,null,"16.033592 43.225472",16.033591999999999,43.225472000000003,"2017-04-10",95,0,1,0,0,0,"Haradh","Abs","Hayran",null,0,0,0,0,null,0,"None","None","N/A","N/A","ابراهيم عبيد مشهور","716610270","Separated","Private","Yes","No","Yes","Stay","Access to shelter Access to water Access to food","Yes","Yes","Yes","No",0,null,"NRC","2019-06-04","None","None","None","None","None","None","None","None","None","None","None","None","None","None",0,1,1,0,0,0,0,1,1,0,1,0,"Must be purchased","Well / borehole","None","No access (0%)","No-one has access","No-one has access",1,1,0,0,null,1,1,1,0,null,0,1,0,0,null,1,0,0,0,"WASH",null,"Food",null,"Shelter",null,"Health / nutrition",null,"شروق محمد مجلي","Female","0","محمد دوعان كندش","Male","716617064","احمد علي بكيلي دوعان","Male","775751225","حسن محمد علي جراد","Male","712052320","احمد عبدة كندش","Male","712934724","لا توجد جهات اتصال التنسيق",null,null,null,"تقديم مساعدات للنازحين والمجتمع المضيف","توفير مياه صالحه للشرب وتوفير مأوى بحيث يأوي المقبلين عليه","Spontaneous Settlement","Open","Al Dhahyah",null,"DY",255,255,255]
[12,"Al Hamur","2019-04-11","Hajjah","Abs","Al Wasat","الحامور",null,null,null,"16.042972 43.179606",16.042971999999999,43.179606,"2015-04-11",140,0,1,0,0,0,"Haradh","Abs","Hayran",null,0,0,0,0,null,0,"None","None","N/A","N/A","N/A","N/A","Togeather","Public","Yes","No","No","Stay","None","No","Yes","Yes","No",0,null,"None","None","OXFAM","2019-10-02","None","None","None","None","ADO","2019-10-03","None","None","None","None","None","None",0,1,1,0,0,0,0,0,1,0,0,1,"Free access for all","Water harvesting","None","No access (0%)","Health facility on site","Only part of children",1,1,1,0,null,0,1,0,0,null,0,1,0,0,null,0,0,0,1,"Food",null,"WASH",null,"Health / nutrition",null,"Shelter",null,"صالح شوعي صالح","Male","772764498","ابراهيم حسن حجر","Male","0","عصام علي احمد جنيد","Male","0","احمد محمد زبيدي","Male","0","لا يوجد","Male","0","لا توجد  جهات اتصال التنسيق",null,null,null,"لا توجد ملاحظات","لا توجد ملاحظات","Spontaneous Settlement","Open","Alqafrah",null,"QH",255,255,255]
[13,"Al Hanak","2019-03-11","Hajjah","Abs","Al Wasat","الحنك",null,null,null,"16.011653 43.238869",16.011652999999999,43.238869000000001,"2015-04-11",132,0,1,0,0,0,"Haradh","Hayran","None",null,0,0,0,0,null,0,"ADO","Yes","يحيى قبول","775841603","عواجي الزهل","777250950","Separated","Private","Yes","No","No","Stay","None","No","No","No","Yes",0,null,"None","None","ADRA","2019-12-01","None","None","WFP","2019-10-03","ADO","2019-12-01","None","None","None","None","None","None",0,1,0,0,0,0,0,0,0,1,1,0,"Must be purchased","Well / borehole","None","Over half (> 50%)","No-one has access","No-one has access",1,1,0,0,null,0,1,0,0,null,1,1,0,0,null,0,0,0,1,"Shelter",null,"Food",null,"WASH",null,null,null,"عواجي الزهل","Male","777250950","لا يوجد","Male","0","لا يوجد","Male","0","لا يوجد","Male","0","لا يوجد","Male","0","يحيى قبول "," ADO ",null,775881663,"نحتاج ( مأوى - غذاء - صحة - مدارس )","توفير احتياجات المأوى والغذاء وتوفير مناهج ومدرسة.","Spontaneous Settlement","Open","Alqampoor - Bait Alzabidi",null,"QR",255,255,255]
[14,"Al Khadharish","2019-04-11","Hajjah","Abs","Al Wasat","الخداريش",null,null,null,"16.016931 43.266264",16.016931,43.266264,"2015-04-10",178,0,1,0,0,0,"Haradh","Hayran",null,null,0,0,0,0,null,0,"ADO","Yes","يحيى قبول","775681663","عواجي الزهل","777250950","Togeather","Private","Yes","No","No","Stay","None","No","No","No","Yes",0,null,"OXFAM","2019-12-01","None","None","None","None","WFP","2019-10-03","ADO","2019-10-02","None","None","None","None","None","None",0,1,1,0,0,0,0,0,0,1,1,0,"Must be purchased","Well / borehole","None","Minority (15-50%)","Health facility on site","Only part of children",1,1,0,0,null,0,1,0,0,null,0,1,0,0,null,0,0,0,1,"Shelter",null,"Health / nutrition",null,"Food",null,"WASH",null,"عواجي الزهل","Male","777250950","لا يوجد","Male","0","لا يوجد","Male","0","لا يوجد","Male","0","لا يوجد","Male","0","يحيى قبول "," ADO ",null,775881663,"نحتاج مدارس - خدمات صحيه - مأوى مواد ايوائيه - غذائية - كاش","المجتمع النازح بحاجه الى سد احتياجاتهم من ماء وماوى وغذاء وحمام","Spontaneous Settlement","Open","Almebsham",null,"MM",255,255,255]
[15,"Al Kharaib","2019-04-11","Hajjah","Abs","Al Wasat","الخرايب ","Gathah",null,null,"16.031086 43.169133",16.031085999999998,43.169133000000002,"2015-04-10",35,0,1,0,0,0,"Haradh","Abs",null,"Hayran",0,0,0,0,null,0,"ADO","Yes","يحيى قبول","775841663","علي محمد علي هادي","777832758","Separated","Private","No","No","No","Stay","None","No","No","No","Yes",0,null,"NRC","2019-10-01","None","None","None","None","WFP","2019-10-02","None","None","None","None","None","None","None","None",0,1,0,0,1,0,0,0,0,0,1,1,"Must be purchased","Well / borehole","None","Minority (15-50%)","No-one has access","All children at site",1,1,0,0,null,0,1,0,0,null,1,1,0,0,null,0,0,0,1,"Shelter",null,"Food",null,"WASH",null,"Health / nutrition",null,"علي محمد علي هادي","Male","777832752","لا يوجد","Male","0","ابراهيم علي عبدالله","Male","0","لا يوجد","Male","0","لا يوجد","Male","0","يحيى قبول "," ADO ",null,775841663,"توفير طاقات شمسيه , توفير خدمات صحية","لا توجد ملاحظات","Spontaneous Settlement","Open","Almahamerah",null,"MH",255,255,255]
[16,"Al Dabayah","2019-04-12","Hajjah","Abs","Al Wasat","الدبايه",null,null,null,"16.018786 43.211372",16.018785999999999,43.211371999999997,"2015-04-02",330,0,1,0,0,0,"Haradh","Abs",null,"Hayran",0,0,0,0,null,0,"ADO","Yes","يحيى قبول","0",null,null,"Separated","Private","Yes","No","No","Stay","None","Yes","No","No","No",0,null,"ADO","2019-11-02","OXFAM","2019-01-13","None","None","WFP","2019-11-03","ADO","2019-10-03","ADO","2019-01-13","None","None","None","None",0,1,0,0,0,0,0,0,0,0,1,1,"Free access for all","Water harvesting","None","Minority (15-50%)","No-one has access","Only part of children",0,1,0,0,null,0,1,0,0,null,0,1,1,0,null,0,0,0,1,"Food",null,"WASH",null,"Shelter",null,"Livelihoods",null,"لا يوجد","Male","0","لا يوجد","Male","0","لا يوجد","Male","0","لا يوجد","Male","0","لا يوجد","Male","0","لا يوجد",null,null,null,"لا يوجد","لا يوجد","Spontaneous Settlement","Open","Al Mesbar",null,"ER",255,255,255]
[17,"Al Dhahyah","2019-04-10","Hajjah","Abs","Al Wasat","الظهيه ",null,null,null,"16.0287 43.234892",16.028700000000001,43.234892000000002,"2015-04-09",75,0,1,0,0,0,"Haradh","None",null,null,0,0,0,0,null,0,"ADO","Yes","يحيى قبول","778541663","خليل جلال","777862089","Separated","Private","Yes","No","No","Stay","None","No","No","No","No",1,null,"NRC","2019-09-03","ADRA","2019-11-01","None","None","WFP","2019-09-03","None","None","None","None","None","None","None","None",0,1,0,0,0,0,0,0,0,0,1,0,"Must be purchased","Water harvesting","None","Over half (> 50%)","No-one has access","Only part of children",1,1,0,0,null,0,1,0,0,null,1,1,0,0,null,0,0,0,1,"Shelter",null,"Food",null,"WASH",null,null,null,"خليل جراد","Male","0","لا يوجد","Male","0","لا يوجد","Male","0","لا يوجد","Male","0","لا يوجد","Male","0","يحيى قبول "," ADO ",null,778541663,"نحتاج الى مواد غذائيه , ومواد ايوائيه مأوى , صرف صحي وحمامات , ومياه","توفير احتياجات الموقع","Spontaneous Settlement","Open","Al Matayn",null,"MN",255,255,255]
[18,"Alqafrah","2019-04-11","Hajjah","Abs","Al Wasat","القفره",null,null,null,"16.042742 43.219444",16.042742000000001,43.219444000000003,"2015-04-09",220,0,1,0,1,0,"Haradh","None",null,null,0,0,0,0,null,0,"ADO","Yes","يحيى قبول","775841663",null,null,"Togeather","Private","Yes","No","No","Stay","None","No","No","Yes","Yes",0,null,"None","None","OXFAM","2019-10-01","None","None","WFP","2019-10-03","ADO","2019-10-02","ADO","2019-10-02","None","None","None","None",0,0,1,0,0,0,0,0,0,0,1,0,"Must be purchased","Water harvesting","None","No access (0%)","Health facility on site","Only part of children",0,1,1,0,null,1,1,0,0,null,1,1,0,0,null,0,0,0,1,"Food",null,"WASH",null,"Shelter",null,"Health / nutrition",null,"لا يوجد","Male","0","لا يوجد","Male","0","لا يوجد","Male","0","لا يوجد","Male","0","لا يوجد","Male","0","لا توجد جهات اتصال التنسيق",null,null,null,"لا توجد ملاحظات","لا توجد ملاحظات","Spontaneous Settlement","Open","Al Moqanza'a",null,"MZ",255,255,255]
[19,"Alqampoor - Bait Alzabidi","2019-05-21","Hajjah","Abs","Al Wasat","القمبور - بيت الزبيدي",null,null,null,"16.044069 43174689","16.044069",43174689,"2018-11-01",56,null,1,null,null,null,"Haradh","Hayran",null,null,"0","0",null,null,"0","0","None","None",null,null,null,null,"Togeather","Private","No","No","No","Stay","None","No","No","No","No","Yes",null,"None","None","OXFAM","2019-04-20","None","None","WFP","2019-02-22","ADO","2019-03-20","OXFAM","2019-04-20","None","None","None","None",0,1,0,0,0,0,0,0,0,0,0,1,"Free access for all","Water harvesting","None","No access (0%)","No-one has access","No-one has access",0,0,0,1,"حالات نفسيه",0,1,0,0,null,0,1,0,0,null,0,0,0,1,"Other (specify)","حمامات","Food",null,"Other(Shelter Rehabilitation)","ترميم المنازل","Other (specify)","لا يوجد","ابراهيم حسن سويد","Male","737482036","لا يوجد","Male","0","احمد زبيدي","Male","0","لا يوجد","Male","0","محمد محمد الرزوم","Male","0","( رضوان "," OXFAM ",null," 737892184 ) - ( حسن مأمون ","النازحين بني حسن محرمين من المأوى 26 اسرة","يحتاجون حمامات","Spontaneous Settlement","Open","Almalakhah",null,"KH",255,255,255]
[20,"Almebsham","2019-04-07","Hajjah","Abs","Al Wasat","المبشام","Allati","Almahaterah",null,"16.027136 43.187969",16.027135999999999,43.187969000000002,"2015-04-06",84,0,1,0,0,0,"Haradh","Hayran",null,null,0,"Kushar",0,0,null,0,"ADO","Yes","يحيى قبول","775841663","صالح يوسي","772764498","Togeather","Public","No","No","No","Leave","None","No","Yes","Yes","Yes",0,null,"None","None","ADRA","2019-08-01","None","None","None","None","None","None","None","None","None","None","None","None",0,1,1,0,0,0,0,0,1,0,1,0,"Free access for all","Water harvesting","None","Minority (15-50%)","No-one has access","No-one has access",1,1,1,0,null,0,1,0,0,null,0,0,1,0,null,0,0,0,1,"Shelter",null,"Food",null,"WASH",null,"WASH",null,"دلال محمد حسين سبتان المالكي","Male","770947593","بدريه صغير غالب","Male","0","عبدالكريم علوي","Male","0","لا يوجد","Male","0","لا يوجد","Male","0","لا توجد جهات اتصال التنسيق",null,null,null,"نحتاج الى مأوى مياه - حمامات - غذاء","توفير احتياجات الموقع من مدرسة ومأوى وغذاء ومياه شرب.","Spontaneous Settlement","Open","Al Malab",null,"MB",255,255,255]
[21,"Almahamerah","2019-04-10","Hajjah","Abs","Al Wasat","المحامره",null,null,null,"16.022333 43.223775",16.022333,43.223775000000003,"2011-04-10",95,0,1,0,0,0,"Haradh","None",null,0,0,0,0,0,null,0,"ADO","Yes","يحيى قبول","777862089","خليل محمد جراد محمد","711339678","Separated","Public","Yes","Yes","Yes","Stay","Access to shelter Access to water","No","No","No","No",1,null,"None","None","None","None","None","None","None","None","None","None","None","None","None","None","None","None",0,0,0,0,0,1,1,1,0,0,1,0,"Must be purchased","Water trucking","None","Everyone (100%)","No-one has access","No-one has access",0,1,1,0,null,1,1,0,0,null,1,1,1,0,null,1,0,1,0,"Food",null,"Shelter",null,"Health / nutrition",null,"Livelihoods",null,"لا يوجد","Male","0","لا يوجد","Male","0","لا يوجد","Male","0","لا يوجد","Male","0","لا يوجد","Male","0","لا توجد جهات اتصال التنسيق",null,null,null,"نحتاج مأوى , مياه , تغذيه","النازحين بحاجه الى مأوى وغذاء ومياه","Spontaneous Settlement","Open","Al Manather",null,"MT",255,255,255]
[22,"Al Mesbar","2019-04-11","Hajjah","Abs","Al Wasat","المصبار",null,null,null,"16.024914 43.202444",16.024913999999999,43.202444,"2015-04-10",144,0,1,0,0,0,"Haradh","Hayran",null,null,0,0,0,0,null,0,"ADO","Yes","يحيى قبول","0","محجب","0","Separated","Private","No","No","No","Stay","None","Yes","Yes","Yes","Yes",0,null,"None","None","OXFAM","2019-12-01","None","None","DRC","2019-10-03","ADO","2019-10-02","ADO","2019-10-02","ADO","2019-10-02","None","None",0,1,1,0,0,0,0,0,1,0,1,1,"Free access for all","Water harvesting","None","No access (0%)","No-one has access","All children at site",1,0,0,0,null,0,1,0,0,null,1,1,0,0,null,0,0,1,1,"Shelter",null,"Other (Cash)","Cash","Food",null,"WASH",null,"حسن علي سالم مرزوقي","Male","738154841","لا يوجد","Male","0","صالح شوعي يونس","Male","7727644098","عصام علي حميد","Male","0","لا يوجد","Male","0","لا توجد جهات اتصال التنسيق",null,null,null,"لا توجد ملاحظات","لا توجد ملاحظات","Spontaneous Settlement","Open","Deer Dukhnah",null,"DN",255,255,255]
[23,"Al Matayn","2019-04-12","Hajjah","Abs","Al Wasat","المطاين",null,null,null,"16.032347 43.212414",16.032347000000001,43.212414000000003,"2015-04-12",153,0,1,0,0,0,"Haradh","None",null,null,0,0,0,0,null,0,"ADO","Yes","يحيى قبول","775641663","محجب","772961191","Separated","Private","Yes","No","No","Stay","None","Yes","No","No","Yes",0,null,"None","None","OXFAM","2019-12-01","None","None","WFP","2019-11-03","None","None","ADO","2019-12-01","None","None","None","None",0,1,0,0,0,0,0,0,1,0,1,0,"Must be purchased","Water trucking","None","Minority (15-50%)","No-one has access","Only part of children",0,1,1,0,null,1,1,0,0,null,1,1,0,0,null,0,0,0,1,"Food",null,"Shelter",null,"Health / nutrition",null,"WASH",null,"لاى يوجد","Male","0","لا يوجد","Male","0","لا يوجد","Male","0","لا يوجد","Male","0","لا يوجد","Male","0","لا توجد جهات اتصال التنسيق",null,null,null,"لا توجد ملاحظات","لا توجد ملاحظات","Spontaneous Settlement","Open","Ahmed Ali Balush",null,"AA",255,255,255]
[24,"Al Moqanza'a","2019-04-12","Hajjah","Abs","Al Wasat","المقنزع ",null,null,null,"16010569 4323999",16010569,4323999,"2018-04-09",100,0,1,0,0,0,"Haradh","Hayran",null,null,0,0,0,0,null,0,"ADO","Yes","يحيى مقبول","0","ابراهيم عبيد مشهور","716610270","Separated","Private","Yes","No","No","Stay","None","Yes","Yes","Yes","Yes",0,null,"None","None","None","None","None","None","None","None","None","None","None","None","None","None","None","None",0,0,1,0,0,0,0,0,0,0,1,0,"No-one has good access","Well / borehole","None","No access (0%)","No-one has access","No-one has access",1,1,0,0,null,1,1,1,0,null,0,1,0,0,null,1,0,0,0,"WASH",null,"Food",null,"Shelter",null,"Health / nutrition",null,"احمد يحيى حربي","Male","713318953","ابراهيم عبيد مشهور","Male","716610270","ابراهيم صغير غالب حداد","Male","771076019","محمد علي شاميه","Male","716695426","شايع عمر نقار","Male","777588471","لا توجد جهات اتصال التنسيق",null,null,null,"توفير عيادات متنقله لتقديم بعض الخدمات الصحية الحصول على مياه صالحة للشرب","توفير مأوى وغذاء وماء","Spontaneous Settlement","Open"," Aljahaferah",null,"FH",255,255,255]
[25,"Almalakhah","2019-04-11","Hajjah","Abs","Al Wasat","الملاخة",null,null,null,"16.012608 43.251606",16.012608,43.251606000000002,"2015-04-04",376,0,1,0,0,0,"Haradh","Hayran","None",null,0,0,0,0,null,0,"ADO","Yes","يحيى قبول","775841663","عواجي الزهل","775841663","Separated","Private","Yes","No","No","Stay","None","No","No","No","Yes",0,null,"None","None","ADRA","2019-12-01","None","None","WFP","2019-09-03","None","None","None","None","None","None","None","None",0,1,0,0,1,0,0,0,0,0,1,1,"Must be purchased","Well / borehole","None","Minority (15-50%)","Only host community","No-one has access",1,1,0,0,null,0,1,0,0,null,1,1,0,0,null,0,0,0,1,"Shelter",null,"Health / nutrition",null,"Food",null,"WASH",null,"عواجي الزهل","Male","777250950","لا يوجد","Male","0","لا يوجد","Male","0","لا يوجد","Male","0","لا يوجد","Male","0","يحيى قبول "," ADO ",null,775882663,"الاحتياجات الاساسيه للنازحين غذاء وماء وحمامات","توفير الاحتياجات النازحين من مأوى وغذاء وحمامات.","Spontaneous Settlement","Open"," Aljamakhyah",null,"KO",255,255,255]
[26,"Al Malab","2019-04-29","Hajjah","Abs","Al Wasat","الملعب",null,null,null,"16.00745 43.245369",16.007449999999999,43.245368999999997,"2015-01-01",125,0,1,0,0,0,"Haradh","Hayran","None",null,0,0,0,0,null,0,"ADO","Yes","فواد جعمل","0","علي حسني","714925821","Separated","Private","Yes","No","No","Stay","None","No","No","Yes","No",0,null,"None","None","OXFAM","2019-01-30","None","None","SHS","2019-01-30","ADO","2019-01-30","None","None","ADO - OXFAM","2019-01-30","None","None",0,1,0,0,0,0,0,0,0,0,1,0,"Problem only for IDPs","Well / borehole","None","Minority (15-50%)","No-one has access","All children at site",0,1,1,0,null,0,1,0,0,null,0,1,0,0,null,0,0,0,1,"Food",null,"WASH",null,"Health / nutrition",null,"Shelter",null,"علي حسين بخيتي","Male","714925821","لا يوجد","Male","0","لا يوجد","Male","0","لا يوجد","Male","0","لا يوجد","Male","0","لا توجد جهات اتصال التنسيق",null,null,null,"لا توجد ملاحظات","لا توجد ملاحظات","Spontaneous Settlement","Open"," Alhanbi",null,"BI",255,255,255]
[27,"Al Manather","2019-04-11","Hajjah","Abs","Al Wasat","المناذر",null,null,null,"16.050339 43.193378",16.050339000000001,43.193378000000003,"2015-04-11",170,0,1,0,0,0,"Haradh","Hayran",null,null,0,0,0,0,null,0,"ADO","Yes","يحيى ابراهيم قبول","775841663","مسعود سعدان","736160848","Togeather","Private","Yes","No","No","Stay","None","No","No","No","No",1,null,"DRC","2019-12-01","None","None","None","None","WFP","2019-10-03","ADO","2019-10-03","OXFAM","2019-12-01","None","None","None","None",0,1,1,0,0,0,0,0,1,0,1,1,"Free access for all","Well / borehole","None","No access (0%)","No-one has access","Only part of children",0,0,1,0,null,0,1,0,0,null,0,1,0,0,null,0,0,0,1,"Food",null,"WASH",null,"Shelter",null,"Health / nutrition",null,"مسعود شوعي سعدان علوي","Male","736160848","لا يوجد","Male","0","ابراهيم بهلول","Male","711347483","محمد رداع","Male","0","لا يوجد","Male","0","لا توجد جهات اتصال التنسيق",null,null,null,"لا توجد ملاحظات","لا توجد ملاحظات","Spontaneous Settlement","Open","Al Sharaeah",null,"EA",{"$f":"IF($EK$2=$ED34,EL$2,EL$3)","v":255},{"$f":"IF($EK$2=$ED34,EM$2,EM$3)","v":255},{"$f":"IF($EK$2=$ED34,EN$2,EN$3)","v":255}]
[28,"Deer Dukhnah","2019-04-11","Hajjah","Abs","Al Wasat","دير دخنه",null,null,null,"16.055597 43.196997",16.055596999999999,43.196997000000003,"2015-04-10",81,0,1,0,0,0,"Haradh","None",null,null,0,0,0,0,null,0,"ADO","Yes","يحيى ابراهيم مقبول","778541663","محجب","0","Separated","Private","No","No","No","Stay","None","No","Yes","Yes","No",0,null,"ADO","2019-09-02","OXFAM","2019-12-01","None","None","DRC","2019-12-02","ADO","2019-12-01","ADO","2019-10-02","None","None","None","None",0,1,1,0,0,0,0,0,1,0,0,1,"Free access for all","Water harvesting","None","Over half (> 50%)","Health facility on site","Only part of children",1,1,1,0,null,0,1,0,0,null,1,0,0,0,null,0,0,0,1,"Food",null,"WASH",null,"Shelter",null,"Other (specify)","Cash","محمد علي محمد رسم","Male","772584078","علي مرزوقي","Male","0","علي محمد شوعي رسم","Male","772584078","لا يوجد","Male","0","لا يوجد","Male","0","لا توجد جهات اتصال التنسيق",null,null,null,"لا توجد ملاحظات","لا توجد ملاحظات","Spontaneous Settlement","Open"," Altaweel",null,"TL",255,255,255]
[29,"Ahmed Ali Balush","2019-04-10","Hajjah","Abs","Bani Ethabi","احمد علي بلوش",null,null,null,"15.881917 43.049286",15.881917,43.049286000000002,"2016-04-09",89,0,1,0,0,0,"Haradh","Abs","None",null,0,0,0,0,null,0,"ADO","Yes","يحيى قبول","775841663","ياسر بلوشي","716111378","Separated","Private","Yes","No","No","Stay","None","No","No","No","Yes",0,null,"None","None","SFD","2019-11-01","None","None","WFP","2019-02-27","None","None","None","None","None","None","None","None",0,1,0,0,0,0,0,0,0,0,1,0,"Must be purchased","Well / borehole","None","Minority (15-50%)","No-one has access","Only part of children",1,1,0,0,null,0,1,0,0,null,1,1,0,0,null,0,0,0,1,"Shelter",null,"WASH",null,"Food",null,"Health / nutrition",null,"ياسر بلوشي","Male","716111378","لا يوجد","Male","0","لا يوجد","Male","0","لا يوجد","Male","0","لا يوجد","Male","0","يحيى قبول "," ADO ",null,775841663,"نحتاج الى مأوى , غذاء","توفير احتياجات للموقع.","Spontaneous Settlement","Open"," Altaweelah",null,"WL",255,255,255]
[30," Aljahaferah","2019-03-12","Hajjah","Abs","Bani Ethabi","الجحافره",null,null,null,"15.989592 43.041289",15.989592,43.041288999999999,"2016-01-01",52,0,1,0,0,0,"Haradh","Hayran","None",null,0,0,0,0,null,0,"ADO","Yes","Mohammed Hadi","713102085","علي ابراهيم ابراهيم جحفره","715632554","Separated","Private","Yes","No","No","Stay","None","No","No","No","No",1,null,"Oxfam","2018-12-13","ADRA","2019-11-01","None","None","WFP","2019-11-01","None","None","None","None","None","None","None","None",0,1,1,0,0,0,0,0,1,0,1,0,"Must be purchased","Well / borehole","None","Minority (15-50%)","No-one has access","Only part of children",0,1,0,0,"N/A",0,1,0,0,"N/A",1,1,0,0,"N/A",0,0,0,1,"Shelter",null,"Food",null,"WASH",null,"Health / nutrition",null,"علي ابراهيم ابراهيم جحفره","Male","715632554","N/A","Male","0","ابراهيم علي محمد حجفره","Male","715632554","N/A","Male","0","N/A","Male","0","N/A","ADO",null,713102089,"بحاجه الى ( مأوى - غذاء - حمامات وصرف صحي )/ They need ( Shelter, Food, Wash and atrins","توفير احتياجات المأوى والصرف الصحي.","Spontaneous Settlement","Open","Alfalflyah",null,"LY",255,255,255]
[31," Aljamakhyah","2019-03-12","Hajjah","Abs","Bani Ethabi","الجماخيه",null,null,null,"15.975797 43.045275",15.975797,43.045274999999997,"2015-01-01",150,0,1,0,0,0,"Haradh","Hayran","None",null,0,0,0,0,null,0,"ADO","Yes","Mohammed Hadi","713102085","احمد محمد عيسى خمج","714282216","Separated","Private","Yes","No","No","Stay","None","No","No","No","No",1,null,"Oxfam","2019-01-13","ADRA","2019-11-01","None","None","WFP","2019-11-01","None","None","None","None","None","None","None","None",0,1,0,0,0,0,0,0,0,0,1,0,"Must be purchased","Other (specify)","Water Project","Minority (15-50%)","Only host community","No-one has access",0,1,0,0,"N/A",0,1,0,0,"N/A",1,1,0,0,"N/A",0,0,0,1,"Shelter",null,"Food",null,"WASH",null,null,null,"احمد محمد عيسى خمج","Male","714282216","N/A","Male","0","جمخ علي احمد جمخ","Male","7168171291","N/A","Male","0","N/A","Male","0","N/A","ADO",null,713102088,"نحتاج ( مدرسة اتعليم أولادنا - مأوى - حمامات وصرف صحي )/ They need ( School for chilren education, Shelter, Wash and Latrins","هنم بحاجة الى  مدرسة لان مدرستهم تهدمت والاطفال منذ عام , يحتاجون مأوى وحمامات.","Spontaneous Settlement","Open","Al Qahmah",null,"QQ",255,255,255]
[32," Alhanbi","2019-03-12","Hajjah","Abs","Bani Ethabi","الحنبي",null,null,null,"16.004203 43.064722",16.004203,43.064722000000003,"2015-03-11",72,0,1,0,0,0,"Haradh","Midi","Abs",0,0,0,0,0,null,0,"ADO","Yes","Mohammed Hadi","713102085","احمد عيسى الطويل","716599470","Togeather","Private","Yes","No","No","Stay","None","No","No","No","No",1,null,"Oxfam","2018-12-13","None","None","None","None","WFP","2019-11-02","None","None","None","None","None","None","None","None",0,1,1,0,0,0,0,0,0,0,1,0,"Must be purchased","Other (specify)","Water Project","Minority (15-50%)","No-one has access","All children at site",0,1,0,0,"N/A",0,1,0,0,"N/A",1,1,0,0,"N/A",0,0,0,1,"Shelter",null,"Food",null,"Health / nutrition",null,null,null,"احمد عيسى الطويل","Male","716599470","N/A","Male","0","N/A","Male","0","N/A","Male","0","N/A","Male","0","N/A","ADO","N/A",713102092,"احتياجات المجتمع للمأوى والغذاء والصرف الصحي/They need ( Shelter, Food and Wash)","توفير صرف صحي وملأوى وغذاء","Spontaneous Settlement","Open","Al Mabahesah",null,"SS",255,255,255]
[33,"Al Sharaeah","2019-04-10","Hajjah","Abs","Bani Ethabi","الشراعيه",null,null,null,"15.814956 43.024411",15.814956,43.024411000000001,"2015-04-27",30,0,1,0,0,0,"Haradh","Midi","Hayran",null,0,0,0,0,null,0,"ADO","Yes","يحيى قبول","775841603","محمد مكسر","0","Togeather","Private","No","No","No","Stay","None","No","No","No","No",1,null,"None","None","None","None","None","None","WFP","2019-09-02","None","None","None","None","None","None","None","None",0,1,1,0,0,0,0,0,0,0,1,0,"Must be purchased","Well / borehole","None","Minority (15-50%)","No-one has access","Only part of children",1,1,0,0,null,1,1,0,0,null,1,1,0,0,null,0,0,0,1,"Shelter",null,"WASH",null,"Food",null,null,null,"محمد مكسر","Male","0","لا يوجد","Male","0","لا يوجد","Male","0","لا يوجد","Male","0","لا يوجد","Male","0","يحيى مقبول "," ADO ",null,7758411663,"تحتاج الى مواد ايوائيه - غذاء وماوى وصرف صحي.","نوفير احتياجات النازحين - ماوى وغذاء","Spontaneous Settlement","Open"," Almajduaya",null,"MJ",255,255,255]
[34," Altaweel","2019-03-12","Hajjah","Abs","Bani Ethabi","الطويل",null,null,null,"16.006756 43.085894",16.006755999999999,43.085894000000003,"2015-03-11",40,0,1,0,0,0,"Haradh","Midi","Hayran",null,0,0,0,0,null,0,"ADO","Yes","Mohammed Hadi","713102085","ابراهيم محمد علي بلال","715127660","Separated","Private","No","No","No","Stay","None","No","No","Yes","No",0,null,"Oxfam","2018-12-13","None","None","None","None","WFP","2019-11-02","None","None","None","None","None","None","None","None",0,1,0,0,0,0,0,0,0,0,1,0,"Must be purchased","Other (specify)","Water Project","Minority (15-50%)","No-one has access","All children at site",0,1,0,0,"N/A",0,1,0,0,"N/A",1,1,0,0,"N/A",0,0,0,1,"Shelter",null,"Food",null,"WASH",null,"Health / nutrition",null,"احمد عيسى الطويل","Male","716599470","N/A","Male","0","N/A","Male","0","N/A","Male","0","N/A","Male","0","N/A","ADO","N/A",713102093,"نحن نحتاج الى مأوى وحمامات ووحدة صحية ومياه للشرب./ We need ( Shelter, Latrins, Health Care Unit and Water for drinking)","توفير احتياجات الموقع من مأوى وحمامات وغذاء.","Spontaneous Settlement","Open","Al Maruf",null,"UF",255,255,255]
[35," Altaweelah","2019-03-11","Hajjah","Abs","Bani Ethabi","الطويله",null,null,null,"16.002118 43.00697",16.002117999999999,43.006970000000003,"2019-03-11",35,0,1,0,0,0,"Haradh","Abs","None",0,0,0,0,0,null,0,"ADO","Yes","Mohammed Hadi","713102085","ابراهيم محمد علي بلال","715127660","Separated","Private","Yes","No","No","Stay","None","No","No","No","No",1,null,"Oxfam","2018-12-12","None","None","None","None","WFP","2019-10-01","None","None","None","None","None","None","None","None",0,1,1,0,0,0,0,0,0,0,1,0,"Must be purchased","Well / borehole","None","Minority (15-50%)","No-one has access","Only part of children",0,1,0,0,"N/A",1,1,0,0,"N/A",1,1,1,0,"N/A",0,0,0,1,"Shelter",null,"Food",null,"WASH",null,"Health / nutrition",null,"ابراهيم محمد علي بلال","Male","715127000","N/A","Male","0","N/A","Male","0","N/A","Male","0","N/A","Male","0","N/A","ADO","N/A",713102097,"بحاجة الى مأوى وغذاء وصرف صحي./ They need ( Shelter, Food and Wash)","توفير ( المأوى - الغذاء الحمامات ) ","Spontaneous Settlement","Open"," Almakaserah",null,"KS",255,255,255]
[36,"Alfalflyah","2019-05-20","Hajjah","Abs","Bani Ethabi","الفلفليه",null,null,null,"15.874167 43.069353","15.874167","43.069353","2015-05-30",135,null,1,1,null,null,"Haradh","Hayran","None",null,"0","0",null,null,"0","0","None","None",null,null,null,null,"Togeather","Private","Yes","No","No","Stay","None","No","No","Yes","No","No",null,"None","None","OXFAM","2019-02-21","None","None","None","None","None","None","SDF","2019-02-21","OXFAM","2019-02-21","None","None",0,1,1,0,0,0,0,0,0,0,1,0,"Free access for all","Water harvesting","None","Minority (15-50%)","No-one has access","All children at site",0,1,0,0,null,0,1,0,0,null,0,1,0,0,null,0,0,0,1,"Food",null,"Health / nutrition",null,"Shelter",null,"Other (specify)","لا يوجد","ياسر احمد بلوشي","Male","716111378","لا يوجد","Male","0","لا يوجد","Male","0","لا يوجد","Male","0","لا يوجد","Male","0","لا توجد جهات اتصال التنسيق",null,null,null,"لا توجد ملاحظات","تم توزيع الغذاء العالمي ل 30 حاله فقط للمخيم","Spontaneous Settlement","Open","Alnawasherah",null,"WA",255,255,255]
[37,"Al Qahmah","2019-05-11","Hajjah","Abs","Bani Ethabi","القحمه",null,null,null,"15.994967 43.082361",15.994967000000001,43.082360999999999,"2015-01-01",34,0,1,0,0,0,"Haradh","Midi","None",0,0,0,0,0,null,0,"ADO","Yes","يحيى قبول","775841663","ابراهيم علي جابر","713236683","Separated","Private","Yes","No","No","Stay","None","No","No","Yes","No",0,null,"None","None","None","None","None","None","None","None","None","None","None","None","None","None","None","None",0,1,1,0,0,0,0,0,0,1,0,1,"Must be purchased","Other (specify)","Water Project","Over half (> 50%)","No-one has access","Only part of children",1,1,0,0,null,1,0,0,0,null,0,1,0,0,null,0,0,0,1,"Food",null,"WASH",null,"Shelter",null,"Education",null,"علي عيسى مكين عضابي","Male","717178751","لا يوجد","Male","0","ابراهيم علي جابر","Male","713236683","لا يوجد","Male","0","لا يوجد","Male","0","يحيى قبول "," ِADO ",null,775841663,"نحتاج الى مأوى وغذاء وحمامات","توفير احتياجات الموقع من مأوى وغذاء وحمامات ووحدة صحية","Spontaneous Settlement","Open","Bani Ahmed",null,"HM",255,255,255]
[38,"Al Mabahesah","2019-04-15","Hajjah","Abs","Bani Ethabi","المباحصه",null,null,null,"15.921281 43.035906",15.921281,43.035905999999997,"2015-04-09",39,0,1,0,0,0,"Haradh","Midi","None",null,0,0,0,0,null,0,"ADO","Yes","يحيى قبول","775841663","ابراهيم سوس","0","Togeather","Private","Yes","No","No","Stay","None","No","Yes","Yes","No",0,null,"None","None","None","None","None","None","WFP","2019-09-03","None","None","None","None","None","None","None","None",0,1,0,0,0,0,0,0,0,0,1,0,"Must be purchased","Other (specify)","Water Project","Minority (15-50%)","No-one has access","Only part of children",0,1,0,0,null,0,1,0,0,null,1,1,0,0,null,0,0,0,1,"Shelter",null,"Food",null,"WASH",null,"Livelihoods",null,"محمد مكسر","Male","0","لا يوجد","Male","0","لا يوجد","Male","0","لا يوجد","Male","0","لا يوجد","Male","0","يحيى قبول "," ِADO ",null,775841663,"نحتاج الى مأوى وغذاء وصحة","توفير احتياجات الموقع من مدارس ومواد غذائية ومواد ايوائية","Spontaneous Settlement","Open","Bani Alasnaj",null,"NA",255,255,255]
[39," Almajduaya","2019-03-12","Hajjah","Abs","Bani Ethabi","المجدوعيه",null,null,null,"15.983092 43.063875",15.983091999999999,43.063875000000003,"2015-01-01",30,0,1,0,0,0,"Haradh","Midi","Hayran",null,0,0,0,0,null,0,"ADO","Yes","Mohammed Hadi","713102085","محمد ابراهيم عضابي","712353575","Togeather","Private","Yes","No","No","Stay","None","No","No","Yes","No",0,null,"Oxfam","2018-12-13","None","None","None","None","WFP","2019-11-01","None","None","None","None","None","None","None","None",0,1,0,0,0,0,0,0,0,0,1,0,"Must be purchased","Water trucking","None","Minority (15-50%)","No-one has access","Only part of children",0,1,0,0,"N/A",0,1,0,0,"N/A",1,1,0,0,"N/A",0,0,0,1,"Shelter",null,"Food",null,"WASH",null,"Health / nutrition",null,"محمد ابراهيم عسر عضابي","Male","712353570","N/A","Male","0","N/A","Male","715814128","N/A","Male","0","N/A","Male","0","N/A","ADO",null,713102086,"يتحتاجون (  مأوى - مواد صحية  - غذاء - وحمامات )  /                                 They need ( Shelter , Health Items, Nutrition, Latrins)","توفير الخدمات الصحية وتوفير الخدمات المأوى والحمامات.","Spontaneous Settlement","Open"," Bani Belal",null,"BA",255,255,255]
[40,"Al Maruf","2019-04-11","Hajjah","Abs","Bani Ethabi","المعروف",null,null,null,"16.011097 43.077278",16.011096999999999,43.077278,"2015-04-09",150,0,1,0,0,0,"Haradh","Midi","Hayran",null,0,0,0,0,null,0,"ADO","Yes","يحيى ابراهيم قبول","775841663","ابراهيم موسى عضابي","715131968","Separated","Private","Yes","No","No","Stay","None","No","No","No","No",1,null,"None","None","None","None","None","None","None","None","None","None","None","None","None","None","None","None",0,0,1,0,0,0,0,0,0,0,1,0,"Must be purchased","Other (specify)","Water Project","No access (0%)","No-one has access","All children at site",0,1,0,0,null,1,0,0,0,null,1,0,0,0,null,0,0,0,1,"Food",null,"WASH",null,"Shelter",null,"Health / nutrition",null,"محمد عبدالله علي مضمون","Male","711543113","لا يوجد","Male","0","احمد محمد معروف","Male","0","لا يوجد","Male","0","لا يوجد","Male","0","يحيى قبول "," ADO ",null,775841663,"نحتاج الى مواد غذائيه , ومأوى ,  حمامات , وحدة صحية","توفير احتياجات الموقع ( المأوى - الغذاء - الحمامات )","Spontaneous Settlement","Open","Bani Balush",null,"LS",255,255,255]
[41," Almakaserah","2019-03-12","Hajjah","Abs","Bani Ethabi","المكاسره",null,null,null,"15.949547 43.028636",15.949547000000001,43.028635999999999,"2015-03-11",15,0,1,0,0,0,"Haradh","Midi","Hayran",null,0,0,0,0,null,0,"ADO","Yes","Mohammed Hadi","713102085","محمد مكسر","717364126","Separated","Private","Yes","No","No","Stay","None","No","No","No","No",1,null,"Oxfam","2018-12-13","None","None","None","None","WFP","2018-12-13","None","None","None","None","None","None","None","None",0,1,0,0,0,0,0,0,0,0,1,0,"Must be purchased","Other (specify)","Water Project","Minority (15-50%)","No-one has access","All children at site",0,1,0,0,"N/A",0,1,0,0,"N/A",1,1,0,0,"N/A",0,0,0,1,"Shelter",null,"Food",null,"WASH",null,"Education",null,"ابراهيم مكسر","Male","717364126","N/A","Male","0","ابراهيم مكسر","Male","717364126","N/A","Male","0","N/A","Male","0","N/A","ADO","N/A",713102096,"يحتاجون الى مدرسة/ They need School","توفير احتياجات للموقع","Spontaneous Settlement","Open"," Bani Jurdan",null,"JN",255,255,255]
[42,"Alnawasherah","2019-04-05","Hajjah","Abs","Bani Ethabi","النواشره",null,null,null,"15.923875 42.984231",15.923875000000001,42.984231000000001,"2015-04-04",66,0,1,0,0,0,"Haradh","Abs","None",null,0,0,0,0,null,0,"ADO","Yes","يحيى قبول","775841663","ابراهيم موش","0","Togeather","Private","Yes","No","No","Stay","None","No","No","No","Yes",0,null,"None","None","None","None","None","None","WFP","2019-04-02","None","None","None","None","None","None","None","None",0,1,1,0,0,0,0,0,0,0,1,0,"Free access for all","Well / borehole","None","No access (0%)","No-one has access","No-one has access",0,1,0,0,null,0,1,0,0,null,0,1,0,0,null,0,0,0,1,"WASH",null,"Food",null,"Health / nutrition",null,"Shelter",null,"عيسى مكسر","Male","0","لا يوجد","Male","0","علي عيسى مكسر","Male","0","لا يوجد","Male","0","لا يوجد","Male","0","يحيى قبول "," ADO ",null,778561663,"نحتاج الى مأوى - حمامات - غذاء","توفير احتياجات الموقع","Spontaneous Settlement","Open","Bani Saweed",null,"SW",255,255,255]
[43,"Bani Ahmed","2019-04-10","Hajjah","Abs","Bani Ethabi","بني احمد",null,null,null,"15.856481 43.013083",15.856481,43.013083000000002,"2015-04-09",29,0,1,0,0,0,"Haradh","Midi","Hayran",null,0,0,0,0,null,0,"ADO","Yes","يحيى قبول","775841663","ياسر بلوش","713114378","Togeather","Private","Yes","No","No","Stay","None","No","No","No","No",1,null,"None","None","None","None","None","None","WFP","2019-09-02","None","None","None","None","None","None","None","None",0,1,1,0,0,0,0,0,1,0,1,0,"Must be purchased","Well / borehole","None","Minority (15-50%)","No-one has access","Only part of children",1,1,0,0,null,0,1,0,0,null,1,1,0,0,null,0,0,0,1,"Shelter",null,"WASH",null,"Food",null,"Health / nutrition",null,"ياسر بلوش","Male","713111378","لا يوجد","Male","0","لا يوجد","Male","0","لا يوجد","Male","0","لا يوجد","Male","0","يحيى قبول "," ADO ",null,775841663,"نحتاج ( ماء - غذاء - مأوى - مدرسة )","توفير احتياجات الموقع من مأوى وغذاء","Spontaneous Settlement","Open","Bani Kubah",null,"KB",255,255,255]
[44,"Bani Alasnaj","2019-04-10","Hajjah","Abs","Bani Ethabi","بني الاصنج",null,null,null,"15.862947 43.042614",15.862947,43.042614,"2015-04-04",72,0,1,0,0,0,"Haradh","Abs","None",null,0,0,0,0,null,0,"ADO","Yes","يحيى قبول","775841663","ياسر بلوش","716111378","Separated","Private","Yes","No","No","Return","None","No","Yes","No","Yes",0,null,"OXFAM","2019-11-01","SFD","2019-11-01","None","None","WFP","2019-09-03","None","None","None","None","None","None","None","None",0,1,1,0,0,0,0,0,0,0,1,0,"Must be purchased","Well / borehole","None","Minority (15-50%)","No-one has access","Only part of children",1,1,0,0,null,0,1,0,0,null,1,0,0,0,null,1,0,0,0,"Shelter",null,"WASH",null,"Food",null,null,null,"ياسر بلوشي","Male","716111378","لا يوجد","Male","0","لا يوجد","Male","0","لا يوجد","Male","0","لا يوجد","Male","0","يحيى قبول "," ADO ",null,775841663,"نحتاج الى ( مأوى - غذاء - مياه - صرف صحي )","توفير احتياجات الموقع","Spontaneous Settlement","Open"," Bani Alkadeem",null,"IM",255,255,255]
[45," Bani Belal","2019-04-12","Hajjah","Abs","Bani Ethabi","بني بلال",null,null,null,"15.978889 43.0512",15.978889000000001,43.051200000000001,"2015-01-01",97,0,1,0,0,0,"Haradh","Midi","Hayran",null,0,0,0,0,null,0,"ADO","Yes","Mohammed Hadi","713102058","احمد حاج","7142882216","Separated","Private","Yes","No","No","Stay","None","No","No","No","No",1,null,"Oxfam","2019-11-01","ADRA","2018-11-12","None","None","WFP","2018-12-13","None","None","None","None","None","None","None","None",0,1,1,0,0,0,0,0,0,1,1,0,"Must be purchased","Other (specify)","Water Project","Minority (15-50%)","No-one has access","All children at site",0,1,0,0,"N/A",0,1,0,0,"N/A",1,1,0,0,"N/A",0,0,0,1,"Shelter",null,"Food",null,"WASH",null,"Education",null,"احمد حاج","Male","714282216","N/A","Male","0","ابراهيم عيسى بلال","Male","714540918","N/A","Male","0","N/A","Male","0","N/A","ADO",null,713102085,"احتياجتهم الاساسية هي : ( مأوى - غذاء - فصول دراسية للتعليم - صحة ودواء )/The primary needs is : ( Shelter - Education classes - Health)","الاحتياج الاساسي ( مأوى - صرف صحي )","Spontaneous Settlement","Open"," Jahrah",null,"JJ",255,255,255]
[46,"Bani Balush","2019-04-06","Hajjah","Abs","Bani Ethabi","بني بلوش",null,null,null,"15.881619 43.049283",15.881619000000001,43.049283000000003,"2016-04-05",35,0,1,0,0,0,"Haradh","Abs","Hayran",0,0,0,0,0,null,0,"ADO","Yes","يحيى قبول","775841663","ياسر بلوش","716111378","Separated","Private","No","No","No","Stay","None","No","No","No","No",1,null,"None","None","None","None","None","None","WFP","2019-05-03","None","None","OXFAM","2019-07-01","None","None","None","None",0,1,1,0,0,0,0,0,0,0,1,0,"Free access for all","Well / borehole","None","No access (0%)","No-one has access","No-one has access",1,1,0,0,null,1,1,0,0,null,1,1,0,0,null,0,0,0,1,"Shelter",null,"WASH",null,"Food",null,null,null,"ياسربلوش","Male","716111378","لا يوجد","Male","0","لا يوجد","Male","0","لا يوجد","Male","0","لا يوجد","Male","0","يحيى قبول "," ADO",null,null,"نحتاج الى مأوى - غذاء - حمامات - مياه","توفير احتياجات الموقع","Spontaneous Settlement","Open"," Habeel Dubn",null,"HN",255,255,255]
[47," Bani Jurdan","2019-03-12","Hajjah","Abs","Bani Ethabi","بني جردان",null,null,null,"15.982036 43.072589",15.982036000000001,43.072589000000001,"2015-03-11",76,0,1,0,0,0,"Haradh","Midi","None",0,0,0,0,0,null,0,"ADO","Yes","Mohammed Hadi","713102085","N/A","N/A","Separated","Private","Yes","No","No","Stay","None","No","No","Yes","No",0,null,"Oxfam","2018-12-13","None","None","None","None","WFP","2018-12-13","None","None","None","None","None","None","None","None",0,1,0,0,0,0,0,0,0,0,1,0,"Must be purchased","Other (specify)","Water Project","Minority (15-50%)","No-one has access","All children at site",0,1,0,0,"N/A",0,1,0,0,"N/A",1,1,0,0,"N/A",0,0,0,1,"Food",null,"Shelter",null,"WASH",null,"Education",null,"ابراهيم موسى عضابي","Male","715131968","N/A","Male","0","N/A","Male","0","N/A","Male","0","N/A","Male","0","N/A","ADO","N/A",713102095,"بحاجة الى ( غذاء - مأوى - حمامات - فصول دراسية )/ They need ( Food, Shelter,Latrins and Education Classes)","توفير احتياجات الموقع من غذاء ومأوى وحمامات.","Spontaneous Settlement","Open"," Ali Aswad",null,"CC",255,255,255]
[48,"Bani Saweed","2019-04-10","Hajjah","Abs","Bani Ethabi","بني سويد",null,null,null,"15.895411 43.050356",15.895410999999999,43.050356000000001,"2015-04-09",58,0,1,0,0,0,"Haradh","Abs","None",0,0,0,0,0,null,0,"ADO","Yes","يحيى قبول","775841663","ياسر بلوش","0","Separated","Private","Yes","No","No","Stay","None","No","No","No","Yes",0,null,"None","None","None","None","None","None","WFP","2019-09-03","None","None","None","None","None","None","None","None",0,1,1,0,0,0,0,0,0,0,1,0,"Must be purchased","Well / borehole","None","No access (0%)","Health facility on site","No-one has access",1,1,0,0,null,0,1,0,0,null,1,1,0,0,null,0,0,0,1,"Shelter",null,"WASH",null,"Food",null,null,null,"لا يوجد","Male","0","لا يوجد","Male","0","لا يوجد","Male","0","لا يوجد","Male","0","لا يوجد","Male","0","يحيى قبول "," ADO ",null,775841663,"نحتاج مدارس - غذاء - مأوى - حمامات - مياه شرب","توفير احتياجات النازحين من مأوى - غذاء - حمام - مياه شرب.","Spontaneous Settlement","Open"," Kadf Almahrah",null,"KM",255,255,255]
[49,"Bani Kubah","2019-04-10","Hajjah","Abs","Bani Ethabi","بني كبه",null,null,null,"15.838881 43.034997",15.838881000000001,43.034996999999997,"2019-04-10",15,0,1,0,0,0,"Haradh","Abs","None",0,0,0,0,0,null,0,"ADO","Yes","يحيى قبول","775841663","ياسر بلوش","0","Togeather","Private","Yes","No","No","Stay","None","No","No","No","Yes",0,null,"None","None","ADRA","2019-11-01","None","None","WFP","2019-09-03","None","None","None","None","None","None","None","None",0,1,0,0,0,0,0,0,0,0,1,0,"Must be purchased","Well / borehole","None","No access (0%)","No-one has access","No-one has access",1,1,0,0,null,0,1,0,0,null,1,1,0,0,null,0,0,0,1,"Shelter",null,"Food",null,"WASH",null,null,null,"ياسر بلوش","Male","716111378","لا يوجد","Male","0","لا يوجد","Male","0","لا يوجد","Male","0","لا يوجد","Male","0","لا توجد جهات اتصال التنسيق",null,null,null,"نحتاج الى مواد غذائية - ماوى - مياه","توفير احتياجات الموقع","Spontaneous Settlement","Open","Wehaish",null,"WS",255,255,255]
[50," Bani Alkadeem","2019-03-12","Hajjah","Abs","Bani Ethabi","بني كديم",null,null,null,"15.981542 43.056864",15.981541999999999,43.056863999999997,"2016-01-01",30,0,1,0,0,0,"Haradh","Midi","Hayran",null,0,0,0,0,null,0,"ADO","Yes","Mohammed Hadi","713102085","محمد محمد احمد كريم","715696554","Separated","Private","Yes","No","No","Stay","None","No","No","No","No",1,null,"Oxfam","2018-12-13","ADRA","2019-11-02","None","None","WFP","2018-11-12","None","None","None","None","None","None","None","None",0,1,1,0,0,0,0,0,0,0,1,0,"Must be purchased","Well / borehole","None","Minority (15-50%)","No-one has access","Only part of children",0,1,0,0,"N/A",0,1,0,0,"N/A",1,1,0,0,"N/A",0,0,0,1,"Shelter",null,"Food",null,"WASH",null,"Health / nutrition",null,"محمد محمد احمد كريم","Male","715696554","N/A","Male","0","علي محمد عضابي","Male","715152237","N/A","Male","0","N/A","Male","0","N/A","ADO","N/A",713102091,"يحتاجون ( مأوى - غذاء - صرف صحي )/ They need ( Shelter, Food and Wash)","توفير احتياجات الموق من ( مأوى - حمامات - غذاء )","Spontaneous Settlement","Open"," Alhjawerah ",null,"JW",255,255,255]
[51," Jahrah","2019-03-12","Hajjah","Abs","Bani Ethabi","جحره",null,null,null,"15.999056 43.097636",15.999056,43.097636000000001,"2015-03-11",18,0,1,0,0,0,"Haradh","Hayran",null,null,0,0,0,0,null,0,"ADO","Yes","Mohammed Hadi","713102085","ابراهيم عضابي","715131968","Separated","Private","Yes","No","No","Stay","None","No","No","No","No",1,null,"None","None","None","None","None","None","WFP","2019-11-02","None","None","None","None","None","None","None","None",0,1,0,0,0,0,0,0,1,0,1,0,"Must be purchased","Water trucking","None","Minority (15-50%)","No-one has access","Only part of children",1,1,0,0,"N/A",0,1,0,0,"N/A",0,1,0,0,"N/A",0,0,0,1,"Shelter",null,"Food",null,"WASH",null,"Health / nutrition",null,"محمد احمد محمد عضابي","Male","716776067","N/A","Male","0","محمد محمد ابراهيم هادي","Male","711921291","N/A","Male","0","N/A","Male","0","N/A","N/A","N/A","N/A","نحتاج الى مأوى - حمامات/ We need ( Shelter and Latrins)","هم يحتاجون الى خدمات صحية - مأوى - صرف صحي - غذاء","Spontaneous Settlement","Open","Alrwajeh",null,"EH",255,255,255]
[52," Habeel Dubn","2019-03-12","Hajjah","Abs","Bani Ethabi","حبيل دبن",null,null,null,"15.993722 43.052864",15.993722,43.052864,"2015-01-01",120,0,1,0,0,0,"Haradh","Midi","None",null,0,0,0,0,null,0,"ADO","Yes","Mohammed Hadi","713102085","احمد عيسى الطويل","716599470","Separated","Private","Yes","No","No","Stay","None","No","No","No","No",1,null,"Oxfam","2018-11-12","None","None","None","None","WFP","2018-11-12","None","None","None","None","None","None","None","None",0,1,0,0,0,0,0,0,0,0,1,0,"Must be purchased","Other (specify)","Water Project","Over half (> 50%)","Only host community","All children at site",0,1,0,0,"N/A",1,0,0,0,"N/A",1,1,0,0,"N/A",0,0,0,1,"Shelter",null,"Food",null,"WASH",null,"Health / nutrition",null,"احمد عيسى الطويل","Male","716599470","N/A","Male","0","احمد احمد عضابي","Male","77703221","N/A","Male","0","N/A","Male","0","N/A","ADO","N/A",713102089,"يحتاجون ( مأوى - حمامات - غذاء )/ They need (Shelter, Latrins and Food)","توفير احتياجات الموقع من ( مأوى - غذاء - حمامات - وحدة صحية )","Spontaneous Settlement","Open"," Alzalyah",null,"YH",255,255,255]
[53," Ali Aswad","2019-03-12","Hajjah","Abs","Bani Ethabi","علي أسود",null,null,null,"16.011108 43.054306",16.011108,43.054305999999997,"2015-01-01",60,0,1,0,0,0,"Haradh","Abs","None",null,0,0,0,0,null,0,"ADO","Yes","Mohammed Hadi","713102085","محمد ابراهيم عضابي","715380857","Togeather","Private","Yes","No","No","Stay","None","No","No","Yes","No",0,null,"Oxfam","2018-11-12","None","None","None","None","WFP","2018-11-12","None","None","None","None","None","None","None","None",0,1,0,0,0,0,0,0,0,0,1,0,"Free access for all","Other (specify)","Water Project","Minority (15-50%)","No-one has access","Only part of children",1,1,0,0,"N/A",0,1,0,0,"N/A",1,1,0,0,"N/A",0,0,0,1,"Shelter",null,"Food",null,"WASH",null,"Health / nutrition",null,"محمد ابراهيم عضابي","Male","715380857","N/A","Male","0","احمد يوسف زين عضابي","Male","711763146","N/A","Male","0","N/A","Male","0","N/A","ADO",null,713102087,"يحتاجون ( مأوى - غذاء - صرف صحي - حمامات )/ They need ( Shelter, Food, Wash and Latrins)","توفير احتياجات الموقع من مأوى وغذاء وحمامات","Spontaneous Settlement","Open"," Alzyad",null,"YD",255,255,255]
[54," Kadf Almahrah","2019-03-12","Hajjah","Abs","Bani Ethabi","كدف المهره",null,null,null,"15.945264 43.032508",15.945264,43.032508,"2015-03-11",64,0,1,0,0,0,"Haradh","Midi","None",null,0,0,0,0,null,0,"ADO","Yes","Mohammed Hadi","713102085","محمد مكسر","717364126","Togeather","Private","Yes","No","No","Stay","None","No","No","No","No",1,null,"Oxfam","2018-12-13","None","None","None","None","WFP","2018-12-13","None","None","Community","2018-12-13","None","None","None","None",0,1,1,0,0,0,0,0,1,0,1,0,"Must be purchased","Other (specify)","Water Project","Minority (15-50%)","No-one has access","All children at site",0,1,0,0,"N/A",0,1,0,0,"N/A",1,1,0,0,"N/A",0,0,0,1,"Shelter",null,"Food",null,"WASH",null,"Health / nutrition",null,"محمد مكسر","Male","717364126","N/A","Male","0","محمد مكسر","Male","717364126","N/A","Male","0","محمد مكسر","Male","717364126","N/A","ADO","N/A",713102090,"توفير الغذاء - المأوى - حمامات  - وحدة صحية/ They need ( Food, Shelter, Latrins and Health care Unit)","توفير احتياجات الموقع","Spontaneous Settlement","Open","Al Areadh",null,"ED",255,255,255]
[55,"Wehaish","2019-03-12","Hajjah","Abs","Bani Ethabi","وحيش ",null,null,null,"15.996175 43.073064",15.996174999999999,43.073064000000002,"2015-03-01",44,0,1,0,0,0,"Haradh","Midi","Hayran",null,0,0,0,0,null,0,"ADO","Yes","Mohammed Hadi","713102085","ابراهيم موسى عضابي","715131968","Separated","Private","Yes","No","No","Stay","None","No","No","No","No",1,null,"None","None","ADRA","2018-12-13","None","None","WFP","2018-12-13","None","None","None","None","None","None","None","None",0,1,0,0,0,0,0,0,0,0,1,1,"Problem only for IDPs","Other (specify)","Water Project","Minority (15-50%)","No-one has access","Only part of children",0,1,0,0,"N/A",0,1,0,0,"N/A",1,1,0,0,"N/A",0,0,0,1,"Shelter",null,"Food",null,"WASH",null,"Health / nutrition",null,"ابراهيم موسى عضابي","Male","715131968","N/A","Male","0","N/A","Male","0","N/A","Male","0","N/A","Male","0","N/A","ADO","N/A",713102094,"نحتاج الى ( مأوى - حمامات - وحدة صحية )/ They need ( Shelter, Latrins and Health Care Unit)","توفير احتياجات الموقع من مأوى وغذاء وحمامات.","Spontaneous Settlement","Open","Alghazi",null,"GZ",255,255,255]
[56," Alhjawerah ","2019-04-05","Hajjah","Abs","Bani Thawab"," الحجاوره",null,null,null,"15.993967 43.193008",15.993967,43.193007999999999,"2015-04-01",217,0,1,0,0,"Bakil Al-Mir","Midi","Abs","None",0,0,0,0,0,null,0,"None","None","N/A","N/A","محمد عرجاف","771840131","Togeather","Private","Yes","Yes","Yes","Stay","Renting","No","No","Yes","No",0,null,"NRC","2019-04-03","None","None","None","None","WFP - ADO","2019-06-01","None","None","None","None","None","None","None","None",0,1,0,0,0,0,0,0,1,1,1,1,"Must be purchased","Water trucking","None","Over half (> 50%)","Public health facility","Only part of children",0,1,0,0,"N/A",0,1,0,0,"N/A",1,1,0,0,"N/A",0,0,0,1,"Shelter",null,"WASH",null,"Food",null,"Health / nutrition",null,"محمد عرجاف","Male","772840313","صالح حدادي","Male","0","N/A","Male","0","N/A","Male","0","N/A","Male","0","N/A","N/A","N/A","N/A","نطالب بالتدخل حيث أن الموقع لم يستفيد من الحقيبة والسلات غذائية قبل اكثر من 3 اشهر./We demand the intervention as the site did not benefit from the kit and the food basket more than 3 months ago.","المكان مهمش حسب المعلومات التي أدلى بها الأخ محمد عرجاف.","Spontaneous Settlement","Open","Al Qaflah",null,"Ql",255,255,255]
[57,"Alrwajeh","2019-05-19","Hajjah","Abs","Bani Thawab","الرواجح",null,null,null,"15.986658 43.141425","15.986658","43.141425","2015-01-01",17,null,1,null,null,null,"Haradh","Abs","None","0","0","0",null,null,"0","0","None","None",null,null,"ابراهيم باري جعيدي","770461343","Togeather","Private","Yes","No","No","Stay","None","Yes","No","Yes","Yes","No",null,"NRC","2019-03-18","None","None","None","None","WFP","2019-04-18","None","None","None","None","None","None","None","None",0,1,1,0,0,0,0,0,0,0,1,0,"Must be purchased","Well / borehole","None","Minority (15-50%)","Health facility on site","Only part of children",0,0,1,0,null,0,1,0,0,null,1,0,0,0,null,0,0,0,1,"Shelter",null,"WASH",null,"Food",null,"Other (specify)","لا يوجد","محمد هادي راجحي","Male","736296007","لا يوجد","Male","0","ابراهيم موسى عرجاني","Male","777748113","لا يوجد","Male","0","لا يوجد","Male","0","( حسن مأمون "," NRC ",null," 775256112 )","بعض النازحين يعيشون في أماكن غير صالحه للسكن","لا توجد ملاحظات","Spontaneous Settlement","Open","Alkasarah - Wadi Qoor",null,"SR",255,255,255]
[58," Alzalyah","2019-04-05","Hajjah","Abs","Bani Thawab","الزعليه",null,null,null,"15.974719 43.20995",15.974719,43.209949999999999,"2015-04-22",365,0,1,0,0,"Bakil Al-Mir","Haradh","Abs","None",0,0,0,0,0,null,0,"ADO","Yes","عيسى ابوالقاسم","771377230","مريم احمد محمد يتيم","776091242","Togeather","Private","Yes","No","No","Stay","None","No","Yes","Yes","Yes",0,null,"NRC","2019-04-03","OXFAM - ADRA","2019-06-01","ADO","2019-01-04","WFP","2019-04-03","ADO","2019-04-02","OXFAM","2019-04-01","None","None","NRC","2019-04-03",0,1,0,0,0,0,0,0,1,0,1,1,"Must be purchased","Water trucking","None","Minority (15-50%)","Public health facility","All children at site",0,1,1,0,"N/A",1,1,0,0,"N/A",1,1,0,0,"N/A",0,0,0,1,"WASH",null,"Shelter",null,"Food","N/A",null,null,"N/A","Male","0","N/A","Male","0","يحي حزيبر","Male","772526028","N/A","Male","0","N/A","Male","0","Essa Abdalqasim","  ADO ","Coordinator ",771377230,"رغم التدخلات المختلفة الا أن لا زال بحاجة للمزيد من الدعم./ Despite various interventions but still needs more support.","لا يوجد ملاحظات. ( لم يتم كتابة احداثيات موقع مخيم الحجاوره من قبل الباحث ولذلك تم استخدام موقع درينا العليا )","Spontaneous Settlement","Open","Almajadar",null,"JR",255,255,255]
[59," Alzyad","2019-04-05","Hajjah","Abs","Bani Thawab","الزياد","Alqatafah",null,null,"15.975475 43.205433",15.975474999999999,43.205432999999999,"2015-05-27",175,0,1,1,0,"Bakil Al-Mir","Haradh","Abs","Hayran","Mustaba",null,0,"Aflah Ash Sham",0,null,0,"NRC","Yes","عبدالله يحي حسن قاسم","772643904","N/A","N/A","Togeather","Private","Yes","No","No","Return","None","No","Yes","Yes","Yes",0,null,"NRC","2019-04-03","OXFAM - NRC","2019-06-01","NRC","2019-02-06","None","None","NRC","2019-04-03","OXFAM","2019-05-03","None","None","None","None",1,0,0,0,1,0,0,0,0,0,1,0,"Must be purchased","Water trucking","None","Minority (15-50%)","No-one has access","Only part of children",1,1,1,0,"N/A",1,1,0,0,"N/A",0,1,1,0,"N/A",0,0,0,1,"Food","N/A","WASH","N/A","Health / nutrition","N/A",null,null,"عبدالله يحي حسن قاسم","Male","772643904","N/A","Male","0","N/A","Male","0","N/A","Male","0","N/A","Male","0"," Majed Ghailan)","ADO "," Officer  ",775221316,"قصور بسبب توافد النازحين بشكل يومي وبشكل مستمر./ Lack of access to displaced persons on a daily and continuous basis.","لا توجد ملاحظات. ( لم يتم كتابة احداثيات موقع مخيم الحجاوره من قبل الباحث ولذلك تم استخدام موقع درينا العليا )","Spontaneous Settlement","Open"," Almukhyam",null,"MK",{"$f":"IF($EK$2=$ED66,EL$2,EL$3)","v":255},{"$f":"IF($EK$2=$ED66,EM$2,EM$3)","v":255},{"$f":"IF($EK$2=$ED66,EN$2,EN$3)","v":255}]
[60,"Al Areadh","2019-04-24","Hajjah","Abs","Bani Thawab","العارض",null,null,null,"15.97395 43.183581",15.97395,43.183580999999997,"2017-04-24",60,0,1,0,0,0,"Haradh","Abs","Kushar",0,0,null,0,0,null,0,"None","None","N/A","N/A","N/A",null,"Separated","Private","Yes","Yes","No","Stay","None","No","Yes","Yes","Yes",0,null,"NRC","2019-03-23","OXFAM - ADRA","2019-03-23","None","None","WFP","2019-03-23","ADO","2019-03-23","None","None","None","None","None","None",0,1,0,0,0,0,0,0,0,0,1,1,"Must be purchased","Water trucking","None","No access (0%)","No-one has access","All children at site",1,1,1,1,"diarrhea",1,1,0,0,null,1,1,0,0,null,0,0,0,1,"Shelter",null,"WASH",null,"Health / nutrition",null,"Food",null,"محمد حسن شوقي مسرحي","Male","739008331","لا يوجد","Male","0","احمد شوعي علي مقبول","Male","0","لا يوجد","Male","0","لا يوجد","Male","0","لا يوجد",null,null,null,"لا توجد ملاحظات","لا توجد ملاحظات","Spontaneous Settlement","Open","Old City",null,"OC",255,255,255]
[61,"Alghazi","2019-04-23","Hajjah","Abs","Bani Thawab","الغازي - النسيم","Anasseem",null,null,"16.001417 43.186944",16.001417,43.186943999999997,"2018-08-20",320,0,1,1,0,0,"Midi","Abs","Hayran",null,0,0,0,0,null,0,"None","None","N/A","N/A","N/A",null,"Togeather","Private","No","Yes","Yes","Return","Land","No","Yes","Yes","No",0,null,"None","None","None","None","None","None","None","None","None","None","None","None","None","None","None","None",0,0,0,0,0,0,0,1,0,0,1,0,"Must be purchased","Water trucking","None","Minority (15-50%)","Public health facility","Only part of children",1,1,1,1,"diarrhea",1,1,1,0,null,1,1,0,0,null,0,0,0,1,"Shelter",null,"WASH",null,"Food",null,"Health / nutrition",null,"محمد احمد مرداس","Male","777651052","لا يوجد","Male","0","لا يوجد","Male","0","لا يوجد","Male","0","لا يوجد","Male","0"," انس الغباري "," ADRA "," منسق المركز ",777708016,"هناك خلاف بين المجتمع النازح مع المضيف على توفر الخدمات.","المكان غير مؤهل للنزوح مستقبلاً.","Spontaneous Settlement","Open","Almernaf",null,"NF",255,255,255]
[62,"Al Qaflah","2019-04-23","Hajjah","Abs","Bani Thawab","القفله ",null,null,null,"15.973811 43.210361",15.973811,43.210360999999999,"2017-06-22",270,0,1,0,0,0,"Haradh","Abs","Hayran",null,0,0,0,0,null,0,"None","None","N/A","N/A","N/A",null,"Separated","Public","Yes","No","No","Return","None","Yes","Yes","Yes","Yes",0,null,"NRC","2019-01-24","ADRA","2019-01-24","None","None","None","None","None","None","OXFAM","2019-01-23","MSF","2019-01-24","None","None",0,1,0,0,0,0,0,0,0,0,1,0,"Free access for all","Water trucking","None","Minority (15-50%)","Public health facility","Only part of children",0,1,1,0,null,1,1,1,0,null,1,1,0,0,null,0,0,0,1,"Shelter",null,"WASH",null,"Education",null,"Health / nutrition",null,"عبدالله الحملي","Male","772643904","لا يوجد","Male","0","لا يوجد","Male","0","لا يوجد","Male","0","لا يوجد","Male","0","لا توجد جهات اتصال التنسيق",null,null,null,"لا توجد ملاحظات","لا توجد ملاحظات","Spontaneous Settlement","Open","Al Muroor",null,"OR",255,255,255]
[63,"Alkasarah - Wadi Qoor","2019-05-20","Hajjah","Abs","Bani Thawab","الكساره - وادي قور ",null,null,null,"15.974331 43.245731","15.974331","43.245731","2018-11-01",280,null,1,null,null,null,"Haradh","Abs","Hayran",null,"0","0",null,null,"0","0","None","None",null,null,null,null,"Separated","Owner not known","No","No","No","Stay","None","Yes","Yes","Yes","No","No",null,"NRC","2019-02-21","None","None","None","None","WFP","2019-02-21","Jeel Albena","2019-03-19","None","None","OXFAM","2019-04-19","None","None",0,1,0,0,0,0,1,0,0,1,1,0,"Free access for all","Water trucking","None","Over half (> 50%)","Public health facility","All children at site",0,1,0,0,null,0,1,0,0,null,0,1,0,0,null,0,0,0,1,"Shelter",null,"Food",null,"Health / nutrition",null,"Other (specify)","حمامات","علي عبدالله صالح بكيلي","Male","713239315","لا يوجد","Male","0","عبدالله علي باشه","Male","715111309","شرقي قائد بكيلي","Male","712956493","لا يوجد","Male","0","( علياء "," OXFAM ",null," 737892174 ) - ( حسن مأمون ","لا توجد ملاحظات","الاغلبية يوجد لديهم مأوى من منظمة UNHCR","Spontaneous Settlement","Open","Almusala",null,"SA",255,255,255]
[64,"Almajadar","2019-05-20","Hajjah","Abs","Bani Thawab","المجدر",null,null,null,"15.950919 43.151843","15.950919","43.151843","2015-05-08",12,null,1,null,null,null,"Haradh","Abs",null,"0","0","0",null,null,"0","0","None","None",null,null,null,null,"Togeather","Private","No","Yes","No","Stay","None","No","No","Yes","No","No",null,"None","None","OXFAM","2019-04-19","None","None","WFP","2019-02-21","None","None","None","None","None","None","None","None",0,1,0,0,0,0,0,0,null,null,null,null,"Must be purchased","Water trucking","None","No access (0%)","Public health facility","All children at site",0,0,0,1,"لا يوجد",0,1,0,0,null,0,1,0,0,null,0,0,0,1,"WASH",null,"Food",null,"Other (specify)",null,"Other (specify)","لا يوجد","محمد علي سراج","Male","716618872","لا يوجد","Male","0","لا يوجد","Male","0","لا يوجد","Male","0","لا يوجد","Male","0","( فاطمه سالم عضابي "," OXFAM ",null," 730008044 )","لا توجد ملاحظات","لا توجد ملاحظات","Spontaneous Settlement","Open","Almaqaeshah - South",null,"MS",255,255,255]
[65," Almukhyam","2019-04-05","Hajjah","Abs","Bani Thawab","المخيم",null,null,null,"16.008431 43.200711",16.008431000000002,43.200710999999998,"2015-04-04",426,0,1,0,0,"Bakil Al-Mir","Midi","Abs","Mustaba","Kushar",null,null,0,0,null,0,"NAMSHA","Yes","مصطفى قبول","774086948","محمد علوان حمدي","711884840","Togeather","Private","Yes","No","No","Stay","None","No","Yes","Yes","Yes",0,null,"NRC","2019-04-03","ADRA","2019-04-02","None","None","WFP - ADO","2019-04-03","ADO","2019-04-01","None","None","None","None","None","None",0,1,0,0,1,0,0,0,1,1,1,1,"No-one has good access","Water trucking","None","Minority (15-50%)","Public health facility","Only part of children",1,1,0,0,"N/A",1,0,0,0,"N/A",1,1,0,0,"N/A",0,0,0,1,"Food","N/A","Shelter","N/A","WASH","N/A","Health / nutrition",null,"عبده خمج","Male","733838132","ابراهيم مسمار","Male","717000048","محمد علوان حمدي","Male","711884840","N/A","Male","0","N/A","Male","0","مصطفى قبول ","NAMCHA","N/A",774086948,"معظم النازحين القدامي محرومين فيما النازحين الجدد لم يتم تغطيتهم بالكامل كما انهم بحاجة ماسة لايصال مشروع المياه للجميع./Most of the old IDPs are deprived, while the new IDPs are not fully covered and are in dire need of delivering the water project to all.","الموقع بحاجة للمياه. لم يتم كتابة احداثيات موقع مخيم الحجاوره من قبل الباحث ولذلك تم استخدام موقع درينا العليا","Spontaneous Settlement","Open"," Maqaeshah - North ",null,"MQ",255,255,255]
[66,"Old City","2019-05-19","Hajjah","Abs","Bani Thawab","المدينه القديمه",null,null,null,"16.000121 43.115798","16.000121","43.115798","2015-05-02",380,null,1,null,null,null,"Haradh","Abs","Hayran",null,"0","0",null,null,"0","0","None","None",null,null,null,null,"Togeather","Private","No","Yes","Yes","Stay","None","No","No","Yes","Yes","No",null,"NRC","2019-03-18","ADRA","2019-02-20","None","None","WFP","2019-02-20","ADO","2019-02-20","OXFAM","2019-02-20","MSF","2019-02-20","None","None",0,1,0,0,0,0,0,0,1,1,1,0,"Free access for all","Water harvesting","None","Everyone (100%)","Public health facility","All children at site",0,0,1,0,null,0,1,0,0,null,0,1,0,0,null,0,0,0,1,"Shelter",null,"WASH",null,"Other (specify)","لا يوجد","Other (specify)","لا يوجد","اسد بديدي","Male","716380448","لا يوجد","Male","0","لا يوجد","Male","0","لا يوجد","Male","0","لا يوجد","Male","0","( حسن مأمون "," NRC ",null," 775256112 )","لا توجد ملاحظات","لا توجد ملاحظات","Spontaneous Settlement","Open","Almaqfa",null,"QF",255,255,255]
[67,"Almernaf","2019-04-23","Hajjah","Abs","Bani Thawab","المرناف",null,null,null,"15.991864 43.202208",15.991864,43.202207999999999,"2016-03-17",280,0,1,0,0,0,"Haradh","Abs","Hayran",null,0,0,0,0,null,0,"None","None","N/A","N/A","N/A",null,"Togeather","Private","No","Yes","Yes","Leave","Access to shelter Access to water","Yes","Yes","Yes","Yes",0,null,"None","None","None","None","None","None","None","None","None","None","None","None","None","None","None","None",0,0,0,0,0,0,0,1,0,0,0,1,"No-one has good access","Water harvesting","None","Minority (15-50%)","Public health facility","Only part of children",1,1,1,1,"diarrhea",1,1,1,0,null,1,0,1,0,null,0,0,0,1,"Shelter",null,"WASH",null,"Health / nutrition",null,"Food",null,"مريم بجاش","Female","771838334","لا يوجد","Male","0","لا يوجد","Male","0","لا يوجد","Male","0","لا يوجد","Male","0"," انس الغباري "," ADRA "," منسق المركز المجتمعي ",777708016,"المجتمع النازح يزداد يوم بعد يوم.","حالات النزوح الجديده مستمرة في التوافد في هذا المكان , المجتمع بحاجه الى توفير الخدمات للنازحين.","Spontaneous Settlement","Open","Al Methaq",null,"TQ",255,255,255]
[68,"Al Muroor","2019-04-23","Hajjah","Abs","Bani Thawab","المرور "," Alshaikh Zone",null,null,"16.000871 43.1986",16.000871,43.198599999999999,"2017-12-22",65,0,1,1,0,0,"Abs",null,null,null,0,0,0,0,null,0,"None","None","N/A","N/A","N/A",null,"Togeather","Private","Yes","No","No","Return","None","Yes","Yes","Yes","Yes",0,null,"None","None","None","None","None","None","None","None","None","None","None","None","None","None","None","None",0,0,1,0,0,0,0,1,0,0,1,0,"Must be purchased","Water harvesting","None","Minority (15-50%)","Public health facility","Only part of children",1,1,1,1,"diarrhea",1,1,1,0,null,1,0,0,0,null,0,0,0,1,"Food",null,"Education",null,"Shelter",null,"Health / nutrition",null,"لا يوجد","Male","0","لا يوجد","Male","0","لا يوجد","Male","0","لا يوجد","Male","0","لا يوجد","Male","0"," حسن مامون "," NRC "," منسق الاستجابه الطارئه ",775256112,"يحتاجون مياه وصرف صحي","لا يوجد خدمات كافية للمجتمع المضيف. ( لم يتم كتابة احداثيات موقع مخيم الحجاوره من قبل الباحث ولذلك تم استخدام موقع درينا العليا )","Spontaneous Settlement","Open","Alhejami",null,"JI",255,255,255]
[69,"Almusala","2019-04-23","Hajjah","Abs","Bani Thawab","المصلى",null,null,null,"16.002458 43.194731",16.002458000000001,43.194730999999997,"2018-07-07",325,0,1,0,0,0,"Haradh","Abs","Hayran",null,0,0,0,0,null,0,"None","None","N/A","N/A","N/A",null,"Togeather","Public","Yes","No","No","Return","None","Yes","Yes","Yes","Yes",0,null,"None","None","None","None","None","None","None","None","None","None","None","None","None","None","None","None",0,0,1,0,0,0,0,0,0,0,1,0,"Must be purchased","Water trucking","None","Minority (15-50%)","Public health facility","Only part of children",1,1,1,1,"diarrhea",1,1,1,0,null,1,1,0,0,null,0,0,0,1,"Shelter",null,"WASH",null,"Food",null,"Health / nutrition",null,"محمد احمد مرداس","Male","777651052","لا يوجد","Male","0","لا يوجد","Male","0","لا يوجد","Male","0","لا يوجد","Male","0"," انس الغباري "," ADRA  ","  مسئول مركز المجتمع  ",777708016,"المجتمع النازح مهدد بالطرد من المجتمع من اصحاب الأراضي","لا توجد خدمات كافيه بالمخيم للبقاء لفترة اطول.","Spontaneous Settlement","Open","Al Hayjah",null,"GH",255,255,255]
[70,"Almaqaeshah - South","2019-05-19","Hajjah","Abs","Bani Thawab","المقاعشه - الجنوبيه",null,null,null,"16.000536 43.119503","16.000536","43.119503","2015-01-01",70,null,1,null,null,null,"Haradh","Abs",null,"0","0","0",null,null,"0","0","None","None",null,null,null,null,"Togeather","Private","Yes","No","No","Stay","None","No","No","Yes","Yes","No",null,"NRC","2019-02-20","None","None","None","None","WFP","2019-02-20","None","None","None","None","None","None","None","None",0,1,1,0,0,0,0,0,0,0,1,0,"Must be purchased","Well / borehole","None","No access (0%)","No-one has access","Only part of children",0,0,1,0,null,0,1,0,0,null,1,1,0,0,null,0,0,0,1,"WASH",null,"Shelter",null,"Other (specify)","لا يوجد","Other (specify)","لا يوجد","ابراهيم حسين","Male","712474662","جابر مبارك","Male","715948963","احمد علي يوسي","Male","716363014","لا يوجد","Male","0","لا يوجد","Male","0","( حسن مأمون "," NRC ",null," 775256112 )","لا توجد ملاحظات","مصدر المياه بعيد عن التجمع","Spontaneous Settlement","Open"," Bani Almushta",null,"SU",255,255,255]
[71," Maqaeshah - North ","2019-05-19","Hajjah","Abs","Bani Thawab","المقاعشه الشماليه",null,null,null,"16.014236 43.114942","16.014236","43.114942","2015-01-01",2015,null,1,null,null,null,"Haradh","Midi","Abs","0","0","0",null,null,"0","0","None","None",null,null,null,null,"Separated","Private","No","Yes","No","Leave","None","Yes","Yes","Yes","No","No",null,"NRC","2019-03-18","None","None","None","None","WFP","2019-04-18","None","None","Rural Water","2019-02-18","None","None","None","None",0,1,0,0,0,0,0,0,1,1,0,1,"Free access for all","Water harvesting","None","Minority (15-50%)","Public health facility","No-one has access",0,0,1,0,null,0,1,0,0,null,0,1,0,0,null,0,0,0,1,"WASH",null,"Shelter",null,"Other (specify)","عياده صحيه","Health / nutrition",null,"ابراهيم باري جعيدي","Male","770461343","لا يوجد","Male","0","ابراهيم محمد حكمي","Male","711405272","لا يوجد","Male","0","لا يوجد","Male","0","( ياسر كحك "," NRC ",null,"770559353 ) - ( فاطمه عضابي ","لا توجد ملاحظات","المقاعشه الشماليه تنقسم الى تجمعات كبيره عددها 3","Spontaneous Settlement","Open","Al Omal Zone",null,"OM",255,255,255]
[72,"Almaqfa","2019-05-19","Hajjah","Abs","Bani Thawab","المقفي",null,null,null,"15.986787 43.166261",15.986787,43.166260999999999,"2015-01-01",97,null,1,null,null,null,"Haradh","Abs","Hayran",null,"0","0",null,null,"0","Sa'adah","None","None",null,null,null,null,"Separated","Private","Yes","Yes","No","Stay","None","No","No","Yes","Yes","No",null,"NRC","2019-03-18","None","None","None","None","WFP","2019-04-18","None","None","None","None","ADO","2019-02-20","NRC","2019-02-20",0,1,0,0,0,0,0,0,0,0,1,0,"Must be purchased","Water trucking","None","Minority (15-50%)","No-one has access","All children at site",0,0,1,0,null,0,1,0,0,null,1,0,0,0,null,0,0,0,1,"WASH",null,"Shelter",null,"Food",null,null,null,"ابراهيم علي احمد موسى","Male","712695174","لا يوجد","Male","0","علي احمد موسى","Male","711084398","لا يوجد","Male","0","لا يوجد","Male","0","( حسن مأمون "," NRC ",null," 775256112 ) - ( حسن شقي ","المياه غير كافيه وبعيده وغالية","النازحين مختلطين مع المجتمع المظيف منما يزيد من احتياج الماء والحمامات","Spontaneous Settlement","Open","College Zone",null,"CZ",255,255,255]
[73,"Al Methaq","2019-04-05","Hajjah","Abs","Bani Thawab","الميثاق"," Alrawdhah",null,null,"15.977156 43.189919",15.977156000000001,43.189919000000003,"2019-04-05",563,1,1,1,1,"Bakil Al-Mir","Haradh","Mustaba","Aflah Alyaman",null,null,0,0,null,null,0,"ADO","Yes","زهراء احمد صغير خوري","738219887","علي ابوالقاسم","730185275","Togeather","Private","Yes","No","No","Stay","None","No","Yes","Yes","Yes",0,null,"NRC","2019-04-03","OXFAM","2019-06-01","NRC","2019-02-04","None","None","DRC","2019-04-02","ADO","2019-06-01","None","None","None","None",0,1,0,0,0,0,0,0,1,0,1,1,"Free access for all","Well / borehole","None","Minority (15-50%)","No-one has access","All children at site",0,1,1,0,"N/A",1,1,0,0,"N/A",1,0,0,0,"N/A",0,0,0,1,"WASH","N/A","Food","N/A","Shelter","N/A","Health / nutrition",null,"علي ابوالقاسم","Male","730185275","لطيفه","Female","736299565","الشيخ يوسف","Male","735599004","N/A","Male","0","N/A","Male","0","N/A","ADO "," Coordinator ,",770443393,"مطالبة بالتدخل في الاشياء الضرورية الوضع كارثي في المخيم./ Claiming to intervene in the necessary things catastrophic situation in the camp.","لا توجد ملاحظات.  ( لم يتم كتابة احداثيات موقع مخيم الحجاوره من قبل الباحث ولذلك تم استخدام موقع درينا العليا )","Spontaneous Settlement","Open","Habeel Bani Alsharif",null,"HB",255,255,255]
[74,"Alhejami","2019-05-19","Hajjah","Abs","Bani Thawab","الهجامي",null,null,null,"15.996692 43.200541","15.996692","43.200541","2016-02-06",90,null,1,null,null,null,"Haradh","Abs","Hayran",null,"Mustaba","0",null,null,"0","0","None","None",null,null,null,null,"Togeather","Private","Yes","No","No","Stay","None","No","No","Yes","Yes","No",null,"NRC","2019-03-18","None","None","None","None","WFP","2019-02-20","None","None","OXFAM","2019-02-20","MSF","2019-02-20","None","None",0,1,0,0,0,0,0,0,1,1,1,0,"Free access for all","Water harvesting","None","Minority (15-50%)","Public health facility","All children at site",0,0,1,0,null,0,1,0,0,null,0,1,0,0,null,0,0,0,1,"Shelter",null,"Food",null,"Other (specify)","لا يوجد","Other (specify)","لا يوجد","محسن علي حسين حفيظ","Male","772061051","لا يوجد","Male","0","لا يوجد","Male","0","لا يوجد","Male","0","ماجد ثواب + خالد مطهي","Male","0","( حسن مأمون "," NRC ",null," 775256112 )","لا توجد ملاحظات","لا توجد ملاحظات","Spontaneous Settlement","Open","Dawood",null,"DD",255,255,255]
[75,"Al Hayjah","2019-04-24","Hajjah","Abs","Bani Thawab","الهيجه"," Alaqabah",null,null,"15.974058 43.246222",15.974057999999999,43.246222000000003,"2017-11-23",610,0,1,0,0,0,"Haradh","Abs","Hayran",null,0,0,0,0,null,0,"None","None","N/A","N/A","N/A",null,"Separated","Public","No","No","No","Return","None","Yes","Yes","Yes","Yes",0,null,"NRC","2019-01-25","None","None","None","None","WFP","2019-02-23","None","None","OXFAM","2019-02-23","None","None","None","None",0,1,0,0,0,0,0,0,1,0,0,0,"Free access for all","Water trucking","None","Minority (15-50%)","No-one has access","Only part of children",1,1,1,1,"diarrhea",1,1,1,1,"Mothers have Malnutrusion",1,1,0,0,null,0,0,0,1,"Shelter",null,"Education",null,"WASH",null,"Food",null,"مهدي زايد","Male","717066547","لا يوجد","Male","0","لا يوجد","Male","0","لا يوجد","Male","0","لا يوجد","Male","0"," عبدالحسيب ","   ","  ضابط المياه والاصحاح ",null,"كثرة لجان المسح من المنظمات مع تباطى الاستجابة","وجود المخيمات على مساحة مترامية من الارض يصعب تركيز الخدمات في مكان واحد.","Spontaneous Settlement","Open","Deer Abkar",null,"DR",255,255,255]
[76," Bani Almushta","2019-03-20","Hajjah","Abs","Bani Thawab","بني المشطى","Alkouziah",null,null,"15.944986 43.204031",15.944986,43.204031000000001,"2018-12-20",2129,0,1,0,0,0,"Haradh","Abs","Hayran",null,0,0,0,0,null,0,"None","None","N/A","N/A","عبدالله الحملي","772643904","Togeather","Private","No","Yes","No","Stay","None","Yes","Yes","Yes","Yes",0,null,"NRC","2018-10-12","NRC/ADRA","2019-01-20","Jeel Albena","2019-02-17","WFP","2019-01-20","Jeel Albena","2019-01-20","OXFAM","2019-01-20","None","None","None","None",0,1,0,0,0,0,0,0,0,0,0,1,"Free access for all","Water trucking","None","Minority (15-50%)","No-one has access","No-one has access",1,1,1,1,"حمى الضنك/  Dengue fever ",1,1,1,0,"N/A",0,1,1,0,"N/A",0,0,0,1,"Food","N/A","WASH","N/A","Shelter","N/A","Health / nutrition","N/A","عوض محمد ابراهيم مطري","Male","774153202","عبدالله الحملي","Male","772643904","علي حجر شوعي مشطى","Male","0","N/A","Male","0","علي حجر شوعي مشطى","Male","0"," ياسر كحك ","NRC",null,770559353,"وجود معظم الفئات من النازحين محرومين من المساعدات حتي الان - الخدمات الصحيه منعدمه جدا/ Most groups of displaced people are still without aid - health services are very lacking","المخيم مترامي الاطراف و يتوسع يوم بعد اخر و وصول نازحين جدد - المخيم بحاجه الي ادراة و تنسيق الخدمات","Spontaneous Settlement","Open","Suq Saddam",null,"SD",255,255,255]
[77,"Al Omal Zone","2019-03-24","Hajjah","Abs","Bani Thawab","حاره العمال"," Albashayer",null,null,"15.988014 43.193348",15.988014,43.193348,"2014-03-20",545,0,1,0,0,0,"Haradh","Hayran","Kushar",null,0,null,0,0,null,0,"None","None",null,null,null,null,"Togeather","Public","Yes","No","No","Stay","None","No","Yes","Yes","No",0,null,"None","None","ADRA","2018-12-25","None","None","None","None","DRC - NRC","2018-12-25","None","None","None","None","None","None",0,1,1,0,0,1,1,0,1,0,0,0,"No-one has good access","Water harvesting","None","No access (0%)","No-one has access","Only part of children",1,1,0,1,"اسهالات",1,1,1,0,null,1,1,0,0,null,0,0,0,1,"WASH",null,"Shelter",null,"Food",null,"Health / nutrition",null,"خالد فتيني ردمان سالم","Male","775686393","حسين هارب حربوش","Male","775822726","محمد نشري","Male","773794122","عبدالله جحري","Male","7146000723","لا يوجد","Male","0","انس الغباري"," ADRA "," منسق المركز ",777708016,"هناك فئات كثيره محرومه من المساعدات , المخيم مليئ بحالات الضعف والتي بحاجه الى مساعدة.","يتواجد المجتمع النازح ضمن المجتمع المضيف ولكل الفئات بحاجه الى مساعدة بقدار الاحتياج القائم, نقص في معظم الخدمات الاساسية نتيجه الضغط من السكان النازح.","Spontaneous Settlement","Open"," Shati Almahraqah ",null,"HT",255,255,255]
[78,"College Zone","2019-05-19","Hajjah","Abs","Bani Thawab","حاره الكليه",null,null,null,"16.012245 43.194785","16.012245","43.194785","2019-03-31",150,null,1,null,null,null,"Haradh","Mustaba","Kushar","0",null,null,null,null,"0","Sa'adah","None","None",null,null,null,null,"Separated","Private","Yes","Yes","No","Stay","None","No","No","Yes","No","No",null,"NRC","2019-02-20","None","None","None","None","WFP","2019-02-20","None","None","OXFAM","2019-02-20","None","None","None","None",0,1,0,0,0,0,0,0,1,0,0,0,"Must be purchased","Water trucking","None","No access (0%)","No-one has access","No-one has access",0,0,1,0,null,0,1,0,0,null,0,1,0,0,null,0,0,0,1,"Shelter",null,"Other (Latrines)","الحمامات","Other (specify)","لا يوجد","Other (specify)","لا يوجد","ابراهيم كعدش","Male","773840012","لا يوجد","Male","0","لا يوجد","Male","0","لا يوجد","Male","0","محمد شعبي - محمد الرزوم","Male","0","( حسن مأمون "," NRC ",null," 775256112 )","لا توجد ملاحظات","لا توجد ملاحظات","Spontaneous Settlement","Open"," Alkhudaish Camp",null,"DC",255,255,255]
[79,"Habeel Bani Alsharif","2019-05-20","Hajjah","Abs","Bani Thawab","حبيل بني الشريف",null,null,null,"15.96692 43.182334","15.96692","43.182334","2019-03-31",292,null,1,null,null,null,"Abs","None","None","0","0","0",null,null,"0","0","None","None",null,null,"موسى محمد شوقي كدادي","770382414","Togeather","Private","Yes","No","No","Stay","None","No","Yes","Yes","Yes","No",null,"NRC","2019-03-19","None","None","None","None","WFP","2019-02-21","None","None","OXFAM","2019-03-19","None","None","None","None",0,1,0,0,0,0,0,0,0,0,1,0,"Free access for all","Water harvesting","None","No access (0%)","No-one has access","All children at site",0,0,0,1,"لا يوجد",0,1,0,0,null,0,1,0,0,null,0,0,0,1,"Shelter",null,"Other (Latrines)","حمامات","Other (specify)","لا يوجد","Other (specify)","لا يوجد","علي علي ابونيب","Male","771283618","لا يوجد","Male","0","لا يوجد","Male","0","لا يوجد","Male","0","احمد شوعي العاقل وشركاءه","Male","716196153","( فاطمه سالم عضابي "," OXFAM ",null," 730008044 )","النظر الى المجتمع المضيف لانه يوجد حالات في المجتمع المضيف اصعب من حالات النازحين انفسهم","لا توجد ملاحظات","Spontaneous Settlement","Open","Almajd ",null,"JD",255,255,255]
[80,"Dawood","2019-05-20","Hajjah","Abs","Bani Thawab","داوود ",null,null,null,"15.985078 43.015086","15.985078","43.015086","2015-01-01",160,null,1,null,null,null,"Haradh","Midi","Hayran",null,"0","0",null,null,"0","0","None","None",null,null,null,null,"Separated","Private","Yes","No","No","Stay","None","Yes","Yes","Yes","No","No",null,"None","None","None","None","None","None","None","None","JAAHD","2019-03-19","None","None","None","None","None","None",0,1,0,0,0,1,0,0,1,0,0,0,"Free access for all","Well / borehole","None","No access (0%)","No-one has access","All children at site",0,1,0,0,null,0,1,0,0,null,0,1,0,0,null,0,0,0,1,"Food",null,"Other (Latrines)","حمامات","WASH",null,"Shelter",null,"عبده راجح","Male","716467964","لا يوجد","Male","0","محمد علي حسن غالب","Male","715980515","لا يوجد","Male","0","عده اشخاص","Male","0","( درهم "," جيل البناء ",null," 713340430 ) - ( ماجد غيلان ","معظم النازحين محرومين من الغذاء","الموقع بعيد ومعظم المنظمات لا تستهدفه كما ان وضع النازحين مأساوي جدا","Spontaneous Settlement","Open","Almatar Camp",null,"TR",255,255,255]
[81,"Deer Abkar","2019-04-23","Hajjah","Abs","Bani Thawab","دير ابكر",null,null,null,"16.005772 43.202269",16.005772,43.202269000000001,"2017-05-20",180,0,1,0,0,0,"Haradh","Abs","Hayran",null,0,0,0,0,null,0,"None","None","N/A","N/A","N/A",null,"Togeather","Private","Yes","No","No","Return","None","Yes","Yes","Yes","Yes",0,null,"None","None","None","None","None","None","None","None","None","None","None","None","None","None","None","None",0,1,0,0,0,1,0,0,1,0,1,0,"Free access for all","Water harvesting","None","Minority (15-50%)","Public health facility","Only part of children",1,1,1,0,null,1,1,1,0,null,1,0,0,0,null,0,0,0,1,"Food",null,"Health / nutrition",null,"Shelter",null,"Livelihoods",null,"اسد محمد محمد بديدي","Male","716380448","منال ذياب","Female","7742488718","لا يوجد","Male","0","لا يوجد","Male","0","لا يوجد","Male","0","لا توجد جهات اتصال التنسيق",null,null,null,"أولوية الغذاء والماء , التحقق من معاناة النازحين بدفع الايجارات.","انعدام الخدمات الاساسيه وعدم وجود مركز صحي","Spontaneous Settlement","Open"," Bani Arjan Camp",null,"BC",255,255,255]
[82,"Suq Saddam","2019-04-05","Hajjah","Abs","Bani Thawab","سوق صدام",null,null,null,"15.979486 43.194292",15.979486,43.194291999999997,"2015-04-20",1093,0,1,0,1,"Bakil Al-Mir","Haradh","Sa'adah","None",0,0,0,0,0,null,null,"NAMSHA","Yes","الوحدة التنفيذية","774086948","اسد بديدي","716380448","Togeather","Private","Yes","Yes","Yes","Stay","Renting","No","No","Yes","No",0,null,"NRC","2019-04-03","OXFAM - ADRA","2019-06-01","None","None","WFP","2019-04-03","ADO","2019-06-01","OXFAM","2019-04-03","None","None","None","None",0,1,0,0,0,0,0,0,1,1,1,1,"Must be purchased","Water trucking","None","Over half (> 50%)","Public health facility","All children at site",1,1,0,0,"N/A",1,0,0,0,"N/A",1,0,0,0,"N/A",0,0,0,1,"Food","N/A","WASH","N/A","Shelter","N/A","Health / nutrition",null,"نجوى جبار","Female","0","شقراء محجب","Female","716380448","سهام","Female","739234883","N/A","Male","0","N/A","Male","0","Mustafa QabooL ",null,null,774086948,"تدخلات المنظمات في المخيم استفاد منها البعض وليس الجميع ما زلنا بحاجه لتدخل باستمرار الدعم./ The interventions of the organizations in the camp benefited some, not everyone, we still need to intervene continuously.","فقط هناك بعض القدامى استفادوا من بعض مشاريع الكاش والماوى بشكل ضئيل المكان بحاجة الى تدخل بشكل اكبر .","Spontaneous Settlement","Open","Abs City",null,"AC",255,255,255]
[83," Shati Almahraqah ","2019-04-06","Hajjah","Abs","Bani Thawab","شاطى المحرقه",null,null,null,"15.922042 43.194514",15.922041999999999,43.194513999999998,"2015-03-04",284,0,1,0,0,"Bakil Al-Mir","Haradh","Midi","Abs",0,0,0,0,0,null,0,"ADO","Yes","الحسن حسن طيب صبياني","717508903","عيسى احمد زين","711852063","Togeather","Private","Yes","No","No","Stay","None","Yes","No","Yes","Yes",0,null,"NRC","2019-05-03","OXFAM","2019-07-01","None","None","None","None","ADO","2019-05-02","None","None","None","None","None","None",0,1,0,0,0,0,0,0,0,1,1,0,"Must be purchased","Well / borehole","None","Minority (15-50%)","No-one has access","All children at site",0,1,1,0,"N/A",1,1,0,0,"N/A",1,1,0,0,"N/A",0,0,0,1,"WASH","N/A","Shelter","N/A","Food","N/A","Health / nutrition",null,"فارس علي زيلع","Male","715512475","محمد حسين قراص","Male","712072899","عيسى محمد زين","Male","711852063","N/A","Male","0","N/A","Male","0"," مامو ن ","NAMCHA",null,775485045,"No Notes","يفتقد المكان الى المأوى حيث لا يوجد هناك الا 45 حالة تم استهدافها بالأيواء.","Spontaneous Settlement","Open","Moudah",null,"MU",255,255,255]
[84," Alkhudaish Camp","2019-03-19","Hajjah","Abs","Bani Thawab","مخيم الخديش",null,null,null,"15.958249 43.198694",15.958249,43.198694000000003,"2018-09-19",1973,0,1,0,0,0,"Haradh","Hayran","Mustaba",null,null,0,0,0,null,0,"ADO","Yes","فواد عبدالله جعمل","7748479","عبدالله قاسم","772643904","Separated","Public","No","Yes","No","Stay","None","No","Yes","Yes","Yes",0,null,"NRC","2018-12-18","NRC - ADRA","2018-12-18","None","None","WFP","2019-02-18","ADO","2019-01-18","OXFAM","2019-02-18","OXFAM - ADRA","2019-02-18","None","None",0,1,0,0,0,0,0,0,0,0,1,0,"Free access for all","Water trucking","None","Over half (> 50%)","Public health facility","No-one has access",0,1,1,0,"N/A",0,1,0,1,"Pregnants",1,1,0,0,"N/A",0,0,0,1,"WASH","N/A","Food","N/A","Shelter","N/A","Health / nutrition","N/A","علي احمد مسلماني","Male","772000604","صبار محمد محجب","Male","774298223","احمد ابراهيم مصوع","Male","0","علي عبده مكين","Male","774298223","عده اشخاص","Male","0"," شروق كامل+ عبدالمجيد","DRC",null,"776333580- 776333547","الوضع العام للنازحين صعب ويحتاجون الى توفير المياه والحمامات/ The general situation of IDPs is difficult and needs water and bathrooms","العدد السكاني للنازحين كثير ويوجد نقص في المياه خصوصا بعد توفير البئر.   توجد بعض الاشكالية بين النازحين والمجتمع المضيف وخاصة اثنا توزيع المساعدة.","Spontaneous Settlement","Open","Al Hareeq ",null,"HQ",255,255,255]
[85,"Almajd ","2019-04-23","Hajjah","Abs","Bani Thawab","مخيم المجد",null,null,null,"16.009232 43.196758",16.009232000000001,43.196758000000003,"2016-05-22",350,0,1,0,0,0,"Haradh","Abs","Hayran",null,0,0,0,0,null,0,"None","None","N/A","N/A","N/A",null,"Togeather","Public","No","No","No","Leave","None","Yes","Yes","Yes","Yes",0,null,"NRC","2019-01-24","ADRA","2019-02-22","None","None","WFP","2019-02-22","None","None","None","None","None","None","None","None",0,1,0,0,0,0,0,0,0,0,1,0,"Free access for all","Water trucking","None","Minority (15-50%)","Public health facility","All children at site",1,1,1,0,null,1,1,1,1,"Mothers have Malnutrusion",1,0,0,0,null,0,0,0,1,"Shelter",null,"Education",null,"Food",null,"WASH",null,"محمد احمد مرداس","Male","777651052","لا يوجد","Male","0","لا يوجد","Male","0","لا يوجد","Male","0","لا يوجد","Male","0"," حسن مامون "," NRC "," منسق ميداني ",775256112,"ازدحام المخيم يؤثر على قلة الخدمات","عدم وجود لجنة مجتمعية تابعة للمنظمات والجهات ذات العلاقة ( لم يتم كتابة احداثيات موقع بني ثواب من قبل الباحث ولذلك تم استخدام موقع درينا العليا )","Spontaneous Settlement","Open"," Bani Bajraa ",null,"BB",255,255,255]
[86,"Almatar Camp","2019-03-19","Hajjah","Abs","Bani Thawab","مخيم المطار",null,null,null,"16.007536 43.173689",16.007536000000002,43.173689000000003,"2018-08-01",299,0,1,0,0,0,"Haradh","Hayran","Aflah Ash Sham",null,0,0,null,0,null,0,"ADO","Yes","فواد جعمل","774847958","N/A","N/A","Separated","Owner not known","Yes","Yes","No","Stay","None","No","No","Yes","No",0,null,"NRC","2019-01-19","ADRA","2018-12-18","None","None","WFP","2019-02-18","ADO","2019-02-18","OXFAM","2019-01-18","SDF - MSF","2019-01-18","None","None",0,0,1,0,0,0,0,0,0,1,1,0,"Must be purchased","Water trucking","None","No access (0%)","Public health facility","No-one has access",0,1,1,1,"حمى الضنك/  Dengue fever ",1,1,0,0,"N/A",0,1,0,0,"N/A",0,0,0,1,"Shelter","N/A","Education","N/A","Health / nutrition","N/A","WASH","N/A","احمد حجر","Male","773932781","مريم مسلماني","Female","0","علي عباس جلحوف","Male","775459962","يحي عاطف","Male","0","علي عباس جلحوف","Male","775459962"," شروق كامل+ عبدالمجيد","DRC","CCCM Officer","776333580- 776333547","الاستجابه الفوريه ودعم التعليم/ Immediate response and support education","المركز التعليمي عبارة عن مكان مؤقت ويحتاج الى دعم نظراً لعدد الطلاب الكبير.","Spontaneous Settlement","Open"," Dorynah Alsofla ",null,"DS",255,255,255]
[87," Bani Arjan Camp","2019-03-30","Hajjah","Abs","Bani Thawab","مخيم بني عرجان","Northern Bani Ergan",null,null,"15.988964 43.159494",15.988963999999999,43.159494000000002,"2015-04-25",250,0,1,0,0,"Bakil Al-Mir","Midi","Abs","None",0,0,0,0,0,null,0,"None","None","N/A","N/A","ليلى عقيلي","773206865","Togeather","Private","Yes","No","No","Stay","None","No","No","Yes","Yes",0,null,"NRC","2019-02-28","OXFAM - ADRA","2018-12-29","None","None","None","None","ADO","2019-01-29","None","None","None","None","None","None",0,1,0,0,0,0,0,0,1,0,1,1,"Must be purchased","Water trucking","None","Over half (> 50%)","No-one has access","No-one has access",0,1,0,0,"N/A",1,0,0,0,"N/A",1,1,0,0,"N/A",0,0,0,1,"Shelter","N/A","Food","N/A","WASH","N/A","Health / nutrition",null,"محمد عقيلي","Male","736306781","N/A","Male","0","خالد مسعو","Male","774883335","N/A","Male","0","N/A","Male","0","N/A","N/A","N/A","N/A","نتمنى متابعة الاهتمام بالنازحين الجدد حيث لم يستفيدوا فقط سوى الحقيبه المقدمة من NRC وهم بحاجة الى خدمات ماوى/We hope to continue to pay attention to the new displaced people, who have not only benefited from the NRC kit and are in need of shelter services","لا يوجد","Spontaneous Settlement","Open"," Dorynah Alolya ",null,"DA",255,255,255]
[88,"Abs City","2019-05-19","Hajjah","Abs","Bani Thawab","مدينه عبس",null,null,null,"16.002261 43.196894","16.002261","43.196894","2015-01-01",83,null,1,null,null,null,"Haradh","Abs","Hayran",null,"0","0",null,null,"0","0","ADO","Yes","يحيى قبول","0",null,null,"Togeather","Private","Yes","No","No","Stay","None","No","Yes","No","No","No",null,"NRC","2019-03-18","None","None","None","None","ADRA","2019-04-18","ADO","2019-02-20","ADO","2019-02-20","YRCS","2019-02-20","None","None",0,1,0,0,0,1,1,0,1,1,1,0,"Free access for all","Other (specify)","Project","Minority (15-50%)","Health facility on site","Only part of children",0,1,0,0,null,0,1,0,0,null,0,0,0,1,"بيارات مكشوفة",0,0,0,1,"Food",null,"WASH",null,"Shelter",null,"Education",null,"حنان ابراهيم وردان","Male","0","لا يوجد","Male","0","عادل موسى","Male","0","لا يوجد","Male","0","عدة اشخاص","Male","0","سهام ثواب "," ADO",null,null,"اصحاب حرض لم يستلموا الماوى ونتمنى ان يكون التسجيل دقيق وعادل واعادة النظر في كثرة البطائق","لا يوجد ملاحظات","Spontaneous Settlement","Open"," Walah ",null,"WH",255,255,255]
[89,"Moudah","2019-03-25","Hajjah","Abs","Bani Thawab","موده",null,null,null,"15.975469 43.183011",15.975469,43.183011,"2016-03-01",189,0,1,0,0,0,"Haradh","Hayran","Kushar",null,0,null,0,0,null,0,"None","None",null,null,null,null,"Separated","Public","Yes","Yes","No","Stay","None","Yes","Yes","Yes","Yes",0,null,"NRC","2019-02-24","OXFAM","2018-12-26","None","None","None","None","None","None","None","None","ADO","2018-12-26","None","None",0,1,0,0,0,0,1,0,0,0,1,0,"Must be purchased","Water trucking","None","No access (0%)","No-one has access","No-one has access",1,1,1,1,"حمى الضنك , الحصبة",1,1,0,0,null,1,1,0,0,null,0,0,0,1,"Shelter",null,"Health / nutrition",null,"Food",null,"WASH",null,"ابوبكر احمد حسن بلال","Male","775695743","لا يوجد","Male","0","لا يوجد","Male","0","لا يوجد","Male","0","لا يووجد","Male","0","زينب","OXFAM",null,null,"توفير الخدمات من مياه وصرف صحي , عدم استهداف النازحين من برنامج الغذاء .","يمتد المخيم على مسافة واسعه من الأرض وينتشر النازحين على مربعات متباعده حسب وجود ظروف المعيشه وكذلك مجانية الأرض والخدمات.","Spontaneous Settlement","Open","As Sabeel",null,"SL",150,54,52]
[90,"Al Hareeq ","2019-04-11","Hajjah","Abs","Matwalah"," الحريق",null,null,null,"16.066708 43.134519",16.066707999999998,43.134518999999997,"2015-04-10",140,0,1,0,0,0,"Haradh","Abs","Hayran",null,0,0,0,0,null,0,"ADO","Yes","فواد عبدالله","774847958","حسين حسين شهير","737096644","Separated","Private","Yes","Yes","No","Stay","None","No","No","No","Yes",0,null,"NRC","2019-12-01","None","None","ADO","2019-02-10","WFP","2019-10-03","None","None","None","None","None","None","None","None",0,0,0,0,0,0,0,1,0,0,1,0,"Free access for all","Well / borehole","None","Minority (15-50%)","No-one has access","Only part of children",0,1,0,0,null,1,1,1,0,null,1,1,1,0,null,0,0,0,1,"Shelter",null,"Food",null,"Other (Cash)","Cash","WASH",null,"فتحي عبدالله احمد جنيد","Male","717215195","اكرم عبدالجبار علي","Male","733925678","عبدالله احمد جنيد","Male","733355108","علي عبده حسني","Male","775928022","حمدي عبده حسين","Male","775928026","لا توجد جهات اتصال التنسيق",null,null,null,"الخدمات من اكثر القرى حرمانا من التدخل في الأيواء والكاش والغذاء","الموقع محتاج الى تدخل المنظمات وبسبب عدم تدخل الأيواء والغذاء والصحة والكاش والقريه محرمة من كل شيئ.","Spontaneous Settlement","Open","Al'ak",null,"AK",255,255,255]
[91," Bani Bajraa ","2019-03-19","Hajjah","Abs","Matwalah"," بني بجراء",null,null,null,"16.092286 43.129258",16.092286000000001,43.129258,"2015-05-01",600,0,1,0,0,0,"Haradh","Abs","Aflah Ash Sham",0,0,0,null,0,null,0,"DRC","Yes","عبد المجيد صالح","776333584","احمد حجر","773932781","Togeather","Private","No","No","No","Stay","None","No","Yes","Yes","Yes",0,null,"NRC","2018-12-23","OXFAM","2019-03-23","None","None","DRC","2019-03-18","DRC","2019-03-18","DRC","2019-01-18","MSF","2019-01-18","None","None",0,1,1,0,0,0,1,0,1,0,1,1,"Must be purchased","Water trucking","None","Over half (> 50%)","No-one has access","Only part of children",0,1,0,1,"اصهالات خفيفه - حمى الضنك/  Diarrhea- Dengue fever",0,1,0,0,"N/A",0,0,0,1,"N/A",0,0,0,1,"WASH","N/A","Food","N/A","Shelter","N/A",null,"N/A","سماح ابراهيم محمد حميلي","Female","774124931","N/A","Male","0","علي ابراهيم علوي","Male","715968447","N/A","Male","0","N/A","Male","0","N/A","N/A","N/A","N/A","N/A","اغلب سكان ال من سكان شعاب حرض و حيران و القرانيه و يقومون ببناء بيوتهم بانفسهم من مواد محليه- المجمع يحتوي علي مربعات مترامية الاطراف حيث ان بعض الاسر تسكن داخل بيوت المجتمع قيد الانشاء","Spontaneous Settlement","Open","Habeel Alqaz",null,"HZ",{"$f":"IF($EK$2=$ED98,EL$2,EL$3)","v":255},{"$f":"IF($EK$2=$ED98,EM$2,EM$3)","v":255},{"$f":"IF($EK$2=$ED98,EN$2,EN$3)","v":255}]
[92," Dorynah Alsofla ","2019-03-19","Hajjah","Abs","Matwalah"," درينه السفلى"," Bani Salah","Dair Alwadi","Sooq Alrabua","16.085092 43.136592",16.085092,43.136592,"2015-04-01",800,0,1,0,0,0,"Haradh","Midi","Hayran",null,0,0,0,0,null,0,"DRC","Yes","عبد المجيد صالح","776333584","صبار محمد محجب","774298223","Togeather","Private","No","No","No","Stay","None","No","Yes","Yes","Yes",0,null,"NRC","2019-03-18","OXFAM","2019-03-18","None","None","WFP","2019-03-18","DRC","2019-03-18","DRC","2019-01-25","None","None","NRC","2019-01-25",0,1,1,0,0,0,1,0,1,1,1,1,"Must be purchased","Water trucking","None","Minority (15-50%)","Public health facility","All children at site",1,1,0,1,"التهابات في الصدر/ Chest disease",0,1,1,0,"N/A",0,1,0,0,"N/A",0,0,0,1,"Food","N/A","WASH","N/A","WASH","N/A","Education","N/A","عبدالله يحيي حسن قاسم حملي","Male","772643904","N/A","Male","0","عوض محمد ابراهيم مطري","Male","774153202","N/A","Male","0","وقف","Male","0","N/A","N/A","N/A","N/A","المدرسه لا تغطي طثافة الطلاب النازحين / The school does not cover the density of displaced students","ال منظم و ليس مترامي الاطراف - اوكسفام بداءت بناء الحمامات و هي قيد الانشاء حتي الان","Spontaneous Settlement","Open","Deer Alhesi",null,"DH",255,255,255]
[93," Dorynah Alolya ","2019-03-19","Hajjah","Abs","Matwalah"," درينه العليا","Aljruf"," AlNajamyah","Alnwahi","16.078706 43.15146",16.078706,43.15146,"2015-01-01",1240,0,1,0,0,0,"Haradh","Midi","Hayran",null,0,0,0,0,null,0,"DRC","Yes","شعيب القديمي","771333277","علي حسن عبسي","772970430","Togeather","Private","Yes","No","No","Stay","None","No","Yes","No","Yes",0,null,"NRC","2019-02-20","OXFAM","2019-03-18","DRC","2019-03-18","WFP","2019-01-17","DRC","2019-03-17","DRC","2019-01-17","MSF","2019-01-18","None","None",0,1,1,0,0,0,1,0,1,1,1,0,"Must be purchased","Well / borehole","None","Minority (15-50%)","No-one has access","All children at site",0,1,0,1,"اصهالات خفيفه - حمى الضنك/  Diarrhea- Dengue fever",1,0,0,0,"N/A",0,0,0,1,"N/A",0,0,0,1,"WASH","N/A","Food","N/A","None","N/A",null,"N/A","منال ذياب","Female","772488718","N/A","Male","0","محمد احمد خميسي","Male","714909719","سعد الدين كعدش","Male","776171037","N/A","Male","0","N/A","N/A","N/A","N/A","N/A","ليس  و لكنه موقع نزوح حيث ان اغلب النازحين يسكنو ي بيوت الايجار و نادرا ما يوجد خيام او ات","Spontaneous Settlement","Open","Deer Alauqm",null,"DM",255,255,255]
[94," Walah ","2019-03-19","Hajjah","Abs","Matwalah"," ولح",null,null,null,"16.057311 43.160522",16.057310999999999,43.160522,"2015-05-01",300,0,1,0,0,0,"Haradh","Hayran","None",null,0,0,0,0,null,0,"DRC","Yes","عبدالمجيد صلاح","776333584","احمد محمد شوعي حاج","776293519","Togeather","Private","No","No","No","Stay","None","No","Yes","No","No",0,null,"NRC","2019-01-18","OXFAM","2018-12-18","DRC","2019-02-22","WFP","2019-02-22","DRC","2019-01-19","Rural Water","2019-02-20","None","None","None","None",0,1,1,0,0,0,1,0,0,0,0,1,"Must be purchased","Water trucking","None","Everyone (100%)","No-one has access","No-one has access",0,1,1,0,"N/A",1,1,0,1,"N/A",1,1,0,0,"N/A",0,0,0,1,"Health / nutrition","N/A","Shelter","N/A","Food","N/A","WASH","N/A","عبده هادي احمد كديش","Male","771538705","حسن محمد حسين كديش","Male","774490713","حمود محمد كديش","Male","716788992","يحيي عبده جهلان كديش","Male","714900391","هادي ابراهيم جعدي","Male","751441524","معين القيلي","UNHRC","Shelter Coordinator",777225770,"عدم توفر فرص عمل و تفشي البطاله التي تستدعي ايجاد حلول سبل معيشه و امن غذائي - عدم توفر مدرسه بالموقع/ Lack of job opportunities and widespread unemployment that require finding solutions to livelihoods and food security - Lack of a school on site","وجود بعض التدخلات المشاهده مثل الايواء و المأةى و الصرف الصحي و توفر المياه بنسبه لا تغطي الاحتياج - عدم توفر خدمات صحيه - عدم توفر خدمات تعليميه - عدم توفر دعم نفسي لوجود اطفال يعانون من ازمات نفسيه - عدم توفر سبل العيش","Spontaneous Settlement","Open"," Quhaim",null,"QM",255,255,255]
[95,"As Sabeel","2019-04-08","Hajjah","Abs","Matwalah","السبيل"," Kedf Alarf",null,null,"16.079689 43.100361",16.079688999999998,43.100360999999999,"2015-06-07",500,0,1,0,0,0,"Haradh","Midi","Abs","Hayran",0,0,0,0,null,0,"ADO","Yes","فواد جعمل","774847958","منصور ابراهيم جعداري","773953634","Togeather","Private","Yes","No","No","Stay","None","Yes","Yes","Yes","Yes",0,null,"NRC","2019-09-01","OXFAM","2019-09-01","None","None","WFP","2019-09-01","ADO / UNHCR","2019-09-01","None","None","None","None","None","None",0,1,0,0,0,0,0,0,0,0,1,0,"Free access for all","Water harvesting","None","No access (0%)","Public health facility","All children at site",1,1,1,1,"اسهالات",1,1,1,0,null,1,1,0,0,null,0,0,0,1,"Shelter",null,"WASH",null,"Shelter",null,"Health / nutrition",null,"منصور عبدالله ابراهيم جعداري","Male","773953634","لا يوجد","Male","0","احمد عثمان","Male","774963650","لا يوجد","Male","0","لا يوجد","Male","0","ماجد غيلان ","ADO "," Officer","N/A","كميه الغذاء غير كافي , ضرورة دعم بالمأوى.","المأوى والغاذاء اولوية للصحة.","Spontaneous Settlement","Open","Majoar",null,"MR",255,255,255]
[96,"Al'ak","2019-05-08","Hajjah","Abs","Matwalah","العك",null,null,null,"16.071396 43.194115",16.071396,43.194114999999996,"2019-03-01",200,0,1,0,0,0,"Haradh","Abs",null,0,0,0,0,0,null,0,"None","None",null,null,null,null,"Separated","Public","Yes","No","No","Stay","None","No","No","No","No",1,null,"NRC","2019-07-01","WFP","2019-09-01","NRC / DRC","2019-01-09","WFP","2019-09-01","None","None","OXFAM","2019-09-01","OXFAM","2019-09-01","None","None",0,1,0,0,0,0,0,0,0,0,1,0,"Free access for all","Well / borehole","None","Minority (15-50%)","No-one has access","Only part of children",1,1,1,1,"الحصبة",1,1,1,0,null,1,1,0,0,null,0,0,0,1,"Shelter",null,"WASH",null,"Health / nutrition",null,"Food",null,"يوسف علي هادي عتكي","Male","717078241","محمد طاهر مهذب","Male","716339399","محمد علي هادي عكي","Male","713596410","لا يوجد","Male","0","لا يوجد","Male","0","حسن مامون "," NRC "," منسق الاستجابه الطارئه ",775256112,"وصول حالات نزوح جديده وبحاجه الى استجابة","المخيم بحاجه الى إدارة وتنسيق للخدمات .     ( 16.077109N 43.144782E )   Coordinstes ) خطاء ولذك تم تصحيحة في كما هو في حقل الاحداثيات","Spontaneous Settlement","Open","Abu Alail",null,"LA",255,255,255]
[97,"Habeel Alqaz","2019-04-08","Hajjah","Abs","Matwalah","حبيل القاز","Bani Lebainah",null,null,"16.033192 43.101594",16.033192,43.101593999999999,"2015-11-01",218,0,1,0,0,0,"Haradh","Midi","None",0,0,0,0,0,null,0,"ADO","Yes","فواد جعمل","774847958","علي عبدالله حسن حرضي","773042036","Togeather","Private","Yes","No","No","Stay","None","No","Yes","Yes","Yes",0,null,"NRC / DRC","2019-09-01","None","None","None","None","WFP","2019-09-01","ADO","2019-09-01","OXFAM / ADO","2019-09-01","OXFAM","2019-09-01","None","None",0,1,0,0,0,0,0,0,1,0,0,0,"Free access for all","Water trucking","None","Minority (15-50%)","No-one has access","No-one has access",1,1,1,1,"اسهالات",1,1,1,0,null,1,1,0,0,null,0,0,0,1,"Shelter",null,"WASH",null,"Shelter",null,"Health / nutrition",null,"منصور عبدالله ابراهيم جعداري","Male","773953634","لا يوجد","Male","0","احمد عثمان","Male","774963650","لا يوجد","Male","0","لا يوجد","Male","0","ماجد غيلان ","ADO "," Officer","N/A","الغذاء غير كافي للمستفيدين , ضرورة الدعم بالمأوى.","المأوى والغذاء أولوية ملحة","Spontaneous Settlement","Open","Aljarab",null,"AB",255,255,255]
[98,"Deer Alhesi","2019-04-08","Hajjah","Abs","Matwalah","دير الحسي",null,null,null,"16.047611 43.107836","16.047611","43.107836","2018-09-01",700,null,1,null,null,null,"Haradh","Midi","Hayran",null,"0","0",null,null,"0","0","ADO","Yes","فواد جعمل","774847958",null,null,"Separated","Private","Yes","No","No","Stay","None","No","No","No","No","Yes",null,"NRC - ADO","2019-01-09","ADRA","2019-01-09","UNHCR","2019-01-09","None","None","None","None","OXFAM - ADO","2019-01-09","None","None","None","None",0,1,0,0,0,0,0,1,0,0,1,0,"Must be purchased","Water trucking","None","Minority (15-50%)","Health facility on site","Only part of children",1,1,1,0,null,1,1,0,0,null,0,1,0,0,null,0,0,0,1,"WASH",null,"Food",null,"Other (Cash)","Cash","Shelter",null,"موسى عيسى","Male","716529065","لا يوجد","Male","0","لا يوجد","Male","0","موسى محمد عيسى مكسر","Male","711712965","لا يوجد","Male","0","لا توجد جهات اتصال التنسيق",null,null,null,"البطاله وعدم توفر فرص العمل, نقص صافي الإحتياجات الأساسية ( مأوى - غذاء - صرف صحي )","المنطقة تحتاج الى الأتي ( غذاء , مأوى , صرف صحي , دعم نقدي , تأهيل خزان للمياه الصالحة للشرب.","Spontaneous Settlement","Open","Al Jaibiah",null,"BH",255,255,255]
[99,"Deer Alauqm","2019-05-01","Hajjah","Abs","Matwalah","دير العقم",null,null,null,"16.067808 43.135681",16.067807999999999,43.135680999999998,"2015-01-01",245,0,1,0,0,0,"Haradh","Midi","Hayran",null,0,0,0,0,null,0,"None","None","N/A","N/A","N/A","N/A","Togeather","Private","Yes","No","No","Stay","None","No","No","Yes","Yes",0,null,"NRC","2019-01-03","None","None","None","None","WFP","2019-01-02","ADO","2019-01-02","None","None","None","None","None","None",0,1,0,0,0,0,0,0,1,0,0,0,"Must be purchased","Water trucking","None","No access (0%)","No-one has access","All children at site",0,1,0,0,null,0,1,0,0,null,0,1,0,0,null,0,0,0,1,"Shelter",null,"WASH",null,"Food",null,"WASH",null,"هايل محمد حسن حكمي","Male","772015102","لا يوجد","Male","0","يحيى احمد فقيهي","Male","713672162","لا يوجد","Male","0","لا يوجد","Male","0","لا يوجد",null,null,null,"يستقبل ال الكثير من النازحين من قرية بني حسن الواقعه بين المواجهات","ال بحاجه الى المزيد من الخدمات","Spontaneous Settlement","Open","Alhajrah",null,"RH",255,255,255]
[100," Quhaim","2019-04-05","Hajjah","Abs","Matwalah","قحيم",null,null,null,"16.067414 43.135108",16.067413999999999,43.135108000000002,"2015-03-10",355,0,1,0,0,"Bakil Al-Mir","Haradh","Abs",null,0,0,0,0,0,null,0,"ADO","Yes","Majed Ghailan","775221316","حسين شهير","733096644","Separated","Private","No","No","No","Stay","None","No","No","Yes","Yes",0,null,"NRC","2019-04-03","None","None","NRC","2019-02-04","None","None","None","None","OXFAM","2019-04-02","None","None","None","None",0,1,1,0,0,0,0,0,1,0,0,0,"Must be purchased","Well / borehole","None","Minority (15-50%)","No-one has access","Only part of children",0,1,0,0,"N/A",0,1,0,0,"N/A",0,1,0,0,"N/A",0,0,0,1,"Food","N/A","Shelter","N/A","Health / nutrition","N/A","Health / nutrition",null,"N/A","Male","733096644","ايمان احمد سعدان","Male","733096644","اكرم عبدالجبار","Male","0","N/A","Male","0","N/A","Male","0"," Majed Ghailan "," ADO"," Officer",775221316,"بحاجه الى التدخل السريع في المكان خاصه للمنكوبين الجدد القادمين من عزلة بني حسن./ In need of rapid intervention in the place, especially for the new arrivals from the isolation of Bani Hassan.","هناك نازحين جدد لم تتم تغطيتهم أو التدخل بخصوصهم من قبل اي منظمة حتى الأن.  (لم يتم كتابة احداثيات موقع  الحجاوره من قبل الباحث ولذلك تم استخدام موقع درينا العليا)","Spontaneous Settlement","Open","Alhajreyah",null,"HH",255,255,255]
[101,"Majoar","2019-03-27","Hajjah","Abs","Matwalah","مجعر",null,null,null,"16.080056 43.158422","16.080056","43.158422","2014-01-01",613,null,1,null,null,null,"Haradh","Hayran","Kushar",null,"0",null,null,null,"0","0","None","None",null,null,null,null,"Separated","Private","No","No","No","Stay","None","Yes","Yes","Yes","Yes","No",null,"NRC","2019-02-26","OXFAM - ADRA","2018-12-28","DRC - NRC","2019-01-27","WFP","2018-12-28","NRC","2019-02-26","OXFAM","2019-01-26","MSF","2019-02-26","NRC","2019-03-26",0,1,0,0,0,0,0,0,0,1,0,0,"Free access for all","Well / borehole","None","Minority (15-50%)","Public health facility","All children at site",1,1,1,1,"عدوى الجدري",1,1,1,1,"النساء الحوامل",1,1,0,0,null,0,0,0,1,"WASH",null,"Shelter",null,"Shelter",null,"Health / nutrition",null,"محمد طاهر مهذب","Male","716339399","يحيى ابراهيم مغاص","Male","775024910","علي شوعي عجف","Male","0","عبدالله احمد جنيد عثمان","Male","771796410","محمد طاهر مهذب","Male","716339399","( عبدالحسيب القعفي "," OXFAM ) - ( فواد جعمل ",null," ADO) - ( وليد صيفان ","وجود فئات محرومة من المساعدات , وجود حالات ضعف بحاجة الى رعاية.","لا توجد ملاحظات","Spontaneous Settlement","Open"," Alkhudhairy",null,"RY",255,255,255]
[102,"Abu Alail","2019-05-20","Hajjah","Abs","Qutbah","ابوالليل",null,null,null,"15.908752 43.091473","15.908752","43.091473","2015-01-01",5,null,1,null,null,null,"Haradh","None","None","0","0","0",null,null,"0","0","None","None",null,null,null,null,"Togeather","Private","Yes","No","No","Stay","None","No","No","No","No","Yes",null,"None","None","None","None","None","None","None","None","None","None","None","None","None","None","None","None",0,0,1,1,0,0,0,0,0,0,1,0,"Free access for all","Well / borehole","None","No access (0%)","No-one has access","No-one has access",0,0,0,1,"لا يوجد",0,1,0,0,null,1,0,0,0,null,0,0,0,1,"Food",null,"WASH",null,"Shelter",null,"Other (specify)","لا يوجد","ابوالليل احمد يوسف عقيلي","Male","712786365","لا يوجد","Male","0","علي شامي احمد عقيلي","Male","713350966","لا يوجد","Male","0","لا يوجد","Male","0","لا توجد جهات اتصال التنسيق",null,null,null,"اصلاح الطريق","الموقع بعيد جدا والطريق وعره ويحتاج الى جهد للوصول الى الموقع ويتعذر على الشاحنات الوصول للموقع.","Spontaneous Settlement","Open","Aldwirah",null,"AH",255,255,255]
[103,"Aljarab","2019-05-19","Hajjah","Abs","Qutbah","الجرب",null,null,null,"15.919905 43.209009",15.919905,43.209009000000002,"2019-03-29",60,null,1,null,null,null,"Haradh","Abs","None","0","0","0",null,null,"0","0","None","None",null,null,null,null,"Togeather","Private","Yes","No","No","Stay","None","No","No","No","No","Yes",null,"NRC","2019-03-18","None","None","None","None","None","None","None","None","None","None","None","None","None","None",0,1,0,0,0,0,0,0,0,0,1,0,"Must be purchased","Water trucking","None","No access (0%)","No-one has access","No-one has access",1,0,0,0,null,0,1,0,0,null,0,1,0,0,null,0,0,0,1,"Shelter",null,"WASH",null,"Other (Latrines)","حمامات","Food",null,"احمد ابراهيم حاج بكري","Male","714695704","لا يوجد","Male","0","لا يوجد","Male","0","لا يوجد","Male","0","لا يوجد","Male","0","لا توجد جهات اتصال التنسيق",null,null,null,"لا توجد ملاحظات","يتم احضار المياه المالحه عبر الابار لكن المياه الشرب يتم شرائها عبر الوايتات","Spontaneous Settlement","Open","Aldhanab",null,"ND",255,255,255]
[104,"Al Jaibiah","2019-03-21","Hajjah","Abs","Qutbah","الجعيبيه",null,null,null,"15.912822 43.079383",15.912822,43.079383,"2015-03-20",45,0,1,0,0,0,"Haradh","None","None",0,0,0,0,0,null,0,"ADO","Yes","محمد هادي ناجي","713102085","حميد ضمجاف علي","712330757","Togeather","Private","No","No","No","Stay","None","No","No","Yes","No",0,null,"None","None","OXFAM","2019-01-20","None","None","None","None","None","None","None","None","None","None","None","None",0,1,1,0,0,0,0,0,1,0,1,1,"Must be purchased","Water trucking","None","Over half (> 50%)","No-one has access","No-one has access",1,1,1,0,"N/A",1,1,0,0,"N/A",0,1,0,0,"N/A",0,0,0,1,"Education","N/A","Food","N/A","Health / nutrition","N/A","Shelter","N/A","محمد علي عثمان ضمجان","Male","735707946","N/A","Male","0","محمد عيسى ابراهيم عقيلي","Male","713313424","N/A","Male","0","N/A","Male","0","N/A","OXFAM","N/A","N/A","الغذاء معظم الأسر لا تستلم مساعدات , يحتاجون مأوى , لا توجد خدمات صحية , المدارس بعيدة./  Most families do not receive aid, they need shelter, there are no health services, schools are far away.","( المنطقة بحاجه ماسة لوصول مساعدات غذائية , اعادة تأهيل المأوى , أعادة تأهيل الحمامات , صرف أيواء بطانيات وفراشات)  تم استخدام موقع درينه العليا لعدم كتابته احداثيات موقع بني جعيبة - قطبة من قبل الباحث.","Spontaneous Settlement","Open","Aldheyabah",null,"AY",255,255,255]
[105,"Alhajrah","2019-05-20","Hajjah","Abs","Qutbah","الحجره",null,null,null,"15.925759 43.171162","15.925759","43.171162","2019-03-28",131,null,1,null,null,null,"Abs","None","None","0","0","0",null,null,"0","0","None","None",null,null,null,null,"Togeather","Private","Yes","No","No","Stay","None","No","No","Yes","No","Yes",null,"NRC","2019-03-19","None","None","None","None","None","None","None","None","None","None","None","None","None","None",0,0,1,0,0,0,0,0,0,0,1,0,"No-one has good access","Water trucking","None","No access (0%)","No-one has access","No-one has access",0,0,0,1,"لا يوجد",0,1,0,0,null,0,1,0,0,null,0,0,0,1,"WASH",null,"Shelter",null,"Other (Latrines)","حمامات","Food",null,"ابراهيم حسن ابراهيم زنبيل","Male","734086478","لا يوجد","Male","0","لا يوجد","Male","0","لا يوجد","Male","0","لا يوجد","Male","0","لا توجد جهات اتصال التنسيق",null,null,null,"لا توجد ملاحظات","لا توجد ملاحظات","Spontaneous Settlement","Open","Alsaqaif",null,"SF",255,255,255]
[106,"Alhajreyah","2019-05-20","Hajjah","Abs","Qutbah","الحجريه",null,null,null,"15.953041 43.083547","15.953041","43.083547","2015-01-01",25,null,1,null,null,null,"Haradh","None","None","0","0","0",null,null,"0","0","None","None",null,null,null,null,"Togeather","Private","Yes","No","No","Stay","None","No","No","Yes","No","No",null,"None","None","ADRA","2019-02-21","None","None","None","None","DRC","2019-02-21","None","None","None","None","None","None",0,1,0,1,0,0,1,0,0,1,1,0,"Must be purchased","Water trucking","None","No access (0%)","Public health facility","All children at site",0,1,0,0,null,0,1,0,0,null,0,1,0,0,null,0,0,0,1,"Food",null,"WASH",null,"Shelter",null,"Other (specify)","لا يوجد","احمد علي احمد دلداح","Male","776312806","محمد ابراهيم احمد دلداح","Male","717191957","لا يوجد","Male","0","ابراهيم محمد حسن دلداح","Male","0","لا يوجد","Male","0","( شوقي الدادي "," ADRA ",null," 770382418 ) - ( محمد مهدي ","الاهتمام بالمجتمع المضيف","لا يوجد","Spontaneous Settlement","Open","Alaqm",null,"AM",255,255,255]
[107," Alkhudhairy","2019-03-21","Hajjah","Abs","Qutbah","الخضيري",null,null,null,"15.915528 43.126669",15.915528,43.126669,"2015-03-20",33,0,1,0,0,0,"Haradh","Hayran","None",null,0,0,0,0,null,0,"ADO","Yes","محمد هادي ناجي","713102085","خالد عقيلي عاقل","712103777","Separated","Private","No","Yes","No","Stay","None","No","Yes","Yes","No",0,null,"None","None","OXFAM","2019-01-03","None","None","WFP","2019-02-20","None","None","None","None","None","None","None","None",0,1,1,0,0,0,0,0,1,0,1,1,"Must be purchased","Well / borehole","None","No access (0%)","No-one has access","No-one has access",1,1,1,0,"N/A",1,1,0,0,"N/A",0,1,0,0,"N/A",0,0,0,1,"WASH","N/A","Food","N/A","Shelter","N/A",null,"N/A","خالد محمد","Male","712103777","N/A","Male","0","علي احمد حاج عقيلي","Male","713196150","N/A","Male","0","N/A","Male","0","N/A","OXFAM","N/A","N/A","الغذاء غير كافي , المياه غير صالحة للشرب , الخدمات الصحية غير متوفرة , السكن في العراء ./ Food is inadequate, water is not drinking, health services are not available, housing is open.","تحتاج المنطقة الى :( صرف صحي - مياه صالحه للشرب - مركز صحي - مأوى ) تم استخدام موقع درينه العليا لعدم كتابته احداثيات (موقع الخضيري - قطبة) من قبل الباحث.","Spontaneous Settlement","Open","Almajarah",null,"RJ",255,255,255]
[108,"Aldwirah","2019-05-19","Hajjah","Abs","Qutbah","الدويره",null,null,null,"15.984733 43.131914","15.984733",43.131914000000002,"2015-01-01",60,null,1,null,null,null,"Haradh","Abs","None","0","0","0",null,null,"0","0","None","None",null,null,"ابوبكر احمد بلال","775695743","Togeather","Private","Yes","No","No","Stay","None","Yes","No","Yes","Yes","No",null,"NRC","2019-04-18","None","None","None","None","WFP","2019-02-19","None","None","None","None","None","None","None","None",0,1,1,0,0,0,0,0,0,0,1,0,"Must be purchased","Well / borehole","None","No access (0%)","No-one has access","Only part of children",0,0,1,0,null,0,1,0,0,null,0,1,0,0,null,0,0,0,1,"Food",null,"WASH",null,"Shelter",null,"Health / nutrition",null,"ابوبكر احمد حسن بلال","Male","775695743","لا يوجد","Male","0","محمد احمد جراد","Male","773407631","لا يوجد","Male","0","ابراهيم ابراهيم عضابي","Male","0","( توفيق الغرباني "," OXFAM ",null," 772967688 ) - ( ماجد غيلان ","مشروع المياه مقطوع حاليا والغذاء مقطوع منذ ثلاثة اشهر","الموقع يضم 3 تجمعات متفرقة","Spontaneous Settlement","Open","Almahraq",null,"RQ",255,255,255]
[109,"Aldhanab","2019-05-20","Hajjah","Abs","Qutbah","الذنب",null,null,null,"15.918247 43.154214","15.918247","43.154214","2015-01-01",13,null,1,null,null,null,"Haradh","Abs","None","0","0","0",null,null,"0","0","None","None",null,null,"يحيى احمد غدير سلااج","711005618","Togeather","Private","Yes","No","No","Stay","None","Yes","No","No","No","No",null,"None","None","OXFAM","2019-03-19","NRC","2019-02-21","WFP","2019-02-21","None","None","None","None","None","None","None","None",0,1,1,0,0,0,0,0,0,0,1,0,"Must be purchased","Well / borehole","None","Minority (15-50%)","No-one has access","Only part of children",0,0,1,0,null,0,1,0,0,null,0,1,1,0,null,0,0,0,1,"WASH",null,"Food",null,"Shelter",null,"Health / nutrition",null,"علي ابراهيم محمد عثماني","Male","770194816","لا يوجد","Male","0","حيدر محمد احمد هارب","Male","775614870","لا يوجد","Male","0","لا يوجد","Male","0","فاطمه عضابي "," OXFAM ",null,730008044,"توفير وحده صحية , المواد الغذائيه توزيعها لثلاث اسر فقط","الغذاء العالمي مستهدف لعدد محدد في المنطقة , المياه ملوثه وبعيده عن الموقع","Spontaneous Settlement","Open","Al Mushanjalah",null,"JH",255,255,255]
[110,"Aldheyabah","2019-05-20","Hajjah","Abs","Qutbah","الذيابه",null,null,null,"15.928486 43.155481","15.928486","43.155481","2015-01-01",26,null,1,null,null,null,"Haradh","None","None","0","0","0",null,null,"0","0","None","None",null,null,null,null,"Togeather","Private","Yes","No","No","Stay","None","No","No","Yes","No","No",null,"None","None","OXFAM","2019-03-19","None","None","None","None","None","None","None","None","None","None","None","None",0,1,0,0,0,0,0,0,0,0,1,0,"Must be purchased","Well / borehole","None","No access (0%)","No-one has access","Only part of children",0,1,1,0,null,0,1,0,0,null,0,1,0,0,null,1,1,0,0,"Food",null,"WASH",null,"Shelter",null,"Other (specify)","لا يوجد","شوعي احمد شوعي","Male","734530039","لا يوجد","Male","0","محمد علي ذيب","Male","713377869","حيدر محمد احمد هارب","Male","775614870","لا يوجد","Male","0","فاطمه عضابي "," OXFAM ",null,730008044,"غير مسجلين في برنامج الغذاء العالمي , عدم وصول المنظمات الى المنطقه , اماكن الماء بعيده والوصول اليها صعب","بعيدين عن الخدمات بأستثناء المدرسه قريبه","Spontaneous Settlement","Open","Bani Alfuhail",null,"FL",255,255,255]
[111,"Alsaqaif","2019-05-20","Hajjah","Abs","Qutbah","السقائف",null,null,null,"15.926775 43.158831","15.926775","43.158831","2015-01-01",30,null,1,null,null,null,"Haradh","None","None","0","0","0",null,null,"0","0","None","None",null,null,"حنان وراد","0","Togeather","Private","Yes","No","No","Stay","None","No","No","No","No","Yes",null,"None","None","OXFAM","2019-03-19","None","None","WFP","2019-02-21","None","None","None","None","None","None","None","None",0,1,0,0,0,1,0,0,0,0,1,0,"Must be purchased","Water trucking","None","No access (0%)","No-one has access","Only part of children",0,1,0,0,null,0,1,0,0,null,0,1,0,0,null,0,0,0,1,"Food",null,"Health / nutrition",null,"Shelter",null,"WASH",null,"يحيى احمد غدير سراج","Male","711005618","لا يوجد","Male","0","حيدر محمد احمد هارب","Male","775614870","لا يوجد","Male","0","عده اشخاص","Male","0","فاطمه عضابي "," OXFAM",null,null,"ايصال معاناه المجتمع للمنظمات","لا توجد ملاحظات","Spontaneous Settlement","Open","Bani Nuh",null,"NH",255,255,255]
[112,"Alaqm","2019-03-21","Hajjah","Abs","Qutbah","العقم",null,null,null,"15.924481 43.100919",15.924481,43.100918999999998,"2015-03-20",33,0,1,0,0,0,"Haradh","None","None",0,0,0,0,0,null,0,"ADO","Yes","محمد هادي ناجي","713102085","رضوان رمضان نواص","713073148","Togeather","Private","Yes","No","No","Stay","None","No","Yes","No","No",0,null,"None","None","OXFAM","2019-01-03","None","None","WFP","2019-02-20","None","None","None","None","None","None","None","None",0,1,1,0,0,0,0,0,1,0,1,1,"Must be purchased","Well / borehole","None","No access (0%)","No-one has access","No-one has access",1,1,1,0,"N/A",1,1,0,0,"N/A",0,1,1,0,"N/A",0,0,0,1,"WASH","N/A","Food","N/A","Health / nutrition","N/A",null,"N/A","شوعي يحي نواص","Male","715813934","N/A","Male","0","N/A","Male","0","رضوان رمضان نواص","Male","715813934","N/A","Male","0","N/A","OXFAM","N/A","N/A","المياه غي صالحه للشرب , الغذاء غير كافي , تحتاج الأسر الى المأوى./ Water is unfit to drink, food is inadequate, families need shelter.","الأحتياجات ( مأوى , صرف صحي , وحده صحية , مياه شرب ) تم استخدام موقع درينه العليا لعدم كتابته احداثيات موقع ( عقم الحلق ) من قبل الباحث.","Spontaneous Settlement","Open"," Bani Hayjan",null,"AN",255,255,255]
[113,"Almajarah","2019-03-21","Hajjah","Abs","Qutbah","المجره",null,null,null,"15.923417 43.114911",15.923417000000001,43.114910999999999,"2015-03-20",40,0,1,0,0,0,"Haradh","None","None",0,0,0,0,0,null,0,"ADO","Yes","محمد هادي ناجي","713102085","محمد عيسى ابراهيم عقيلي","713313424","Separated","Private","Yes","No","No","Stay","None","No","Yes","Yes","No",0,null,"None","None","oxfam","2019-01-03","None","None","None","None","None","None","None","None","None","None","None","None",0,1,1,0,0,0,0,0,0,0,1,0,"Free access for all","Well / borehole","None","No access (0%)","No-one has access","All children at site",1,1,1,0,"N/A",1,1,0,0,"N/A",0,1,0,0,"N/A",0,0,0,1,"Health / nutrition","N/A","Shelter","N/A","WASH","N/A","Food","N/A","علي عثمان عقيلي","Male","771083524","N/A","Male","0","N/A","Male","0","ابراهيم محمد عيسى عقيلي","Male","712638802","N/A","Male","0","N/A","OXFAM","N/A","N/A","يحتاجون الى : ( مأوى , غذاء , مياه صالحه للشرب , خدمات صحيه )/ They need: (shelter, food, drinking water, health services)","يحتاج المربع الى : (  مأوى ,  خدمات الصرف الصحي , خدمات صحيه )  تم استخدام موقع درينه العليا لعدم كتابته احداثيات موقع المجره من قبل الباحث.","Spontaneous Settlement","Open","Habeel Bani Siraj",null,"BS",255,255,255]
[114,"Almahraq","2019-05-19","Hajjah","Abs","Qutbah","المحرقة",null,null,null,"15.911911 43.211192","15.911911","43.211192","2015-05-30",600,null,1,null,null,null,"Haradh","Abs","Hayran",null,"0","0",null,null,"0","0","None","None",null,null,null,null,"Togeather","Private","Yes","No","No","Stay","None","No","No","Yes","No","No",null,"NRC","2019-04-18","OXFAM","2019-03-18","None","None","None","None","None","None","None","None","None","None","OXFAM","2019-02-20",0,1,1,0,0,0,0,0,0,0,1,0,"Free access for all","Well / borehole","None","No access (0%)","No-one has access","All children at site",0,0,0,1,"اسهالات حاده",0,1,0,0,null,0,1,0,0,null,0,0,0,1,"Health / nutrition",null,"Shelter",null,"Food",null,"Other (specify)","حمامات","احمد محمد شريف حوذان","Male","735070079","لا يوجد","Male","0","محمد حسين عثمان","Male","772031727","لا يوجد","Male","0","لا يوجد","Male","0","لا توجد جهات اتصال التنسيق",null,null,null,"لا توجد ملاحظات","يقع المخيم على جانبي الطريق المؤدي الى شفر ويعيش سكان المخيم مع المجتمع المضيف في بيئه واحده اكثر , اكثر النازحين بالمخيم لهم اكثر من 4 سنين","Spontaneous Settlement","Open","Dhahr Aljamal",null,"JL",255,255,255]
[115,"Al Mushanjalah","2019-04-24","Hajjah","Abs","Qutbah","المشقلة",null,null,null,"15.943061 43.127778",15.943061,43.127777999999999,"2016-05-04",100,0,1,0,0,0,"Haradh","Abs","Hayran",null,0,0,0,0,null,0,"None","None","N/A","N/A","N/A",null,"Togeather","Private","Yes","No","No","Return","None","No","Yes","Yes","Yes",0,null,"None","None","ADRA","2019-01-25","None","None","None","None","None","None","None","None","None","None","None","None",0,1,0,0,0,0,0,1,0,0,1,0,"No-one has good access","Water harvesting","None","Minority (15-50%)","Only host community","Only part of children",1,1,1,1,"diarrhea",1,1,1,1,"Mothers",1,1,1,0,null,0,0,0,1,"Shelter",null,"Health / nutrition",null,"Food",null,"WASH",null,"شوقي الموسى","Male","770382418","عابره احمد ابراهيم بلال","Female","715238753","لا يوجد","Male","0","لا يوجد","Male","0","لا يوجد","Male","0"," انس الغباري "," ADRA "," منسق المركز المجتمعي ",777708016,"احتياج شديد للمأوى والأيواء وهناك عدد قليل مسجلين في مساعدات الغذاء","المخيم بحاجه الى مساعدات انسانيه عاجله في المياه والصرف الصحي وكذلك الصحه.","Spontaneous Settlement","Open","Qanzaa",null,"QZ",255,255,255]
[116,"Bani Alfuhail","2019-05-20","Hajjah","Abs","Qutbah","بني الفحيل",null,null,null,"15.94017 43.123768","15.94017","43.123768","2015-05-02",60,null,1,null,null,null,"Haradh","None","None","0","0","0",null,null,"0","0","None","None",null,null,null,null,"Togeather","Public","Yes","No","No","Stay","None","No","Yes","No","No","No",null,"None","None","OXFAM","2019-02-21","None","None","WFP","2019-02-21","None","None","OXFAM","2019-02-21","None","None","None","None",0,1,0,0,0,0,0,0,0,0,1,0,"Must be purchased","Water trucking","None","No access (0%)","No-one has access","All children at site",0,1,1,0,null,1,1,0,0,null,0,1,0,0,null,0,0,0,1,"WASH",null,"Food",null,"Shelter",null,"Other (specify)","حمامات","عيسى احمد عيسى فحيل","Male","735454800","لا يوجد","Male","0","لا يوجد","Male","0","لا يوجد","Male","0","لا يوجد","Male","0","فاطمه عضابي "," OXFAM ",null,730008044,"لا توجد ملاحظات","لا توجد ملاحظات","Spontaneous Settlement","Open","Lebadah",null,"LH",255,255,255]
[117,"Bani Nuh","2019-05-20","Hajjah","Abs","Qutbah","بني نوح",null,null,null,"15.915297 43.125918","15.915297","43.125918","2015-05-29",50,null,1,null,null,null,"Haradh","Abs","None","0","0","0",null,null,"0","0","None","None",null,null,null,null,"Togeather","Private","Yes","No","No","Stay","None","No","No","No","No","Yes",null,"None","None","OXFAM","2019-02-21","None","None","None","None","None","None","None","None","MSF","2019-04-19","None","None",0,1,1,0,0,0,0,0,0,0,1,0,"Must be purchased","Water trucking","None","No access (0%)","No-one has access","No-one has access",0,0,0,1,"لا يوجد",0,1,0,0,null,0,1,0,0,null,0,0,0,1,"WASH",null,"Other (Latrines)","حمامات","Food",null,"Other (specify)","لا يوجد","صلاح الدين نوح","Male","713568590","لا يوجد","Male","0","لا يوجد","Male","0","لا يوجد","Male","0","لا يوجد","Male","0","لا توجد جهات اتصال التنسيق",null,null,null,"لا توجد ملاحظات","كل بيت تاتي العياده المستقله تبع أطباء بلا حدود , ويعاني المخيم من نقص حاد وشديد في نقص المياه الصالحة للشرب","Spontaneous Settlement","Open"]
[118," Bani Hayjan","2019-04-05","Hajjah","Abs","Qutbah","بني هيجان ",null,null,null,"15.943072 43.127394",15.943072000000001,43.127394000000002,"2015-03-20",462,0,1,0,1,"Bakil Al-Mir","Midi","Abs","Sa'adah",0,0,0,0,0,null,null,"ADO","Yes","ماجد غيلان","775221316","شوقي الموسى","770382418","Togeather","Private","Yes","No","No","Stay","None","No","No","Yes","Yes",0,null,"NRC","2019-04-03","ADRA","2019-04-03","NRC","2019-01-06","None","None","ADO","2019-04-03","None","None","None","None","None","None",0,1,0,0,0,0,0,0,0,0,1,0,"Must be purchased","Well / borehole","None","Minority (15-50%)","No-one has access","All children at site",0,1,1,0,"N/A",1,0,0,0,"N/A",1,1,0,0,"N/A",0,0,0,1,"Shelter","N/A","WASH","N/A","Food","N/A","Health / nutrition",null,"علي بحري","Male","0","عمر محمد","Male","713165537","علي حنش","Male","735454800","N/A","Male","0","N/A","Male","0","ماجد غيلان ","ADO "," Officer","N/A","نطالب بالالتفاف للمخيم والتدخلات فيه نادرة./ We demand that the camp be circumvented and that interventions are rare.","عدد النازحين في الموقع قليل يمكن تغطيتهم بمختلف الخدمات","Spontaneous Settlement","Open"]
[119,"Habeel Bani Siraj","2019-04-24","Hajjah","Abs","Qutbah","حبيل بني سراج",null,null,null,"15.958892 43.142764",15.958892000000001,43.142764,"2017-02-01",67,0,1,0,0,0,"Haradh","Abs","Hayran",null,0,0,0,0,null,0,"None","None","N/A","N/A","N/A",null,"Togeather","Private","Yes","No","No","Return","None","Yes","Yes","Yes","Yes",0,null,"None","None","None","None","None","None","None","None","None","None","SFD","2019-01-25","None","None","None","None",0,1,0,0,0,0,0,0,0,0,1,0,"Free access for all","Well / borehole","None","Minority (15-50%)","No-one has access","No-one has access",0,1,1,1,"diarrhea",1,1,1,1,"Mothers have Malnutrusion",1,1,1,0,null,0,0,0,1,"Shelter",null,"Health / nutrition",null,"Food",null,"Education",null,"علي محمد شوعي ذياب","Male","714917343","لا يوجد","Male","0","لا يوجد","Male","0","لا يوجد","Male","0","لا يوجد","Male","0",null,"SFD",null,null,"وصول متكرر للجان المسح من قبل المنظمات مع انعدام الاستجابة , تواجد النازحين في اماكن متباعده في المخيمات.","هناك تهديد للأراضي من الرمال والكثبان , لا توجد خدمات كافية كادنى حد.","Spontaneous Settlement","Open"]
[120,"Dhahr Aljamal","2019-05-20","Hajjah","Abs","Qutbah","ظهر الجمل",null,null,null,"15.946383 43.107164","15.946383","43.107164","2019-04-01",25,null,1,null,null,null,"Abs","None","None","0","0","0",null,null,"0","0","None","None",null,null,null,null,"Togeather","Private","Yes","No","No","Stay","None","No","No","Yes","No","No",null,"None","None","None","None","None","None","None","None","None","None","None","None","None","None","None","None",0,0,0,0,0,1,0,0,0,1,1,0,"Free access for all","Water harvesting","None","No access (0%)","Public health facility","All children at site",0,0,1,0,null,1,1,0,0,null,0,1,0,0,null,0,0,0,1,"Shelter",null,"WASH",null,"Other (NFI)","NFIS","Food",null,"محمد ابراهيم سراج","Male","770847029","لا يوجد","Male","0","احمد قدري","Male","0","شوعي حاسر","Male","0","لا يوجد","Male","0","لا توجد جهات اتصال التنسيق",null,null,null,"الاهتمام بالمجتمع المظيف","حاله المجتمع المضيف سيئه تقارب حاله النازحين","Spontaneous Settlement","Open"]
[121,"Qanzaa","2019-05-20","Hajjah","Abs","Qutbah","قنزع",null,null,null,"15.949296 43.196807","15.949296","43.196807","2015-05-06",33,null,1,null,null,null,"Haradh","Hayran","None",null,"0","0",null,null,"0","0","None","None",null,null,null,null,"Togeather","Public","Yes","No","No","Stay","None","No","No","No","No","Yes",null,"None","None","OXFAM","2019-02-21","NRC","2019-02-21","OXFAM","2019-02-21","NRC","2019-02-21","UNICEF","2019-02-21","UNICEF","2019-02-21","None","None",0,1,0,0,0,0,0,0,0,1,1,0,"Must be purchased","Water trucking","None","Minority (15-50%)","Health facility on site","All children at site",1,1,1,0,null,0,1,0,0,null,1,0,0,0,null,0,0,0,1,"WASH",null,"Food",null,"None","لا يوجد","None","لا يوجد","ربيع علي ابراهيم عقيلي","Male","776442989","لا يوجد","Male","0","لا يوجد","Male","0","لا يوجد","Male","0","لا يوجد","Male","0","( عبدالرحمن موري "," UNICEF  ) -  ( فاطمه عضابي ",null," OXFAM ","لا توجد ملاحظات","لا توجد ملاحظات","Spontaneous Settlement","Open"]
[122,"Lebadah","2019-05-20","Hajjah","Abs","Qutbah","لباده",null,null,null,"15.964965 43.106389","15.964965","43.106389","2019-04-01",59,null,1,null,null,null,"Haradh","None","None","0","0","0",null,null,"0","0","None","None",null,null,null,null,"Separated","Private","Yes","No","No","Stay","None","No","No","Yes","No","No",null,"None","None","None","None","None","None","None","None","None","None","None","None","None","None","None","None",0,0,0,0,0,1,0,0,0,1,1,0,"Free access for all","Water harvesting","None","No access (0%)","Public health facility","All children at site",0,0,0,1,"لا يوجد",0,1,0,0,null,0,1,0,0,null,0,0,0,1,"WASH",null,"Shelter",null,"Food",null,"None","لا يوجد","علي ثابت احمد حكمي","Male","770219958","عبدالله ثابت حكمي","Male","770302901","احمد قدري","Male","0","لا يوجد","Male","0","القطني","Male","0","لا توجد جهات اتصال التنسيق",null,null,null,"لا توجد ملاحظات","النازحين مشتتون حول القريه في اكثر من موقع","Spontaneous Settlement","Open"]

{"sheet":"Profile_Portrait","index":2,"n_rows":59,"n_cols":37,"rows_kept":59,"cut":false,"hidden":true,"merged":[[4,16,5,16],[4,23,5,23],[4,22,5,22],[4,21,5,21],[4,14,5,14],[4,15,5,15]]}
[null,null,{"$f":"Data!#REF!","v":{"$error":"#REF!"}}]
[null,null,"Walah",null,null,null,null,null,null,null,null,null,null,null,null,null,null,null,null,null,null,null,null,null,null,null,null,null,null,null,null,null,null,null,null,"Assistance","Status"]
[null,null,null,null,null,null,null,null,null,null,null,null,null,null,null,null,null,null,null,null,null,null,null,null,null,null,null,null,null,null,null,null,null,null,null,{"$f":"Data!AL7","v":" Landowner:"},{"$f":"Data!AL2","v":"Private"}]
[null,null,null,null,null,null,null,null,null,null,null,null,"Basic Sectorial Information",null,null,null,null,null,null,"Detailed Sectorial Overview",null,null,null,null,null,"Vulnerable Populations",null,null,null,null,null,null,null,null,null,{"$f":"Data!AM7","v":" Agreement between IDP & host communities"},{"$f":"Data!AM2","v":"Yes"}]
[null,null,null,null,"Age and Gender Breakdown",null,null,null,null,null,null,null,null,null,"Minimum Standard","Operational Standard","Reported Indicator",null,null,null,null,"Minimum Standard","Operational Standard","Reported Indicator",null,null,"Male",null,null,null,null,null,null,null,null,{"$f":"Data!AN7","v":" Risk of eviction:"},{"$f":"Data!AN2","v":"No"}]
[null,null,null,null,null,"Male%","Female%","Males","Females","Total",null,null,null,null,null,null,null,null,null,null,null,null,null,null,null,"Separated Child ",{"$f":"Data!#REF!","v":{"$error":"#REF!"}},null,null,null,null,null,null,null,null,{"$f":"Data!AO7","v":" Friction with host community:"},{"$f":"Data!AO2","v":"No"}]
[null,null,null,null,"0-4",{"$f":"(H7/J12)","v":{"$error":"#REF!"}},{"$f":"(I7/J12)*-1","v":{"$error":"#REF!"}},{"$f":"Data!#REF!","v":{"$error":"#REF!"}},{"$f":"Data!#REF!","v":{"$error":"#REF!"}},{"$f":"H7+I7","v":{"$error":"#REF!"}},null,null,"CCCM",{"$f":"Data!#REF!","v":{"$error":"#REF!"}},"min. 30m2","min. 30m3",{"$f":"Data!#REF!","v":{"$error":"#REF!"}},null,null,"CCCM",{"$f":"Data!#REF!","v":{"$error":"#REF!"}},1,0.7,{"$f":"Data!#REF!","v":{"$error":"#REF!"}},null,"Woman at Risk ",{"$f":"Data!#REF!","v":{"$error":"#REF!"}},null,null,null,null,null,null,null,null,{"$f":"Data!AP7","v":" Common intentions in next three months:"},{"$f":"Data!AP2","v":"Stay"}]
[null,null,null,null,"5-11",{"$f":"(H8/J12)","v":{"$error":"#REF!"}},{"$f":"(I8/J12)*-1","v":{"$error":"#REF!"}},{"$f":"Data!#REF!","v":{"$error":"#REF!"}},{"$f":"Data!#REF!","v":{"$error":"#REF!"}},{"$error":"#REF!"},null,null,"Protection",{"$f":"Data!#REF!","v":{"$error":"#REF!"}},1,1,{"$f":"Data!#REF!","v":{"$error":"#REF!"}},null,null,null,{"$f":"Data!#REF!","v":{"$error":"#REF!"}},0.5,0.5,{"$f":"Data!#REF!","v":{"$error":"#REF!"}},null,"Serious Medical Condition ",{"$f":"Data!#REF!","v":{"$error":"#REF!"}},null,null,null,null,null,null,null,null,{"$f":"Data!AQ7","v":" Reason for friction:"},{"$f":"Data!AQ2","v":"None"}]
[null,null,null,null,"12-17",{"$f":"(H9/J12)","v":{"$error":"#REF!"}},{"$f":"(I9/J12)*-1","v":{"$error":"#REF!"}},{"$f":"Data!#REF!","v":{"$error":"#REF!"}},{"$f":"Data!#REF!","v":{"$error":"#REF!"}},{"$error":"#REF!"},null,null,"Shelter/NFI",{"$f":"Data!#REF!","v":{"$error":"#REF!"}},"30m2","30m2",{"$f":"Data!#REF!","v":{"$error":"#REF!"}},null,null,"Protection",{"$f":"Data!#REF!","v":{"$error":"#REF!"}},1,0.75,{"$f":"Data!#REF!","v":{"$error":"#REF!"}},null,"Legal Protection Needs ",{"$f":"Data!#REF!","v":{"$error":"#REF!"}},null,null,null,null,null,null,null,null,{"$f":"Data!AR7","v":"Unaccompanied children:"},{"$f":"Data!AR2","v":"Yes"}]
[null,null,null,null,"18-59",{"$f":"(H10/J12)","v":{"$error":"#REF!"}},{"$f":"(I10/J12)*-1","v":{"$error":"#REF!"}},{"$f":"Data!#REF!","v":{"$error":"#REF!"}},{"$f":"Data!#REF!","v":{"$error":"#REF!"}},{"$error":"#REF!"},null,null,null,{"$f":"Data!#REF!","v":{"$error":"#REF!"}},5,7,{"$f":"Data!#REF!","v":{"$error":"#REF!"}},null,null,null,{"$f":"Data!#REF!","v":{"$error":"#REF!"}},1,0.8,{"$f":"Data!#REF!","v":{"$error":"#REF!"}},null,"Single Parent ",{"$f":"Data!#REF!","v":{"$error":"#REF!"}}]
[null,null,null,null,"60 and above",{"$f":"(H11/J12)","v":{"$error":"#REF!"}},{"$f":"(I11/J12)*-1","v":{"$error":"#REF!"}},{"$f":"Data!#REF!","v":{"$error":"#REF!"}},{"$f":"Data!#REF!","v":{"$error":"#REF!"}},{"$error":"#REF!"},null,null,"WASH",{"$f":"Data!#REF!","v":{"$error":"#REF!"}},"15 litres","15 litres",{"$f":"Data!#REF!","v":{"$error":"#REF!"}},null,null,"Shelter/NFI",{"$f":"Data!#REF!","v":{"$error":"#REF!"}},"2m","2m",{"$f":"Data!#REF!","v":{"$error":"#REF!"}},null,"Persons with Disabilities ",{"$f":"Data!#REF!","v":{"$error":"#REF!"}}]
[null,null,null,null,"Totals",null,null,{"$f":"SUM(H7:H11)","v":{"$error":"#REF!"}},{"$f":"SUM(I7:I11)","v":{"$error":"#REF!"}},{"$error":"#REF!"},null,null,null,{"$f":"Data!#REF!","v":{"$error":"#REF!"}},"Max 20",15,{"$f":"Data!#REF!","v":{"$error":"#REF!"}},null,null,null,{"$f":"Data!#REF!","v":{"$error":"#REF!"}},"50 max","50 max",{"$f":"Data!#REF!","v":{"$error":"#REF!"}},null,"Unaccompanied Minor/Separated Child ",{"$f":"Data!#REF!","v":{"$error":"#REF!"}}]
[null,null,null,null,null,null,null,null,null,null,null,null,null,{"$f":"Data!#REF!","v":{"$error":"#REF!"}},"Max 20",15,{"$f":"Data!#REF!","v":{"$error":"#REF!"}},null,null,null,{"$f":"Data!#REF!","v":{"$error":"#REF!"}},"3.5m2",3,{"$f":"Data!#REF!","v":{"$error":"#REF!"}},null,"Older Person at Risk ",{"$f":"Data!#REF!","v":{"$error":"#REF!"}}]
[null,null,null,null,null,null,null,null,null,null,null,null,null,{"$f":"Data!#REF!","v":{"$error":"#REF!"}},"min.weekly","min.weekly",{"$f":"Data!#REF!","v":{"$error":"#REF!"}},null,null,"WASH",{"$f":"Data!#REF!","v":{"$error":"#REF!"}},"250 max","250 max",{"$f":"Data!#REF!","v":{"$error":"#REF!"}},null,"Total",{"$f":"SUM(AA6:AA13)","v":{"$error":"#REF!"}}]
[null,null,null,null,"Main Ethnicities",null,null,null,null,null,null,null,"Food",{"$f":"Data!#REF!","v":{"$error":"#REF!"}},1,1,{"$f":"Data!#REF!","v":{"$error":"#REF!"}},null,null,null,{"$f":"Data!#REF!","v":{"$error":"#REF!"}},"Min 30","Min 30",{"$f":"Data!#REF!","v":{"$error":"#REF!"}}]
[null,null,null,null,{"$f":"Data!#REF!","v":{"$error":"#REF!"}},{"$f":"Data!#REF!","v":{"$error":"#REF!"}},{"$f":"Data!#REF!","v":{"$error":"#REF!"}},{"$f":"Data!#REF!","v":{"$error":"#REF!"}},null,null,null,null,"Health",{"$f":"Data!#REF!","v":{"$error":"#REF!"}},"1-5km","1-5km",{"$f":"Data!#REF!","v":{"$error":"#REF!"}},null,null,null,{"$f":"Data!#REF!","v":{"$error":"#REF!"}},"Max 500","Max 500",{"$f":"Data!#REF!","v":{"$error":"#REF!"}}]
[null,null,null,null,{"$f":"Data!#REF!","v":{"$error":"#REF!"}},{"$f":"Data!#REF!","v":{"$error":"#REF!"}},{"$f":"Data!#REF!","v":{"$error":"#REF!"}},{"$f":"Data!#REF!","v":{"$error":"#REF!"}},null,null,null,null,"Education",{"$f":"Data!#REF!","v":{"$error":"#REF!"}},1,0.75,{"$f":"Data!#REF!","v":{"$error":"#REF!"}},null,null,"Food",{"$f":"Data!#REF!","v":{"$error":"#REF!"}},"10km","10km",{"$f":"Data!#REF!","v":{"$error":"#REF!"}}]
[null,null,null,null,null,null,null,null,null,null,null,null,null,{"$f":"Data!#REF!","v":{"$error":"#REF!"}},1,0.75,{"$f":"Data!#REF!","v":{"$error":"#REF!"}},null,null,null,{"$f":"Data!#REF!","v":{"$error":"#REF!"}},0.9,0.9,{"$f":"Data!#REF!","v":{"$error":"#REF!"}}]
[null,null,null,null,"Main Religions",null,null,null,null,null,null,null,null,null,null,null,null,null,null,"Health",{"$f":"Data!#REF!","v":{"$error":"#REF!"}},"10,000 max","10,000 max",{"$f":"Data!#REF!","v":{"$error":"#REF!"}}]
[null,null,null,null,{"$f":"Data!#REF!","v":{"$error":"#REF!"}},{"$f":"Data!#REF!","v":{"$error":"#REF!"}},{"$f":"Data!#REF!","v":{"$error":"#REF!"}},{"$f":"Data!#REF!","v":{"$error":"#REF!"}},null,null,null,null,null,null,null,null,null,null,null,null,{"$f":"Data!#REF!","v":{"$error":"#REF!"}},"min 22","min 22",{"$f":"Data!#REF!","v":{"$error":"#REF!"}}]
[null,null,null,null,{"$f":"Data!#REF!","v":{"$error":"#REF!"}},{"$f":"Data!#REF!","v":{"$error":"#REF!"}},{"$f":"Data!#REF!","v":{"$error":"#REF!"}},{"$f":"Data!#REF!","v":{"$error":"#REF!"}},null,null,null,null,null,null,null,null,null,null,null,"Livelihood",{"$f":"Data!#REF!","v":{"$error":"#REF!"}},1,0.8,{"$f":"Data!#REF!","v":{"$error":"#REF!"}}]
[null,null,null,null,null,null,null,null,null,null,null,null,null,null,null,null,null,null,null,"Education",{"$f":"Data!#REF!","v":{"$error":"#REF!"}},1,0.8,{"$f":"Data!#REF!","v":{"$error":"#REF!"}}]
[null,null,null,null,"Places of Origin"]
[null,null,null,null,{"$f":"Data!V8","v":"Midi"},{"$f":"Data!V9","v":"Midi"}]
[null,null,null,null,{"$f":"Data!#REF!","v":{"$error":"#REF!"}},{"$f":"Data!#REF!","v":{"$error":"#REF!"}}]
[null,null,null,null,{"$f":"Data!#REF!","v":{"$error":"#REF!"}},{"$f":"Data!#REF!","v":{"$error":"#REF!"}}]
[]
[]
[]
[]
[]
[]
[]
[]
[]
[]
[]
[]
[]
[]
[]
[]
[]
[]
[]
[]
[]
[]
[]
[]
[]
[]
[]
[]
[]
[]
[]
[]
[null," "]

{"sheet":"District Profile","index":3,"n_rows":58,"n_cols":23,"rows_kept":58,"cut":false,"hidden":true,"merged":[]}
[null,null,"Select Site Name"]
[null,null,"Al Radhah"]
[null,null,null,null,null,null,null,null,null,null,null,null,null,null,null,null,null,"Assistance","Agency","Date",null,"Water",{"$f":"Data!AF2","v":"Yes"}]
[null,null,null,null,null,null,null,null,null,null,null,null,null,null,null,null,null,"RRM",{"$f":"Data!AL2","v":"Private"},{"$f":"Data!AM2","v":"Yes"},null,"Main water supply",{"$f":"Data!AG2","v":"فواد جعمل"}]
[null,null,null,null,null,null,null,null,null,null,null,null,null,null,null,null,null,"Cash",{"$f":"Data!AN2","v":"No"},{"$f":"Data!AO2","v":"No"},null,"Other",{"$f":"Data!AH2","v":"774847958"}]
[null,null,null,null,null,null,null,null,null,null,null,null,null,null,null,null,null,"NFI",{"$f":"Data!AP2","v":"Stay"},{"$f":"Data!AQ2","v":"None"},null,"Latrines",{"$f":"Data!AI2","v":"منصور ابراهيم جعداري"}]
[null,null,null,null,null,null,null,null,null,null,null,null,null,null,null,null,null,"Food",{"$f":"Data!AR2","v":"Yes"},{"$f":"Data!AS2","v":"Yes"},null,"Health Care",{"$f":"Data!AJ2","v":"773953634"}]
[null,null,null,null,null,null,null,null,null,null,null,null,null,null,null,null,null,"Shelter",{"$f":"Data!AT2","v":"Yes"},{"$f":"Data!AU2","v":"Yes"},null,"Education",{"$f":"Data!AK2","v":"Togeather"}]
[null,null,null,null,null,null,null,null,null,null,null,null,null,null,null,null,null,"Wash",{"$f":"Data!AV2","v":0},{"$f":"Data!AW2","v":"00:00:00"}]
[null,null,null,null,null,null,null,null,null,null,null,null,null,null,null,null,null,"Health",{"$f":"Data!AX2","v":"NRC"},{"$f":"Data!AY2","v":"2019-09-01"}]
[null,null,null,null,null,null,null,null,null,null,null,null,null,null,null,null,null,"Education",{"$f":"Data!AZ2","v":"OXFAM"},{"$f":"Data!BA2","v":"2019-09-01"}]
[]
[]
[]
[]
[]
[]
[]
[]
[]
[]
[]
[]
[]
[]
[]
[]
[]
[]
[]
[]
[]
[]
[]
[]
[]
[]
[]
[]
[]
[]
[]
[]
[]
[]
[]
[]
[]
[]
[]
[]
[]
[]
[]
[]
[]
[]
[null," "]

{"sheet":"Esko","index":4,"n_rows":53,"n_cols":17,"rows_kept":53,"cut":false,"hidden":true,"merged":[[1,1,1,16],[3,2,3,3],[3,7,3,8],[3,10,3,11],[3,13,3,14],[5,1,5,8],[5,9,5,16],[10,5,13,5],[10,6,13,8],[11,9,13,9],[15,1,15,16],[16,1,16,4],[16,5,16,8],[16,9,16,12],[16,13,16,16],[6,1,9,1],[6,2,9,4],[6,5,9,5],[6,6,9,8],[6,9,7,10],[6,14,6,16],[7,14,7,16],[8,9,10,9],[10,1,13,1],[10,2,13,4],[17,13,17,14],[17,15,17,16],[18,1,18,2],[18,3,18,4],[18,5,18,6],[18,7,18,8],[18,9,18,10],[18,11,18,12],[18,13,18,14],[18,15,18,16],[17,1,17,2],[17,3,17,4],[17,5,17,6],[17,7,17,8],[17,9,17,10],[17,11,17,12],[19,13,19,14],[19,15,19,16],[20,1,20,2],[20,3,20,4],[20,5,20,6],[20,7,20,8],[20,9,20,10],[20,11,20,12],[20,13,20,14],[20,15,20,16],[19,1,19,2],[19,3,19,4],[19,5,19,6],[19,7,19,8],[19,9,19,10],[19,11,19,12],[21,13,21,14],[21,15,21,16],[22,1,22,2],[22,3,22,4],[22,5,22,6],[22,7,22,8],[22,9,22,10],[22,11,22,12],[22,13,22,14],[22,15,22,16],[21,1,21,2],[21,3,21,4],[21,5,21,6],[21,7,21,8],[21,9,21,10],[21,11,21,12],[23,13,23,14],[23,15,23,16],[24,1,24,2],[24,3,24,4],[24,5,24,6],[24,7,24,8],[24,9,24,10],[24,11,24,12],[24,13,24,14],[24,15,24,16],[23,1,23,2],[23,3,23,4],[23,5,23,6],[23,7,23,8],[23,9,23,10],[23,11,23,12],[25,13,25,14],[25,15,25,16],[26,1,26,2],[26,3,26,4],[26,5,26,6],[26,7,26,8],[26,9,26,10],[26,11,26,12],[26,13,26,14],[26,15,26,16],[25,1,25,2],[25,3,25,4],[25,5,25,6],[25,7,25,8],[25,9,25,10],[25,11,25,12],[27,13,27,14],[27,15,27,16],[28,1,28,2],[28,3,28,4],[28,5,28,6],[28,7,28,8],[28,9,28,10],[28,11,28,12],[28,13,28,14],[28,15,28,16],[27,1,27,2],[27,3,27,4],[27,5,27,6],[27,7,27,8],[27,9,27,10],[27,11,27,12],[29,13,29,14],[29,15,29,16],[30,1,30,2],[30,3,30,4],[30,5,30,6],[30,7,30,8],[30,9,30,10],[30,11,30,12],[30,13,30,14],[30,15,30,16],[29,1,29,2],[29,3,29,4],[29,5,29,6],[29,7,29,8],[29,9,29,10],[29,11,29,12],[33,1,33,16],[34,1,37,1],[34,2,34,3],[34,5,37,8],[34,9,35,9],[34,10,34,11],[34,13,37,16],[35,2,35,3],[35,10,35,11],[36,2,36,3],[36,9,37,9],[36,10,36,11],[37,2,37,3],[37,10,37,11],[39,1,40,1],[39,2,39,3],[39,5,42,8],[39,9,40,9],[39,10,39,11],[39,13,42,16],[40,2,40,3],[40,10,40,11],[41,1,42,1],[41,2,41,3],[41,9,42,9],[41,10,41,11],[42,2,42,3],[42,10,42,11],[44,1,45,1],[44,2,44,3],[44,5,47,8],[44,9,45,9],[44,10,44,11],[44,13,47,16],[45,2,45,3],[45,10,45,11],[46,1,47,1],[46,2,46,3],[46,9,47,9],[46,10,46,11],[47,2,47,3],[47,10,47,11],[49,1,50,1],[49,2,49,3],[49,5,52,8],[49,9,50,9],[49,10,49,11],[49,13,52,16],[50,2,50,3],[50,10,50,11],[51,1,52,1],[51,2,51,3],[51,9,52,9],[51,10,51,11],[52,2,52,3],[52,10,52,11]]}
[]
[null,"IDP HOSTING SITE PROFILE"]
[]
[null,"Site name",null,null,"District",null,"Governorate",null,null,"Coordinates",null,null,"Report period",null,null,"Date"]
[]
[null,"CONTEXT",null,null,null,null,null,null,null,"DEMOGRAPHICS"]
[null,"IDP site background information",null,null,null,"District and governorate context",null,null,null,"TOTAL SITE POPULATION",null,null,"households","Source","Committees & CCCM team"]
[null,null,null,null,null,null,null,null,null,null,null,null,"individuals","Reliability","Information is highly reliable"]
[null,null,null,null,null,null,null,null,null,"AREAS OF ORIGIN","Governorate"]
[null,null,null,null,null,null,null,null,null,null,"District"]
[null,"Recent contextual developments",null,null,null,"Government focal point involvement",null,null,null,null,"% of IDPs"]
[null,null,null,null,null,null,null,null,null,"BREAKDOWN","Gender","< 2 years","2 - 5 years","5 - 17 years","18 - 59 years","> 60 years","Total"]
[null,null,null,null,null,null,null,null,null,null,"Female"]
[null,null,null,null,null,null,null,null,null,null,"Male"]
[]
[null,"CORE INFORMATION"]
[null,"COORDINATION",null,null,null,"INFRASTRUCTURE",null,null,null,"SERVICES",null,null,null,"RISKS"]
[null,"Site typology",null,null,null,"Number of usable shelters",null,null,null,"Access to education (overall)",null,null,null,"Site safety status"]
[null,"Site establishment date",null,null,null,"Main shelter type",null,null,null,"Access to education for (girls)",null,null,null,"Preparedness"]
[null,"Land ownership",null,null,null,"% of main shelter type",null,null,null,"Access to basic health care",null,null,null,"Distance to nearest conflict"]
[null,"Site management type",null,null,null,"Shelter area per person (m2)",null,null,null,"Access to referral hospital",null,null,null,"Recent contextual changes"]
[null,"Site Coordination Focal Point",null,null,null,"Total site area (m2)",null,null,null,"Access to functional markets",null,null,null,"Risk of mines & explosives"]
[null,"Site level coordination",null,null,null,"Total site capacity (HH)",null,null,null,"Access to safe drinking water",null,null,null,"Risk of eviction"]
[null,"CCCM cluster presence",null,null,null,"Site receiving capacity (HH)",null,null,null,"Access to three meals per day",null,null,null,"Risk of other security incident"]
[null,"Number of monthly referrals",null,null,null,"Primary water source",null,null,null,"Distance to market",null,null,null,"Incidence of cholera"]
[null,"Average weekly arrivals (HH)",null,null,null,"Secondary water source",null,null,null,"Distance to school",null,null,null,"Incidence of other diseases"]
[null,"Response to new arrivals",null,null,null,"Well & borehole daily capacity",null,null,null,"Distance to health care facility",null,null,null,"Tensions within IDP site"]
[null,"Site committee established",null,null,null,"Water trucking (liters per day)",null,null,null,"General food distribution",null,null,null,"Tensions with host community"]
[null,"% of women in committees",null,null,null,"Number of water points",null,null,null,"Livelihoods opportunities",null,null,null,"Tensions with local authorities"]
[null,"Feedback mechanisms",null,null,null,"Latrines",null,null,null,"Child Friendly Space",null,null,null,"Number of safety incidents"]
[null,"Community satisfaction",null,null,null,"Bathing facilities",null,null,null,"Protection monitoring",null,null,null,"Number of access incidents"]
[]
[]
[null,"SECTORIAL NEEDS OVERVIEW"]
[null,"GENERAL","State of coordination",null,null,null,null,null,null,"FSL","# of new arrivals without food"]
[null,null,"State of service provision",null,null,null,null,null,null,null,"# of days to receive RRM"]
[null,null,"State of accessibility",null,null,null,null,null,null,"PRIORITY: LOW","# of food insecure HH"]
[null,null,"State of overall well-being",null,null,null,null,null,null,null,"Food distribution status"]
[]
[null,"WASH","Presence of solid waste",null,null,null,null,null,null,"PROTECTION","General protection concerns"]
[null,null,"# of persons per latrine",null,null,null,null,null,null,null,"# of HH with specific needs"]
[null,"PRIORITY: LOW","Access to water",null,null,null,null,null,null,"PRIORITY: LOW","Incidence of CP issues"]
[null,null,"# of liters of water/person/day",null,null,null,null,null,null,null,"Incidence of SGBV"]
[]
[null,"HEALTH & NUTRITION","Basic health care availability",null,null,null,null,null,null,"EDUCATION","Education/CP integration"]
[null,null,"Exposure to disease",null,null,null,null,null,null,null,"Student/teacher ratio"]
[null,"PRIORITY: LOW","Issues with medical referrals",null,null,null,null,null,null,"PRIORITY: LOW","# of children attending school"]
[null,null,"Suspected acute malnutrition",null,null,null,null,null,null,null,"# of children not in school"]
[]
[null,"SHELTER & NFI","# of HH with shelter needs",null,null,null,null,null,null,"CCCM","Site level coordination"]
[null,null,"# of HH with NFI needs",null,null,null,null,null,null,null,"Coordination with cluster"]
[null,"PRIORITY: LOW","# of HH in makeshift shelters",null,null,null,null,null,null,"PRIORITY: LOW","# of meetings with partners"]
[null,null,"# of days to find shelter",null,null,null,null,null,null,null,"Access & interventions"]

{"sheet":"Site Profile","index":5,"n_rows":122,"n_cols":26,"rows_kept":122,"cut":false,"hidden":false,"merged":[[3,2,4,2]]}
[null,null,null,95,"Al Radhah",null,null,null,null,null,null,null,null,null,null,null,null,null,null,null,null,null,null,null,null,{"$f":"IF(Data!U2=0,Data!V2,IF(Data!V2=0,Data!W2,IF(Data!W2=0,Data!X2,IF(Data!X2=0,\"None\",\"None\"))))","v":"None"}]
[null,null,null,null,"Al Kadaf"]
[null,null,null,null,"Al Mehraq",null,null,null,null,null,null,null,null,null,null,null,{"$f":"IF(Data!H2=0,\"\",Data!H2)","v":" Kedf Alarf"},"Assistance",{"$f":"Data!AX1","v":"Agency "},{"$f":"Data!AY1","v":" Date"},null,"Water",{"$f":"Data!BZ2","v":"Free access for all"}]
[null,null,"Select the Site",null,"Almashaf",null,null,null,null,null,null,null,null,null,null,null,{"$f":"IF(Data!I2=0,\"\",Data!I2)","v":""},"RRM",{"$f":"Data!AX2","v":"NRC"},{"$f":"Data!AY2","v":"2019-09-01"},null,"Main water supply",{"$f":"Data!CA2","v":"Water harvesting"}]
[null,null,null,null,"Almaqayet",null,null,null,null,null,null,null,null,null,null,null,{"$f":"IF(Data!J2=0,\"\",Data!J2)","v":""},"Cash",{"$f":"Data!AZ2","v":"OXFAM"},{"$f":"Data!BA2","v":"2019-09-01"},null,"Other",{"$f":"Data!CB2","v":"None"}]
[null,null,null,null,"Bani Almush",null,null,null,null,null,null,null,null,null,null,null,null,"NFI",{"$f":"Data!BB2","v":"None"},{"$f":"Data!BC2","v":"None"},null,"Latrines",{"$f":"Data!CC2","v":"No access (0%)"}]
[null,null,null,null,"Bani Saminah",null,null,null,null,null,null,null,null,null,null,null,null,"Food",{"$f":"Data!BD2","v":"WFP"},{"$f":"Data!BE2","v":"2019-09-01"},null,"Health Care",{"$f":"Data!CD2","v":"Public health facility"}]
[null,null,null,null,"Deer Alsarh",null,null,null,null,null,null,null,null,null,null,null,null,"Shelter",{"$f":"Data!BF2","v":"ADO / UNHCR"},{"$f":"Data!BG2","v":"2019-09-01"},null,"Education",{"$f":"Data!CE2","v":"All children at site"}]
[null,null,null,null,"Deer Almahnab",null,null,null,null,null,null,null,null,null,null,null,null,"Wash",{"$f":"Data!BH2","v":"None"},{"$f":"Data!BI2","v":"None"}]
[null,null,null,null,"Hayjah Albataryah",null,null,null,null,null,null,null,null,null,null,null,null,"Health",{"$f":"Data!BJ2","v":"None"},{"$f":"Data!BK2","v":"None"}]
[null,null,null,null," Habeel Al Wasat",null,null,null,null,null,null,null,null,null,null,null,null,"Education",{"$f":"Data!BL2","v":"None"},{"$f":"Data!BM2","v":"None"}]
[null,null,null,null,"Al Hamur"]
[null,null,null,null,"Al Hanak"]
[null,null,null,null,"Al Khadharish"]
[null,null,null,null,"Al Kharaib"]
[null,null,null,null,"Al Dabayah"]
[null,null,null,null,"Al Dhahyah"]
[null,null,null,null,"Alqafrah"]
[null,null,null,null,"Alqampoor - Bait Alzabidi"]
[null,null,null,null,"Almebsham"]
[null,null,null,null,"Almahamerah"]
[null,null,null,null,"Al Mesbar"]
[null,null,null,null,"Al Matayn"]
[null,null,null,null,"Al Moqanza'a"]
[null,null,null,null,"Almalakhah"]
[null,null,null,null,"Al Malab"]
[null,null,null,null,"Al Manather"]
[null,null,null,null,"Deer Dukhnah"]
[null,null,null,null,"Ahmed Ali Balush"]
[null,null,null,null," Aljahaferah"]
[null,null,null,null," Aljamakhyah"]
[null,null,null,null," Alhanbi"]
[null,null,null,null,"Al Sharaeah"]
[null,null,null,null," Altaweel"]
[null,null,null,null," Altaweelah"]
[null,null,null,null,"Alfalflyah"]
[null,null,null,null,"Al Qahmah"]
[null,null,null,null,"Al Mabahesah"]
[null,null,null,null," Almajduaya"]
[null,null,null,null,"Al Maruf"]
[null,null,null,null," Almakaserah"]
[null,null,null,null,"Alnawasherah"]
[null,null,null,null,"Bani Ahmed"]
[null,null,null,null,"Bani Alasnaj"]
[null,null,null,null," Bani Belal"]
[null,null,null,null,"Bani Balush"]
[null,null,null,null," Bani Jurdan"]
[null,null,null,null,"Bani Saweed"]
[null,null,null,null,"Bani Kubah"]
[null,null,null,null," Bani Alkadeem"]
[null,null,null,null," Jahrah"]
[null,null,null,null," Habeel Dubn"]
[null,null,null,null," Ali Aswad"]
[null,null,null,null," Kadf Almahrah"]
[null,null,null,null,"Wehaish"]
[null,null,null,null," Alhjawerah "]
[null,null,null,null,"Alrwajeh"]
[null," ",null,null," Alzalyah"]
[null,null,null,null," Alzyad"]
[null,null,null,null,"Al Areadh"]
[null,null,null,null,"Alghazi"]
[null,null,null,null,"Al Qaflah"]
[null,null,null,null,"Alkasarah - Wadi Qoor"]
[null,null,null,null,"Almajadar"]
[null,null,null,null," Almukhyam"]
[null,null,null,null,"Old City"]
[null,null,null,null,"Almernaf"]
[null,null,null,null,"Al Muroor"]
[null,null,null,null,"Almusala"]
[null,null,null,null,"Almaqaeshah - South"]
[null,null,null,null," Maqaeshah - North "]
[null,null,null,null,"Almaqfa"]
[null,null,null,null,"Al Methaq"]
[null,null,null,null,"Alhejami"]
[null,null,null,null,"Al Hayjah"]
[null,null,null,null," Bani Almushta"]
[null,null,null,null,"Al Omal Zone"]
[null,null,null,null,"College Zone"]
[null,null,null,null,"Habeel Bani Alsharif"]
[null,null,null,null,"Dawood"]
[null,null,null,null,"Deer Abkar"]
[null,null,null,null,"Suq Saddam"]
[null,null,null,null," Shati Almahraqah "]
[null,null,null,null," Alkhudaish Camp"]
[null,null,null,null,"Almajd "]
[null,null,null,null,"Almatar Camp"]
[null,null,null,null," Bani Arjan Camp"]
[null,null,null,null,"Abs City"]
[null,null,null,null,"Moudah"]
[null,null,null,null,"Al Hareeq "]
[null,null,null,null," Bani Bajraa "]
[null,null,null,null," Dorynah Alsofla "]
[null,null,null,null," Dorynah Alolya "]
[null,null,null,null," Walah "]
[null,null,null,null,"As Sabeel"]
[null,null,null,null,"Al'ak"]
[null,null,null,null,"Habeel Alqaz"]
[null,null,null,null,"Deer Alhesi"]
[null,null,null,null,"Deer Alauqm"]
[null,null,null,null," Quhaim"]
[null,null,null,null,"Majoar"]
[null,null,null,null,"Abu Alail"]
[null,null,null,null,"Aljarab"]
[null,null,null,null,"Al Jaibiah"]
[null,null,null,null,"Alhajrah"]
[null,null,null,null,"Alhajreyah"]
[null,null,null,null," Alkhudhairy"]
[null,null,null,null,"Aldwirah"]
[null,null,null,null,"Aldhanab"]
[null,null,null,null,"Aldheyabah"]
[null,null,null,null,"Alsaqaif"]
[null,null,null,null,"Alaqm"]
[null,null,null,null,"Almajarah"]
[null,null,null,null,"Almahraq"]
[null,null,null,null,"Al Mushanjalah"]
[null,null,null,null,"Bani Alfuhail"]
[null,null,null,null,"Bani Nuh"]
[null,null,null,null," Bani Hayjan"]
[null,null,null,null,"Habeel Bani Siraj"]
[null,null,null,null,"Dhahr Aljamal"]
[null,null,null,null,"Qanzaa"]
[null,null,null,null,"Lebadah"]